Workbook

Sheet Matriz
D1: OCURRENCIA
D2: BAJO | E2: MEDIO | F2: ALTO
B3: IMPACTO | C3: ALTO
C4: MEDIO
C5: BAJO
D7: CATEGORIA | E7: ROJA | F7: 24 HORAS
E8: AMARILLO | F8: 3 A 8 DÍAS
E9: VERDE | F9: 15 DÍAS

Sheet Registro de quejas (2)
A2: 424 | B2: FECHA | C2: Huésped | D2: Columna1 | E2: Habitación | F2: Columna2 | G2: Área de la queja | H2: Columna3 | I2: SOLUCION SOLICITADA POR CLIENTE | J2: Columna4 | K2: Quien recibe la queja | L2: Columna5 | M2: Columna6 | N2: Columna7 | O2: SEMANA DE EVALUACIÓN | P2: VALORACIÓN | Q2: ACCIÓN POR REALIZAR | R2: DEPARTAMENTO | S2: SEGUIMIENTO COMITÉ | T2: SUGERENCIA / QUEJA | U2: RESUELTO | V2: DUPLICADO | W2: PAYASO | X2: Columna8
A3: 424 | B3: 2018-04-18 | C3: x | E3: 601 | F3: C1 | G3: Habitación | H3: Huesped se queja de hormigas en el area del baño. | J3: Se manda a la mucama a revisar el baño. | K3: Luis Carlos | L3: Navarro | M3: Servicio al Cliente | O3: 17 | P3: Verde | Q3: COMENTAR CON JAIRO | R3: CSC - JAIRO | T3: QUEJA | U3: Si | V3: SI | W3: Plagas Habitaciones
A4: =A3+1 -> 425 | B4: 2018-04-18 | C4: x | E4: 112 | F4: C1 | G4: Habitación | H4: Huesped indica que se necesita un espejo afuera del baño. | N4: 2018--04-181 | O4: 17 | P4: Desestimada | Q4: YA EXISTE ESPEJOS DE CUERPO ENTERO | S4: NO | T4: SUGERENCIA | U4: Si | V4: NO | W4: Espejo Grande
A5: =A4+1 -> 426 | B5: 2018-04-18 | C5: x | E5: 111 | F5: C1 | G5: Bar Humedo | H5: Huesped se queja que entre las 5 y 7 pm deberían haber mas bartenders ya que hay que esperar mucho para ser atendido y mas tiempo para que le hagan un cocktail. | I5: Huesped sugiere tener 3 bartenders para asi vender mas y tener mejor servicio. | N5: 2018--04-182 | O5: 17 | P5: Amarilla | Q5: DIEGO VA A REVISAR LO QUE SUCEDIÓ | R5: CSC - DIEGO | S5: SI | T5: QUEJA | U5: Si | V5: NO | W5: Servicio cliente bar humedo
A6: =A5+1 -> 427 | B6: 2018-04-17 | C6: x | E6: 706 | F6: C1 | G6: Restaurante | H6: Huesped se queja porque no hay pan libre de gluten en el desayuno. | N6: 2018--04-186 | O6: 17 | P6: Desestimada | Q6: ALTO RIESGO CON LOS CELIACOS | T6: QUEJA | U6: Si | V6: SI | W6: Menú Celiacos
A7: 428 | B7: 2018-04-18 | C7: x | E7: 710 | F7: C1 | G7: Habitación | H7: Huesped llama quejandose por hormigas en el lavatorio y en el area del baño. | J7: Se envía a la mucama a verificar y se se encontraron hormigas y cucarachas, por lo que se fumigó el baño. Se le llama a la huesped para ofrecer disculpas y la misma se encuentra agradecida por la ayuda. | K7: Luis Carlos | L7: Navarro Rodríguez | M7: Servicio al Cliente | O7: 17 | P7: Roja | Q7: COMENTAR CON JAIRO | R7: CSC - JAIRO | T7: QUEJA | U7: Si | V7: SI | W7: Plagas Habitaciones
A8: 429 | B8: 2018-04-19 | C8: x | E8: 904 | F8: c1 | G8: Recepcion | H8: Huesped reporta que ocasionalmente el lavatorio desprendia fuertes olores a alcantarilla y cloaca. | I8: tomarlo en consideracion dado que podria afectar a futuros huespedes | J8: Disculparme por el incoveniente y contactarme con los respectivos compañeros para cersorarnos de que no siga sucediendo | K8: Jean Pierre | L8: Brenes | M8: Recepcion | O8: 17 | P8: Amarilla | Q8: CERSIORARSE DE LOS MALOS OLORES EN LA HABITACIÓN | R8: CSC - JAIRO | T8: QUEJA | U8: Si | V8: SI | W8: Mal olor habitación
A9: 430 | B9: 2018-04-19 | C9: X | E9: 706 | F9: C1 | G9: Habitación | H9: Huesped se queja porque no hay silla en la habitación, las camas son muy altas y ellos huespedes de baja estatura. | N9: 2018--04-191 | O9: 17 | P9: ROJA | Q9: YA MERITO | R9: CSC - GREIVIN | T9: SUGERENCIA | U9: Si | V9: SI | W9: Silla en habitación
A10: 431 | B10: 2018-04-20 | E10: 601 | G10: Transporte | H10: Huésped solicitó transporte para venir al parqueo para irse a tour, pero el carrito de golf no llegó por ellos, debieron venirse caminando entonces | K10: Jean Pierre | L10: Brenes | M10: Recepción | O10: 17 | P10: ROJA | Q10: MAYOR CUIDADO POR PARTE DEL ANFITRIÓN | R10: CSC - LIZ | T10: QUEJA | U10: Si | V10: SI | W10: Servicio cliente botones
A11: 432 | B11: 2018-04-20 | C11: x | E11: 601 | F11: c2 | G11: Habitación | H11: Huésped reporta que tiene muchas hormigas dentro de la habitación, que hasta están en las maletas. | I11: Cambiarlos de habitación, y que se les lave la maleta y la ropa porque esta llena de hormigas | J11: Se les cambia a la hab 108, y se llevó la maleta con la ropa a lavandería para lavarse y además se revisó para ver si habia restos de comida o algo dulce que provocará que llegarán las hormigas dentro de las prendas y la maleta pero no se encontró nada. | K11: Luis César | L11: Morales Campos | M11: Servicio al cliente | O11: 17 | P11: ROJA | Q11: COMENTAR CON JAIRO | R11: CSC - JAIRO | T11: QUEJA | U11: Si | V11: SI | W11: Plagas Habitaciones
A12: 433 | B12: 2018-04-20 | C12: x | E12: 108 | F12: c2 | G12: Habitación | H12: Después de haberlos cambiado de la 601 a la habitación 108, la señora Brandi reporta que hay una cucaracha dentro de la habitación y por este motivo estaba muy molesta | I12: Que se le dé la mejor habitación que haya en el Hotel y que además se le brinde la cena como cortesía | J12: La señora y las niñas ya habían solicitado comida para room service, por lo que esto fue retirado como cortesía. Además se les dió las habitaciones 414 y 415. | K12: Luis César | L12: Morales Campos | M12: Servicio al cliente | O12: 17 | P12: ROJA | Q12: COMENTAR CON JAIRO | R12: CSC - JAIRO | T12: QUEJA | U12: Si | V12: SI | W12: Plagas Habitaciones
A13: 434 | B13: 2018-04-20 | C13: x | E13: 309 | F13: c1 | G13: Habitación | H13: Sería bueno tener al menos una sombrilla por habitación | N13: 2018-04-206 | O13: 17 | P13: Desestimada | Q13: COSTOS ELEVADOS | T13: SUGERENCIA | U13: Si | V13: NO | W13: Sombrillas
A14: 435 | B14: 2018-04-21 | C14: x | E14: 901 | F14: c1 | G14: Habitación | H14: La puerta del baño no se cierra o abre bien. | N14: 2018-04-215 | O14: 17 | P14: ROJA | Q14: AVERIGUAR LO QUE INDICA EL CLIENTE | R14: CSC - MELISSA | T14: QUEJA | U14: Si | V14: NO | W14: Puerta de baño
A15: 436 | B15: 2018-04-21 | C15: x | E15: 901 | F15: c1 | G15: Habitación | H15: Hay un fuerte olor que sale del baño | N15: 2018-04-215 | O15: 17 | P15: ROJA | Q15: VALIDAR CON MELISSA | R15: CSC - MELISSA | T15: QUEJA | U15: Si | V15: SI | W15: Mal olor habitación
A16: 437 | B16: 2018-04-21 | C16: x | E16: 702 | F16: c1 | G16: Habitación | H16: Podría haber una o dos sillas en la habitación, incluso pueden estar guardadas en el closet | N16: 2018-04-216 | O16: 17 | P16: ROJA | Q16: YA MERITO | R16: CSC - GREIVIN | T16: SUGERENCIA | U16: Si | V16: SI | W16: Silla en habitación
A17: 438 | B17: 2018-04-21 | C17: x | E17: 702 | F17: c1 | G17: Habitación | H17: Las lamparas que hay en la habitación no sirven para leer | N17: 2018-04-216 | O17: 17 | P17: ROJA | Q17: COMPRA DE LÁMPARAS PENDIENTE | R17: CSC - GREIVIN | S17: SI | T17: QUEJA | U17: Si | V17: SI | W17: Lampara de lectura
A18: 439 | B18: 2018-04-21 | C18: x | E18: 702 | F18: c1 | G18: Habitación | H18: La ducha podría usar menos agua si estuviera mejor calibrada | N18: 2018-04-216 | O18: 17 | P18: ROJA | Q18: POSTALES INFORMATIVAS PENDIENTES POR COLOCAR | R18: CSC - JAIRO | U18: Si | V18: NO | W18: Información duchas
A19: 440 | B19: 2018-04-21 | C19: x | E19: 702 | F19: c1 | G19: Habitación | H19: Una linea para tender la ropa fuera de la habitación sería util | N19: 2018-04-216 | O19: 17 | P19: VERDE | Q19: EXISTEN TENDEDEROS EN LA BAÑO - PREGUNTAR A MELISSA | R19: CSC - MELISSA | T19: SUGERENCIA | U19: Si | V19: NO
A20: 441 | B20: 2018-04-21 | C20: x | E20: 702 | F20: c1 | G20: Habitación | H20: Si se etiquetaran las apagadores de la habitación sería mas funcional, ya que no se sabe cual es para cada cosa. | N20: 2018-04-216 | O20: 17 | P20: Desestimada | Q20: NO SE PUEDE AGREGAR MAS INFORMACIÓN EN LA HABITACIÓN | T20: SUGERENCIA | U20: Si | V20: NO | W20: Rotulación ventilador
A21: 442 | B21: 2018-04-22 | C21: x | E21: 408 | F21: C2 | G21: Hotel | H21: Huesped se acerca a Recepción muy molesto debido a que llamó para solicitar hielo y nunca lo recibió, el señor no permite ni que le ayudemos, se queja muy fuerte por el mal servicio, tambien se queja por que en la maquina de hielo no hay bolsas y solo pide una bolsa para seguidamente indicarnos que no quiere ningún carrito de golf y que se irá caminando apesar de la lluvia. | I21: Colocar hieleras plasticas o bolsas en el mismo lugar donde se encuentra la máquina de hielo, dice que como es posible llevar hielo sino ofrecen algo donde llevarlo. | J21: Huésped no permite ni ofrecer disculpas, se va inmediantamente y enfurecido apenas se le da la bolsa. Actualización 23-4-18 6:10 pm. Al huésped se la ha solicitada las disculpas por el incoveniente y se le han otorgado dos bebidas de cortesía en el bar barril, la boleta tiene el consecutivo #0148. | K21: Luis Carlos/Luis César | L21: Navarro Rodríguez/ Morales Campos | M21: Servicio al Cliente | O21: 17 | P21: ROJA | Q21: MAYOR CUIDADO POR PARTE DEL ANFITRIÓN | R21: CSC - LIZ | T21: QUEJA | U21: Si | V21: SI | W21: Servicio cliente botones
A22: 443 | B22: 2018-04-21 | C22: x | E22: 310 | F22: C1 | G22: Habitación | H22: Huesped indica que debería haber un tomacorriente especial cerca de la mesa para cargar la computadora | N22: 2018--04-230 | O22: 17 | P22: Desestimada | Q22: EN TIENDA ESTÁN DISPONIBLES ADAPTADORES PARA TOMAS | T22: SUGERENCIA | U22: Si | V22: NO
A23: 444 | B23: 2018-04-21 | C23: x | E23: 210 | F23: C1 | G23: Restaurante | H23: Huesped se queja que las opciones vegetarianas son muy limitadas para la epoca en la que nos encontramos, el mismo indica que al haber muchas personas vegetarianas, el hotel debería mejorar. | N23: 2018--.04--226 | O23: 17 | P23: ROJA | Q23: HACER UN SOLO MENÚ DE VEGETARIANOS | R23: CSC - DIEGO | S23: SI | T23: SUGERENCIA | U23: Si | V23: SI | W23: Menú vegetariano
A24: 445 | B24: 2018-04-23 | C24: x | E24: 211 | F24: c1 | G24: Hotel | H24: Para un hotel como este uno espera que haya batas de baño en la habitación | N24: 2018-04-232 | O24: 17 | P24: Desestimada | Q24: COSTOS MUY ALTOS | T24: SUGERENCIA | U24: Si | V24: NO | W24: Batas de baño
A25: 446 | B25: 2018-04-23 | C25: x | E25: 211 | F25: c1 | G25: Hotel | H25: Hay muchos niños, no esperabamos tener que hacer fila para poder conseguir omelets, pancakes o frutas. | N25: 2018-04-232 | O25: 17 | P25: ROJA | Q25: DIEGO YA TOMÓ DIRECTRICES | R25: CSC - DIEGO | S25: NO | T25: QUEJA | U25: Si | V25: NO | W25: Calida Desayuno
A26: 447 | B26: 2018-04-22 | C26: x | E26: 201 | F26: c1 | G26: Habitación | H26: Pusimos el rotulo de no cambiar las toallas pero si las cambiaron. | N26: 2018-04-233 | O26: 17 | P26: ROJA | Q26: COMENTAR CON MELISSA | R26: CSC - MELISSA | T26: QUEJA | U26: Si | V26: NO | W26: Limpieza en habitación
A27: 448 | B27: 2018-04-24 | E27: 308 | F27: c1 | H27: Huesped solicitó transporte para 2 personas dado la lluvia sin embargo ningun compañero fue por ellos, ella muy molesta se vino caminando desde su habitacion. | O27: 17 | P27: ROJA | Q27: SE AMONESTÓ AL ANFITRIÓN | R27: CSC - LIZ | T27: QUEJA | U27: Si | V27: NO | W27: Servicio cliente botones
A28: 449 | B28: 2018-04-24 | C28: x | E28: 106 | F28: c1 | G28: Hotel | H28: Huésped comenta que los grupos de niños son muy ruidosos y si el hotel vende tranquilidad debería de cumplirse, se sintío inconforme en areas comunes e incluso en la habitación. | I28: - | J28: - | K28: Maria Nela | L28: Sancho | M28: Recepción | O28: 17 | P28: ROJA | Q28: COMENTAR CON GERENCIA GRUPO DE BEST | R28: CSC - GERENCIA | T28: QUEJA | U28: Si | V28: NO | W28: Grupos estudiantes
A29: 450 | B29: 2018-04-24 | C29: x | E29: 602 | F29: c1 | G29: Habitación | H29: Huésped encontró una piedrita en el piso al majarla y escribe que fue un verdadero Ouch! Y además dice que el resto de la habitación no parecia que estuviera bien limpia | N29: 2018-04-240 | O29: 17 | P29: ROJA | Q29: COMENTAR CON MELISSA | R29: CSC - MELISSA | T29: QUEJA | U29: Si | V29: NO | W29: Limpieza en habitación
A30: 451 | B30: 2018-04-24 | C30: x | E30: 602 | F30: c1 | G30: Habitación | H30: Una sombrilla por habitación, reduciría el uso de los carritos de golf | N30: 2018-04-240 | O30: 17 | P30: Desestimada | Q30: COSTOS ELEVADOS | T30: SUGERENCIA | U30: Si | V30: NO | W30: Sombrillas
A31: 452 | B31: 2018-04-24 | C31: x | E31: 602 | F31: c1 | G31: Habitación | H31: Una sola cama y un sillón sería mucho mejor que dos camas y ningún sitio donde sentarse | N31: 2018-04-240 | O31: 17 | P31: ROJA | Q31: YA MERITO | R31: CSC - GREIVIN | T31: SUGERENCIA | U31: Si | V31: SI | W31: Silla en habitación
A32: 453 | B32: 2018-04-25 | C32: x | E32: 415 | F32: c1 | G32: Hotel | H32: Deberiamos de pensar en quitar las lineas amarillas de la calle, no hay necesidad de ellas porque los carros no van a altas velocidades y a su vez estas lineas afean la belleza de las instalaciones en conjunto con la naturaleza | O32: 17 | P32: Desestimada | Q32: LINEAS SON NECESARIAS | T32: SUGERENCIA | U32: Si | V32: NO | W32: Señalización
A33: 454 | B33: 2018-04-25 | C33: x | E33: 415 | F33: c1 | G33: Habitación | H33: La pared donde esta el aire acondicionado va tener problemas a futuro debido a que el condensador gotea | O33: 17 | P33: ROJA | Q33: COMENTAR CON JAIRO | R33: CSC - JAIRO | T33: SUGERENCIA | U33: Si | V33: SI
A34: 455 | B34: 2018-04-25 | C34: x | E34: 401 | F34: C1 | G34: Habitación | H34: Huesped se queja que habían insectos viniendo atraves de las paredes. | N34: 2018--04-252 | O34: 17 | P34: ROJA | Q34: COMENTAR CON JAIRO | R34: CSC - JAIRO | T34: QUEJA | U34: Si | V34: SI | W34: Plagas Habitaciones
A35: 456 | B35: 2018-04-26 | C35: x | E35: 509 | F35: C1 | G35: Restaurante | H35: Huesped indica que se necesita mas variedad en el desayuno. | N35: 2018--04-256 | O35: 17 | P35: ROJA | Q35: DIEGO ESTÁ TRABAJANDO EN ESO | R35: CSC - DIEGO | S35: SI | T35: QUEJA | U35: Si | V35: NO | W35: Calida Desayuno
A36: 457 | B36: 2018-04-27 | C36: x | E36: 502 | F36: C2-C3 | G36: Hotel | H36: demasiado ruido causado por el generador | I36: Cambiarse de habitación y ver como vamos a compensarlos | J36: Cambiarlos a la hab 301 | K36: Luis César | L36: Morales | M36: Recepción | O36: 17 | P36: ROJA | Q36: SE TRAJO UN TÉCNICO DE RUIDO PARA DETECTAR EL ORIGEN Y LA SOLUCIÓN | R36: CSC - GREIVIN | T36: QUEJA | U36: Si | V36: SI | W36: Ruido generadores
A37: 458 | B37: 2018-04-27 | C37: x | E37: 406 | F37: C3 | G37: Hotel | H37: demasiado ruido causado por el generador | I37: No se quiere cambiar de habitación y no acepta ninguna explicación o disculpa | J37: A la hora de hacer check-out se le explica a la huésped lo ocurrido y el porque del ruido del generador, en principio la señora viene molesta y nos muestra un video donde se evidencia el ruido en la madrugada, sin embargo se le ofrecen disculpas, se le compensa eliminando 3 facturas por un total de 156 dólares, la huesped se va contenta y nos aclara que le gustó mucho el hotel. Queja cerrada satisfactoriamente. (Luis Carlos Navarro R.) | K37: Luis César | L37: Morales | M37: Recepción | O37: 17 | P37: ROJA | Q37: SE TRAJO UN TÉCNICO DE RUIDO PARA DETECTAR EL ORIGEN Y LA SOLUCIÓN | R37: CSC - GREIVIN | T37: QUEJA | U37: Si | V37: SI | W37: Ruido generadores
A38: 459 | B38: 2018-04-27 | C38: x | E38: 510 | F38: C1 | G38: Habitación | H38: Huespedes se acercan molestos arecepción para reclamar que como puede ser posible que no haya ni una sola silla en la habitación, ellos son una pareja de baja estatura y solicitan se les dé una silla a la habitación. | I38: Colocar silla en Habitación | K38: Luis Carlos | L38: Navarro Rodriguez | M38: Servicio al Cliente | O38: 17 | P38: ROJA | Q38: YA MERITO | R38: CSC - GREIVIN | T38: SUGERENCIA | U38: Si | V38: SI
A39: 460 | B39: 2018-04-27 | C39: x | E39: 103 | F39: c1 | G39: Restaurante | H39: Mas opciones para el menu de desayuno, todos los días lo mismo no nos hace felices | N39: 2018-04-267 | O39: 17 | P39: ROJA | Q39: DIEGO ESTÁ TRABAJANDO EN ESO | R39: CSC - DIEGO | S39: SI | T39: QUEJA | U39: Si | V39: NO | W39: Calida Desayuno
A40: 461 | B40: 2018-04-26 | C40: x | E40: 104 | F40: c1 | G40: Habitación | H40: La ceramica de la hab es muy resbalosa y cuando esta mojada es muy dificl caminar para las personas que tenemos problemas caminando | N40: 2018-04-268 | O40: 17 | P40: ROJA | Q40: NO SE HA RECOGIDO EL PRODUCTO DE PROVEEDURÍA | R40: CSC - JAIRO | T40: QUEJA | U40: Si | V40: SI | W40: Piso resbaloso
A41: 462 | B41: 2018-04-27 | D41: x | H41: Ayer note que hay falta de iluminación en el jacuzzi, les pregunte a mantenimiento y me dijeron que están esperando unas lámparas. Solamente para que tomen nota de esto, asi nos evitamos un accidente. | K41: Javier | L41: Arias | O41: 17 | P41: ROJA | Q41: DARLE SEGUIMIENTO AL PROBLEMA DE LAS LÁMPARAS DE JACUZZI | R41: CSC - JAIRO | T41: QUEJA | U41: Si | V41: NO | W41: Rotulación Jacuzzi
A42: 463 | B42: 2018-04-28 | C42: x | E42: 402 | F42: C1 | G42: Gimnasio | H42: Huesped se queja que el gimnasio necesita mejor equipo. | N42: 2018--04-280 | O42: 17 | P42: ROJA | Q42: PEDIRLE A EDWARD QUE NOS ASESORE | R42: CSC - LIZ | T42: QUEJA | U42: Si | V42: NO | W42: Gimnasio
A43: 464 | B43: 2018-04-28 | C43: x | E43: 106 | F43: C1 | G43: Hotel | H43: Huesped indica que la música del bar húmedo podría mejorar y no ser aburrida y desactualizada. | I43: Mejor música atrae mas personas y por ende mas ventas de comida y bebidas | N43: 2018--04-276 | O43: 17 | P43: ROJA | Q43: COMENTAR CON BAR PISCINAS | R43: CSC - DIEGO | S43: SI | T43: SUGERENCIA | U43: Si | V43: NO
A44: 465 | B44: 2018-04-29 | C44: x | E44: 901 | F44: C1 | G44: Habitación | H44: Huesped al hacer check-out se queja del funcionamiento del Aire Acondicionado, indica que no enfría y que nunca pudieron refrescar la habitación como lo deseaban. | I44: Solicita revisar los filtros | K44: Luis Carlos | L44: Navarro R. | O44: 17 | P44: ROJA | Q44: COMENTAR CON MELISSA | R44: CSC - MELISSA | T44: QUEJA | U44: Si | V44: SI | W44: A/C
A45: 466 | B45: 2018-04-29 | C45: x | E45: 111 | F45: C1 | G45: Restaurante | H45: Huesped solicita mejor la calidad del pepperoni de las pizzas. | N45: 2018--04-287 | O45: 17 | P45: ROJA | Q45: SE VAN A PROBAR PARA LA OTRA SEMANA | R45: CSC - DIEGO | S45: SI | T45: SUGERENCIA | U45: Si | V45: NO
A46: 467 | B46: 2018-04-29 | C46: x | E46: 106 | F46: C1 | G46: Habitación | H46: Puerta del baño se encuentra mala y caída. | N46: 2018--04-288 | O46: 17 | P46: ROJA | Q46: AVERIGUAR LO QUE INDICA EL CLIENTE | R46: CSC - MELISSA | T46: QUEJA | U46: Si | V46: NO | W46: Puerta de baño
A47: 468 | B47: 2018-04-29 | C47: x | E47: 306 | F47: C1 | G47: Habitación | H47: Huesped sequeja del sonido que se percibe desde las otras habitaciones | N47: 2018--04-291 | O47: 17 | P47: ROJA | Q47: SE VA A CREAR UN EQUIPO DE INVESTIGACIÓN DE SONIDOS | R47: CSC - LIZ | T47: QUEJA | U47: Si | V47: SI | W47: Ruido habitación
A48: 469 | B48: 2018-04-29 | C48: x | E48: 311 | F48: C1 | G48: Restaurante | H48: El mojito estaba horrible y muy caro | N48: 2018--04-292 | O48: 17 | P48: ROJA | Q48: DIEGO VA A REVISAR LO QUE SUCEDIÓ | R48: CSC - DIEGO | S48: SI | T48: QUEJA | U48: Si | V48: SI | W48: Cockteles bares
A49: 470 | B49: 2018-04-29 | C49: x | E49: 201 | F49: C1 | G49: Hotel | H49: Huesped indica que deberían agregar mas espacios en la piscina para descansar, ejemplo: camitas de piedra en el agua y no solo asientos. | N49: 2018--04-293 | O49: 17 | P49: VERDE | Q49: COMENTAR CON GERENCIA | R49: CSC - GERENCIA | T49: SUGERENCIA | U49: Si | V49: NO
A50: 471 | B50: 2018-04-30 | C50: x | E50: 305 | F50: C1 | G50: Spa | H50: "Mi esposo queria un masaje de envoltura o exfoliación com decía que cerraban a las 8 pm, esperabamos que nos pudieran atender después de las 3 pm, pero nos dijeron que no porque las muchachas salian a las 6 pm, además no había recepcionista para buscar la info tuvimos que interrumpir una sesión. | N50: 2018-04-307 | O50: 17 | P50: ROJA | Q50: COMENTAR CON YEIMY | R50: CSC - LIZ | T50: QUEJA | U50: Si | V50: NO | W50: Servicio cliente spa
A51: 472 | B51: 2018-04-30 | C51: x | E51: 409 | F51: C1 | G51: Restaurante | H51: Sería bueno que tuvieran sangría en todos los bares | N51: 2018-04-305 | O51: 17 | P51: VERDE | Q51: YA SE HICIERON LOS AJUSTES PARA OFRECER SANGRÍA EN TODOS LOS BARES | R51: CSC - DIEGO | S51: NO | T51: SUGERENCIA | U51: Si | V51: NO
A52: 473 | B52: 2018-05-01 | C52: x | E52: 307 | F52: c2 | G52: Recepción | H52: Huesped se acerca a recepcion disgustado acerca de una situacion acontecida en el Rest Italiano, indica que solicitó una pizza cuya cual venia con un pedazo de plastico y nos informa que al expresar su disgusto con el compañero presente hizo caso omiso a su reclamo, el nos expresa que firmó la factura inconforme por lo tanto vino a Recepcion a mostrar su descontento, solicitando una solucipon al respecto. (huesped vino resintiendo su malestar, cubriendo su abdomen con su mano) | I52: Alguna pronta respuesta dado que considera inexplicable que mostrara su descontento y lo ignoraran. | J52: Pido las disculpas del caso por lo acontecido, le informo que tomaremos la cartas en el asunto para darle una solucion. Se habla con el huésped se le pide disculpas por el problema presentado, se le indica que se va retirar la pizza de la factura y que vamos a brindarles unas bebidas de cortesía para el y su familia. | K52: Jean Pierre/L César | L52: Brenes/Morales Campos | M52: Recepcion/Servicio al cliente | O52: 17 | P52: ROJA | Q52: COBRAR POR PARTES IGUALES LA PIZZA Y LAS BEBIDAS DE CORTESÍAS | R52: CSC - IVAN | T52: QUEJA | U52: Si | V52: SI | W52: Objetos en la comida
A53: 474 | B53: 2018-04-30 | C53: x | E53: 110 | F53: c1 | G53: Restaurante | H53: Los cocteles y bebidas en general muy caros y con mejoras pendientes en calidad | N53: 2018-04-308 | O53: 17 | P53: VERDE | Q53: COMUNICAR A SALON SOBRE EL COMENTARIO | R53: CSC - DIEGO | S53: SI | T53: QUEJA | U53: Si | V53: SI | W53: Cockteles bares
A54: 475 | B54: 2018-05-01 | C54: x | E54: 402 | F54: c1 | G54: Restaurante | H54: Mejorar la calidad del café en el desayuno | N54: 2018-04-309 | O54: 17 | P54: ROJA | Q54: HABLAR CON GERENCIA | R54: CSC - GERENCIA | T54: SUGERENCIA | U54: Si | V54: NO
A55: 476 | B55: 2018-05-01 | C55: x | E55: 402 | F55: c1 | G55: Habitación | H55: Mejorar la calidad del champú-gel manzana | N55: 2018-04-309 | O55: 17 | P55: ROJA | Q55: SE VA A CAMBIAR LA RECETA | R55: CSC - GREIVIN | T55: SUGERENCIA | U55: Si | V55: NO
A56: 477 | B56: 2018-04-29 | C56: x | E56: 302 | F56: c1 | G56: Restaurante | H56: El jugo de naranja podrá ser hecho con frutas a mano | N56: 2018-04-310 | O56: 17 | P56: Desestimada | Q56: JUGO ES ARTESANAL | T56: SUGERENCIA | U56: Si | V56: NO
A57: 478 | B57: 2018-04-29 | C57: x | E57: 302 | F57: c1 | G57: Habitación | H57: Un basurero cerrado en el baño, sería bueno | N57: 2018-04-310 | O57: 17 | P57: ROJA | Q57: BASUREROS VIENEN EN CAMINO | R57: CSC - GREIVIN | T57: SUGERENCIA | U57: Si | V57: SI
A58: 479 | B58: 2018-04-30 | C58: x | E58: 708 | F58: c1 | G58: Habitación | H58: Las camas son un poco duras | N58: 2018-04-311 | O58: 17 | P58: VERDE | Q58: Validar lo informado por el cliente | R58: CSC - MELISSA | T58: QUEJA | U58: Si | V58: SI | W58: Colchon duro
A59: 480 | B59: 2018-05-01 | C59: x | E59: 208 | F59: c1 | G59: Restaurante | H59: El chef de la piscina fue muy descortés al no dejar que los niños jueguen en la piscina. | N59: 2018-04-312 | O59: 17 | P59: ROJA | Q59: HABLAR CON WILBERTH DE CAMBIAR LA FORMA DE LLAMAR LA ATENCIÓN | R59: CSC - DIEGO | S59: SI | T59: QUEJA | U59: Si | V59: SI | W59: Servicio cliente sushi
A60: 481 | B60: 2018-05-01 | C60: x | E60: 509 | F60: c1 | G60: Restaurante | H60: La comida es muy cara y regular, la comida de las sodas de afuera es mucho mejor y menos cara | N60: 2018-04-313 | O60: 17 | P60: ROJA | Q60: REVISAR PORCIONES | R60: CSC - DIEGO | S60: SI | T60: QUEJA | U60: Si | V60: SI | W60: Calidad comida
A61: 482 | B61: 2018-05-01 | C61: x | E61: 410 | F61: c1 | G61: Restaurante | H61: Hacer que uno se sirva el café | N61: 2018-04-314 | O61: 17 | P61: Desestimada | Q61: CARACTERISTICA DEL HOTEL ES EL SERVICIO Y NO EL AUTOSERVICIO | T61: SUGERENCIA | U61: Si
A62: 483 | B62: 2018-05-01 | C62: x | E62: 604 | F62: c1 | G62: Habitación | H62: El té de la habitación de manzanilla tiene sabor a tierra | N62: 2018-04-315 | O62: 17 | P62: ROJA | Q62: VER LA FECHA DEL LOTE DE LAS CAJAS DE TE DE MANZANILLA | R62: CSC - MELISSA | T62: QUEJA | U62: Si | V62: NO | W62: Minibar habitaciones
A63: 484 | B63: 2018-05-02 | C63: x | E63: 411 | F63: C1 | G63: Hotel | H63: Huesped se queja debido a que el hotel no cuenta con una acera o camino especial para personas discapacitadas desde las habitaciones hasta las areas comunes, piscinas y restaurantes. Además se queja que en la noche no hay señalización iluminada y que cuando se transita los carritos de golf pasan muy cerca de los peatones. | N63: 2018--05-01 | O63: 18 | P63: ROJA | Q63: Considerar acera | R63: CSC-GERENCIA | T63: QUEJA | U63: Si | V63: SI | W63: Acera para transitar
A64: 485 | B64: 2018-05-03 | C64: x | E64: 101 | F64: c1 | G64: Habitación | H64: Cliente reporta que se metieron a la habitacion y extrajeron dinero en efectivo y un celular, mientras ellos estaban en la cena. | J64: Se procedio a ir a chequear la habitación con el cliente, y se llamó a la policia para que dieran asistencia y levantaran un reporte respectivo de lo sucedido. | K64: José | L64: Hernandez | O64: 18 | P64: ROJA | Q64: CONSIDERAR CERCA ELÉCTRICA // ASIGNAR QUIEN SUPERVISE RECORRIDO DE GUARDAS | R64: CSC-GERENCIA | T64: QUEJA | U64: Si | V64: NO | W64: Robo en habitaciones
A65: 486 | B65: 2018-05-03 | C65: x | E65: 111 | F65: C2 | G65: Spa | H65: Huespedes se quejan de tratamiento recibido en el SPA, se muestran molestos y decepcionados porque no quedaron satisfechos con el trabajo que se llevó a cabo en un pedicure, se quejaron de la silla que es muy incómoda, de que no les masajearon los pies mas de 4 minutos a pesar de que el tratamiento duraba 60 minutos y además aclaran que no se le tenía agua caliente para colocar los pies y sentirse relajada. | I65: Silla cómoda y relajante, mejorar el procedimiento en donde involucre masajes y tina con agua caliente para los pies. | J65: Se procedió a remover el monto del tratamiento y los huespdes quedaron satisfechos. | K65: Luis Carlos | L65: Navarro | M65: Servicio al Cliente | O65: 18 | P65: ROJA | Q65: HABLAR CON YEIMY | R65: CSC-LIZ | T65: QUEJA | U65: Si | V65: SI | W65: Spa
A66: 487 | B66: 2018-05-04 | C66: x | E66: 701 | F66: c1 | G66: Habitación | H66: Pequeñas hormigas en el baño, en el area de la caja de manicure | N66: 2018--05-11 | O66: 18 | P66: ROJA | Q66: PLAN DE FUMIGACIÓN | R66: CSC-JAIRO | T66: QUEJA | U66: Si | V66: SI | W66: Plagas Habitaciones
A67: 488 | B67: 2018-05-05 | C67: x | E67: 702 | F67: C1 | G67: Restaurante | H67: Huesped se queja de que el hotel debería de tener mas opciones de ensaladas. | N67: 2018--05-27 | O67: 18 | P67: VERDE | Q67: REVISAR LA CANTIDAD | R67: CSC-DIEGO | T67: QUEJA | U67: Si | V67: SI | W67: Calidad comida
A68: 489 | B68: 2018-05-05 | C68: x | E68: 702 | F68: C1 | G68: Habitación | H68: Huesped indica que talvez un spray´insecticida pequeño sería útil para los insectos que aparezcan durante la estadía. | N68: 2018--05-27 | O68: 18 | P68: ROJA | Q68: PLAN DE FUMIGACIÓN | R68: CSC-JAIRO | T68: QUEJA | U68: Si | V68: SI | W68: Plagas Habitaciones
A69: 490 | B69: 2018-05-04 | C69: x | E69: 601 | F69: C1 | G69: Hotel | H69: Huespedes se quejan porque el hotel deberia considerar tener menus de los restaurantes en las habitaciones y así facilitar el servicio a la habitación. | N69: 2018--05-25 | O69: 18 | P69: Amarilla | Q69: AGREGAR MENÚ EN EL DIRECTORIO | R69: CSC-GREIVIN | T69: QUEJA | U69: Si | V69: SI | W69: Menú room service
A70: =A69+1 -> 491 | B70: 2018-05-05 | C70: x | E70: 304 | F70: C1 | G70: Habitación | H70: Huesped se queja que el detector de humo se encendió a las 12:30am y comenzó a hacer beep, el mismo se queja que tuvo que llamar a la mañana siguiente para que el staff se diera cuenta. | J70: Se llamó a mantenimiento y procedieron a cambiar baterias. | N70: 2018--05-18 | O70: 18 | P70: ROJA | Q70: QUITAR TODOS LOS DETECTORES VIEJOS | R70: CSC-MELISSA | S70: SI | T70: QUEJA | U70: Si | V70: SI | W70: Alarmas
A71: 492 | B71: 2018-05-06 | C71: x | E71: 609 | F71: C1 | G71: Hotel | H71: Huesped se queja de que el hotel no dispone de un area de juegos para los niños, la señora me indica que quedaron encantados con el lugar pero debido a que su familia tiene varios niños pues consideran que es necesario tener un area con pequeño playground. | K71: Luis Carlos | L71: Navarro R. | M71: Servicio al cliente | O71: 18 | P71: ROJA | Q71: DARLE SIGUIMIENTO AL AREA PARA NIÑOS | R71: CSC-GREIVIN | S71: SI | T71: QUEJA | U71: Si | V71: SI | W71: Área para niños
A72: 493 | B72: 2018-05-04 | C72: x | E72: 107 | F72: C1 | G72: Restaurante | H72: Huesped se queja de lo limitado del menú con opciones vegetarianas y reclama por mas opciones. | N72: 2018--05-30 | O72: 18 | P72: ROJA | Q72: HACER UN SOLO MENÚ DE VEGETARIANOS | R72: CSC-DIEGO | S72: SI | T72: QUEJA | U72: Si | V72: SI | W72: Menú vegetariano
A73: 494 | B73: 2018-05-04 | C73: x | E73: 204 | F73: C1 | G73: Habitación | H73: Huesped se queja de la iluminación de la habitación, indica que es pobre y no es suficiente. Además se queja de que no hay una silla y que el control del TV solo funciona desde una cama y no de las 2. | N73: 2018--05-29 | O73: 18 | P73: VERDE | Q73: REVISAR LAS BATERIAS DEL CONTROL TV | R73: CSC-MELISSA | S73: SI | T73: QUEJA | U73: Si | V73: SI | W73: HABITACIONES | X73: PENDIENTE MELISSA
A74: 495 | B74: 2018-05-04 | C74: x | E74: 109 | F74: C1 | G74: Habitación | H74: La caja fuerte no funcionó en toda la estadía, huespedes reclaman que se quedó cerrada los 2 días y no permitía ingresar un código. | N74: 2018--05-28 | O74: 18 | P74: Amarilla | Q74: REVISAR QUE LA CAJA NO TENGA INCONVENIENTE | R74: CSC-MELISSA | S74: SI | T74: QUEJA | U74: Si | V74: SI | W74: HABITACIONES | X74: SE VA A ELEGIR UNA PLAY GROUND
A75: 496 | B75: 2018-05-06 | C75: x | E75: 612 | F75: c1 | G75: Habitación | H75: Un basurero con tapa sería mejor para el baño, especialmente porque este contiene papel higienico usado | N75: 2018--0535 | O75: 18 | P75: ROJA | Q75: BASUREROS VIENEN EN CAMINO | R75: CSC-GREIVIN | S75: SI | T75: QUEJA | U75: Si | V75: SI | W75: Basurero baño | X75: HABLAR CON DIEGO C
A76: 497 | B76: 2018-05-06 | C76: x | E76: 410 | F76: c1 | G76: Habitación | H76: A/C bajo rendimiento, sería recomendable tenerlos encendidos antes que los huéspedes lleguen a la habitación. | N76: 2018--05-34 | O76: 18 | P76: Amarilla | Q76: REVISAR EL RENDIMIENTO DEL AC | R76: CSC-MELISSA | S76: SI | T76: QUEJA | U76: Si | V76: SI | W76: A/C | X76: PENDIENTE MELISSA
A77: 498 | B77: 2018-05-06 | C77: x | E77: 709 | F77: c1 | G77: Hotel | H77: La música del restaurante muy alta, al final del día necesitamos descansar y cenar en una tranquila y silenciosa atmosfera | N77: 2018-05-40 | O77: 18 | P77: VERDE | Q77: PREGUNTAR A DON GERA SOBRE ESTO Y HABLAR CON JOSUÉ | R77: CSC-LIZ | S77: SI | T77: QUEJA | U77: Si | V77: SI | W77: Musica restaurantes | X77: PENDIENTE MELISSA
A78: 499 | B78: 2018-05-07 | C78: x | E78: 509 | F78: c1 | G78: Restaurante | H78: Más variedad de frutas y cereales calientes como avena | N78: 2018-05-56 | O78: 18 | P78: ROJA | Q78: DIEGO ESTÁ TRABAJANDO EN ESO | R78: CSC-DIEGO | S78: SI | T78: QUEJA | U78: Si | V78: SI | W78: Calidad comida | X78: VIENEN DE CAMINO
A79: 500 | B79: 2018-05-07 | C79: x | E79: 212 | F79: c1 | G79: Habitación | H79: Cuando uno esta esperando un huésped, sería genial tener una habitación fria, toma un tiempo para que esta se enfrie | N79: 2018-05-57 | O79: 18 | P79: Amarilla | Q79: AGREGAR EN EL DIRECTORIO DE LA HABITACION LAS PRACTICAS SOSTENIBLES POR QUE LAS NO SE DEBE TENER EL AC ENCENDIDO | R79: CSC-DARIEL | S79: SI | T79: QUEJA | U79: Si | V79: SI | W79: A/C | X79: PENDIENTE MELISSA
A80: 501 | B80: 2018-05-07 | C80: x | E80: 503 | F80: c1 | G80: Restaurante | H80: Más vegetales con la carne | N80: 2018-05-58 | O80: 18 | P80: ROJA | Q80: COORDINAR LA VISITA DE UN INSPECTOR QUE VALORE LA CANTIDAD DE GUARNICIONES | R80: CSC-GREIVIN | S80: SI | T80: QUEJA | U80: Si | V80: SI | W80: Calidad comida
A81: 502 | B81: 2018-05-08 | C81: x | E81: 510 | F81: c1 | G81: Habitación | H81: La tapa de coffee maker esta rota | O81: 18 | P81: VERDE | Q81: REVISAR EL COFFE MAKER | R81: CSC-MELISSA | S81: SI | T81: QUEJA | U81: Si | V81: SI | W81: HABITACIONES | X81: HABLAR CON DIEGO C
A82: 503 | B82: 2018-05-08 | C82: x | E82: 510 | F82: c1 | G82: Habitación | H82: El sol de la tarde pega directo a la habitación, deberia haber una pantalla que cubra esto | O82: 18 | P82: Amarilla | Q82: PONER UN POLARIZADO EN LA PARTE SUPERIOR DE LA VENTANA | R82: CSC-DARIEL | S82: SI | T82: QUEJA | U82: Si | V82: SI | W82: HABITACIONES | X82: PENDIENTE
A83: 504 | B83: 2018-05-07 | C83: x | E83: 706 | F83: C1 | G83: Restaurantes | H83: Huesped se queja de la poca variedad en comidas y pide mayor variedad en las opciones. | N83: 2018--05-78 | O83: 18 | P83: ROJA | Q83: DIEGO VA A INVESTIGAR SI QUE COMIÓ EL CLIENTE // UNIR TODOS LOS MENÚS DE CENA INCLUIDA | R83: CSC-DIEGO | S83: SI | T83: QUEJA | U83: Si | V83: SI | W83: Calidad comida | X83: ESTÁ EN PROCESO DE COTIZACIÓN
A84: 505 | B84: 2018-05-09 | C84: x | E84: 606 | F84: c1 | G84: Spa | H84: Ayer solicité un masaje en el Spa, más alla de haber sido una experiencia relajante, quede toda adolorida e inflamada del mal uso de la tecnica , recomiendo para futuros clientes que supervisen el entrenamiento del personal. | O84: 18 | P84: ROJA | Q84: HABLAR CON YEIMY | R84: CSC-LIZ | S84: SI | T84: QUEJA | U84: Si | V84: SI | W84: Spa | X84: PENDIENTE MELISSA
A85: 506 | B85: 2018-05-09 | C85: x | E85: 305 | F85: c1 | G85: Habitacion | H85: Habia comida vieja en la refri de las personas que estuvieron antes que nosotros | N85: 2018-05-83 | O85: 18 | P85: ROJA | Q85: QUE LAS SUPERVISORAS DE HABITACIONES TENGAN MAS CUIDADO | R85: CSC-MELISSA | S85: SI | T85: QUEJA | U85: Si | V85: SI | W85: HABITACIONES | X85: PENDIENTE CON DARIEL
A86: 507 | B86: 2018-05-09 | H86: A veces los empleados no entienden lo que uno pregunta,pura barrera del lenguaje | O86: 18 | P86: Amarilla | Q86: DIEGO VA HABLAR CON DON GERA PARA VALORAR EL NIVEL DE INGLÉS ACTUAL | R86: CSC-DIEGO | S86: SI | T86: QUEJA | U86: Si | V86: SI | W86: Servicio cliente restaurante | X86: HABLAR CON DIEGO C
A87: 508 | B87: 2018-05-09 | C87: x | E87: 405 | F87: c1 | G87: Habitación | H87: A veces los empleados no entienden lo que uno pregunta,pura barrera del lenguaje | N87: 2018-05-87 | O87: 18 | P87: Amarilla | Q87: REVALORAR EL NIVEL DE INGLÉS QUE TIENEN LAS PRINCIPALES ÁREAS DE SERVICIO Y BUSCAR UN MECANISMO DE MEJORA | R87: CSC-GERENCIA | S87: SI | T87: QUEJA | U87: Si | V87: SI | W87: Servicio al cliente
A88: 509 | B88: 2018-05-09 | C88: x | E88: 304 | F88: c1 | G88: Habitación | H88: Camas muy altas | N88: 2018-05-88 | O88: 18 | P88: Amarilla | Q88: PEDIR LAS GRADAS A GILBERT | R88: CSC-LIZ | S88: SI | T88: QUEJA | U88: Si | V88: SI | W88: Camas altas | X88: PENDIENTE MELISSA
A89: 510 | B89: 2018-05-09 | C89: x | E89: 107 | F89: c1 | G89: Habitación | H89: Poner una silla en la habitacion sería util | N89: 2018-05-92 | O89: 18 | P89: ROJA | Q89: SILLAS VIENEN EN CAMINO | R89: CSC-GREIVIN | S89: SI | T89: QUEJA | U89: Si | V89: SI | W89: Silla en habitación | X89: HABLAR CON DIEGO C
A90: 511 | B90: 2018-05-09 | D90: x | G90: Bano de mujeres lockers | H90: El servicio está dañado, el tanque no se llena y el agua queda directa. Tiene muchisimo tiempo de estar así y se le ha dicho infinitas veces a mantemiento | K90: Kattia y Javier | O90: 18 | P90: ROJA | Q90: ARREGLARLO | R90: CSC-JAIRO | S90: SI | T90: QUEJA | U90: Si | V90: SI | W90: Lockers
A91: 512 | B91: 2018-05-08 | C91: x | E91: 109 (Inspector de agencia) | G91: Habitación | H91: La única crítica constructiva seria el cambiar las láminas de el techo de luz, ya que estan bastante tostadas por el sol y con un poco de moho, esto al menos en la habitación en la cual estuve. | O91: 18 | P91: Amarilla | Q91: REVISAR LA CONDICION DE ESA LÁMINA | R91: CSC-JAIRO | S91: SI | T91: QUEJA | U91: Si | V91: SI | W91: HABITACIONES
A92: 513 | B92: 2018-05-10 | C92: x | E92: 603 | F92: C1 | G92: Restaurantes | H92: Huespedes se quejan que solamente en el desayuno se ofrecen frutas, los señores me explican que en Europa ellos acostumbran a comer frutas tambíen al almuerzo y a la cena por lo que indican tengamos en cuenta este aspecto para un futuro tener mas huéspedes satisfechos. | K92: Luis Carlos | L92: Navarro | O92: 19 | P92: VERDE | Q92: INCLUIR EN LOS MENUS PARA EL ALMUERZO LA OPCIÓN DE PLATO DE FRUTAS | R92: CSC - DIEGO | S92: SI | T92: SUGERENCIA | U92: Si | V92: NO | W92: Plato de frutas
A93: 514 | B93: 2018-05-10 | C93: x | E93: 603 | F93: C1 | G93: Hotel | H93: Huéspedes se quejan de las clases de yoga, los mismos indican que debería ser solo para adultos, que el niño que se encontraba haciendo yoga con ellos de otra habitación solo los interrumpía y no permitía que las clases fueran tranquilas. | I93: Aconsejan indicar en recepcion a la hora del check-in que las clases de yoga no son para niños. | N93: 2018--05-93 | O93: 19 | P93: ROJA | Q93: RECEPCIÓN DEBE DE FUNCIONAR COMO FILTRO / OPORTUNIDAD DE SERVICIO DE GUARDERIA | R93: CSC - LIZ | S93: SI | T93: SUGERENCIA | U93: Si | V93: NO | W93: Clases de yoga | X93: VIENEN DE CAMINO
A94: 515 | B94: 2018-05-12 | C94: x | E94: 801 | F94: c1 | G94: Restaurante | H94: El desayuno esta bien, pero podría beneficiarse con frutas y jugos mas frescos | N94: 2018-05-114 | O94: 19 | P94: Desestimada | Q94: EXISTEN LAS OPCIONES | R94: CSC - DIEGO | S94: NO | T94: SUGERENCIA | U94: Si | V94: N/A | W94: Desestimado
A95: 516 | B95: 2018-05-10 | C95: x | E95: 702 | F95: c1 | G95: Habitación | H95: La ducha tiene una fuga que cae fuera del baño | N95: 2018-05-111 | O95: 19 | P95: ROJA | Q95: VALIDAR LO QUE DICE EL CLIENTE | R95: CSC - JAIRO | S95: SI | T95: QUEJA | U95: Si | V95: SI | W95: Fujas de agua
A96: 517 | B96: 2018-05-03 | C96: x | E96: 801 | F96: c1 | G96: Habitación | H96: Se quejan de que hace falta un basurero en la habitación para residuos NO reciclables, ya que únicamente hay para reciclaje aunque no se indica que tipo de desechos reciclables se pueden depositar. | N96: 2018--05-131 | O96: 19 | P96: VERDE | Q96: AVERIGUAR LA INFORMACIÓN EXISTENTE | R96: CSC - GREIVIN | S96: SI | T96: SUGERENCIA | U96: Si | V96: NO | W96: Reciclaje
A97: 518 | B97: 2018-05-13 | C97: x | E97: 201 | F97: C1 | G97: Habitación | H97: Los paneles solares para calentar agua parece que estan flojos en el techo y causan mucho ruido especialmente en las noches. | N97: 2018--05-136 | O97: 19 | P97: ROJA | Q97: PARECE SER QUE EL TUBO ESTÁ FLOJO | R97: CSC - JAIRO | S97: SI | T97: QUEJA | U97: Si | V97: NO | W97: Ruido sistema solar
A98: 519 | B98: 2018-05-14 | C98: x | E98: 904 | F98: C1 | G98: Habitación | H98: Huéspedes se quejan de gritos y ruidos fuertes en hab 903, al parecer discutiendo | I98: Verificar que pasa, huéspedes preocupados. | J98: Se llama a la hab 903 preguntando si todo se encuentra bien debido a un reporte de mucho ruido. Huésped indica que está todo bien. | K98: Luis Carlos | L98: Navarro | M98: Servicio al Cliente | O98: 19 | P98: ROJA | Q98: SOLUCIONADO | R98: CSC - GREVIN | S98: NO | T98: QUEJA | U98: Si | V98: SI | W98: Ruido habitación
A99: 520 | B99: 2018-05-14 | C99: x | E99: 303 | F99: C1 | G99: Restaurante | H99: El pescado que sirvieron en el sushi no estaba fresco y no fue una buena experiencia. | N99: 2018--05-139 | O99: 19 | P99: ROJA | Q99: COMUNICAR A DIEGO CAMBRONERO | R99: CSC - DIEGO | S99: SI | T99: QUEJA | U99: Si | V99: SI | W99: Calidad Sushi
A100: 521 | B100: 2018-05-15 | D100: x | G100: Restaurante Italiano | H100: La noche del 14/05/18 mientras varios huéspedes se encontraban cenando se presentaron varias goteras con una cantidad importante de agua ingresando la cual no pudo ser controlada sin que los huéspedes se enteraran ante el aguacero tan fuerte. El agua mojó un poco unos sillones y unas mesas cerca. | J100: Se llamó a areas públicas y a mantenimiento para controlar el agua con baldes y trapos. | K100: Luis Carlos | L100: Navarro | M100: Servicio al Cliente | O100: 19 | P100: ROJA | Q100: SOLUCIONADO - SE DESATERRARON LOS TUBOS | R100: CSC - JAIRO | S100: SI | T100: QUEJA | U100: Si | V100: NO | W100: Agua llovida italiano
A101: 522 | B101: 2018-05-15 | C101: X | E101: 201-304 | F101: c1 | G101: Hotel | H101: Huéspedes llaman indicando que no hay agua en las habitaciones. | J101: Se envía a mantenimiento a verificar el paso del agua debido a que no hay presión de agua, no solo las habitaciones sino también el área de recepción esta viendose afectada. Mantenimiento abrió la llave del agua que no se sabe porque se encontraba cerrada. | K101: Luis Carlos | L101: Navarro | M101: Servicio al Cliente | O101: 19 | P101: ROJA | Q101: SOLUCIONADO - KEYLOR ACCIDENTALMENTE CERRO LA LLAVE | R101: CSC - JAIRO | S101: NO | T101: QUEJA | U101: Si | V101: SI | W101: Agua potable
A102: 523 | B102: 2018-05-15 | C102: x | E102: 108 | F102: c1 | G102: Restaurante | H102: Relación precio-calidad muy costoso por lo que es. | N102: 2018-05-155 | O102: 19 | P102: ROJA | Q102: COMENTAR CON DIEGO | R102: CSC - DIEGO | S102: SI | T102: QUEJA | U102: Si | V102: SI | W102: Calidad comida
A103: 524 | B103: 2018-05-15 | C103: x | E103: 108 | F103: c1 | G103: Restaurante | H103: Falta una cafeteria para el almuerzo ligero, por ejemplo ensaladas sandwiches | N103: 2018-05-155 | O103: 19 | P103: Desestimada | Q103: EXISTEN LAS OPCIONES | R103: CSC - DIEGO | S103: NO | T103: SUGERENCIA | U103: Si | V103: NO | W103: Comidas snacks
A104: 525 | B104: 2018-05-15 | C104: x | E104: 403 | F104: c1 | G104: Hotel | H104: Se podría tener una maquina de hielo más cerca a la habitacion | N104: 2018-05-152 | O104: 19 | P104: VERDE | Q104: VALORAR LA POSIBILIDAD DE PONER UNA MÁQUINA DE HIELO | R104: CSC - GERENCIA | S104: SI | T104: SUGERENCIA | U104: Si | V104: NO | W104: Maquina de hielo
A105: 526 | B105: 2018-05-17 | C105: X | E105: 201 | F105: c1 | G105: Habitación | H105: Huespedes se quejan de ruidos en el techo durante toda la noche, indican que son animales y que provocan mucho ruido. | J105: Se cambian de habitación a la 104 y se les ofrece disculpas. | K105: Luis Carlos | L105: Navarro | M105: Servicio al Cliente | O105: 19 | P105: ROJA | Q105: VALIDAR LO QUE DICE EL CLIENTE | R105: CSC - JAIRO | S105: SI | T105: QUEJA | U105: Si | V105: SI | W105: Ruido habitación
A106: 527 | B106: 2018-05-17 | C106: x | E106: 212 | F106: C1 | G106: Habitación | H106: Huesped se queja de la presencia de hormigas en la habitación, se encuentra disgustada y quiere que le eliminen los insectos. | J106: Se verifica con ama de llaves y se procede a colocar el veneno. | K106: Luis carlos | L106: Navarro | M106: Servicio al Cliente | O106: 19 | P106: ROJA | Q106: PROGRAMAR PLAN DE FUMIGACIÓN | R106: CSC - JAIRO | S106: SI | T106: QUEJA | U106: Si | V106: SI | W106: Plagas Habitaciones
A107: 528 | C107: SI | D107: NO | F107: Tipo de ciente ( C1, C2, C3) | J107: Acción Inmediata | K107: Nombre | L107: Apellido | M107: Departamento | N107: Código de evaluación | U107: Si
A108: 529 | B108: 2018-05-04 | C108: x | E108: 606 | F108: C1 | G108: Restaurante | H108: Se quejan del estaurante italiano e indican que debería cambiarse y tener un restaurante de mariscos. | N108: 2018--05-23 | P108: Desestimada | Q108: NO HAY POSIBILIDAD DE OTRO REST | T108: SUGERENCIA | U108: Si | W108: Calidad comida
A109: 530 | B109: 2018-05-05 | C109: x | E109: 304 | F109: C1 | G109: Habitación | H109: Huespedes se quejan de la falta de gavetas para la ropa. | N109: 2018--05-18 | P109: Desestimada | Q109: NO ESOOACIO PARA MAS GAVETAS | T109: SUEGERENCIA | U109: Si | W109: HABITACIONES
A110: 531 | B110: 2018-05-09 | C110: x | E110: 304 | F110: c1 | G110: Habitación | H110: No habia lugar en el armario, solo los percheros | N110: 2018-05-88 | P110: Desestimada | Q110: NO HAY ESPACIO PARA AMPLIAR ROPEROS | T110: SUGERENCIA | U110: Si | V110: SI
A111: 532 | B111: 2018-05-17 | C111: x | E111: 202 | F111: c1 | G111: Restaurante | H111: Sería delicioso poder tener aguacate en el desayuno | N111: 2018-05-164 | O111: 20 | P111: Desestimada | Q111: SUBE COSTOS | T111: SUGERENCIA | U111: Si | W111: Calida Desayuno
A112: 533 | B112: 2018-05-18 | C112: x | E112: 203 | F112: c1 | G112: Restaurante | H112: En el bar las bebidas no siempre son servidas de igual forma, una vez nos dieron el coctel tipo frozen y otra a las rocas | N112: 2018-05-173 | O112: 20 | P112: ROJA | Q112: DIEGO VA A INVESTIGAR | R112: CSC-DIEGO | T112: QUEJA | U112: Si | W112: Cockteles bares
A113: 534 | B113: 2018-05-17 | C113: x | E113: 308 | F113: c1 | G113: Habitación | H113: Paraguas en la habitación | N113: 2018-05-175 | O113: 20 | P113: Desestimada | Q113: SUBE COSTOS | U113: Si
A114: 535 | B114: 2018-05-18 | C114: x | E114: 405 | F114: c1 | G114: Restaurante | H114: Vino muy caro en comparación con otros hoteles en los que hemos estado en costa rica | N114: 2018-05-181 | O114: 20 | P114: ROJA | Q114: DIEGO VA A INVESTIGAR | R114: CSC-DIEGO | S114: SI | T114: QUEJA | U114: Si | V114: SI | W114: Cockteles bares
A115: 536 | B115: 2018-05-18 | C115: x | E115: 408 | F115: c1 | G115: Piscinas | H115: Necesidad de mas sombras en el area de piscinas | N115: 2018-05-182 | O115: 20 | P115: ROJA | Q115: COMENTAR LA NECESIDAD LA NECESIDAD CON DON Minor | R115: CSC-GERENCIA | S115: SI | T115: QUEJA | U115: Si | V115: SI | W115: Piscinas
A116: 537 | B116: 2018-05-19 | C116: x | E116: 207 | F116: c2 | G116: Hotel | H116: Cliente está molesta por que quiere traer amigos a cenar con ella y las políticas del hotel no lo permiten y tampoco hay información sobre esto en ningún lado | I116: Que se agregue la informción de la restricción en la página y en el hotel | J116: Se le permitió ingresar las visitas | K116: Liz | L116: Aguilar | M116: Recepción | O116: 20 | P116: ROJA | Q116: Elaborar rotulos informando la restricción | R116: CSC-DARIEL | S116: NO | T116: QUEJA | U116: Si | V116: NO | W116: Vistas de huespedes
A117: 538 | B117: 2018-05-20 | C117: x | E117: 604 | F117: C1 | G117: Restaurante | H117: Huésped reporta que durante el desayuno una cucaracha apareción en su mesa. | J117: Pedir disculpas por el incidente y revisar el area | K117: César | L117: Morales | M117: Servicio al cliente | O117: 20 | P117: ROJA | Q117: FUMIGAR | R117: CSC-JAIRO | S117: SI | T117: QUEJA | U117: Si | V117: SI | W117: Plagas Habitaciones
A118: 539 | B118: 2018-05-20 | C118: x | E118: 604 | F118: C1 | G118: Piscina | H118: Huésped reporta que encontró un raton muerto en la parte alta de las termales. | J118: Pedir disculpas por el incidente y revisar el area reportada | K118: César | L118: Morales | M118: Servicio al cliente | O118: 20 | P118: Desestimada | Q118: MUY DIFICIL CONTROLAR UN AREA ABIERTA | S118: NO | T118: QUEJA | U118: Si | V118: NO | W118: Plagas Habitaciones
A119: 540 | B119: 2018-05-20 | C119: x | E119: 903 | F119: C1 | G119: Restaurante | H119: Huéspedes se quejan porque no hay ventiladores en los restaurantes y porque no hay gran variedad de opciones. | N119: 2018--05-198 | O119: 20 | P119: ROJA | Q119: DIEGO VA A INVESTIGAR | R119: CSC-DIEGO | S119: SI | T119: QUEJA | U119: Si | V119: SI | W119: Restaurante
A120: 541 | B120: 2018-05-20 | D120: Heiner botones | E120: 509 | G120: Habitación | H120: Cuando el botones está entregando la habitación al check in, encuantra en la refri un a botella grade metálica de los clientes que estuvieron anteriormente ahí | J120: Se retira la botella | K120: Liz | L120: Aguilar | M120: Recepción | O120: 20 | P120: ROJA | Q120: IMPLEMENTACIÓN DE CHECK LIST HABITACIONES | R120: CSC-LIZ | S120: NO | T120: QUEJA | U120: Si | V120: SI | W120: HABITACIONES
A121: 542 | B121: 2018-05-21 | C121: Oscar Botones | E121: 204 | G121: Habitación | H121: Cuando el botones está entregando la hab al check-in, encuentra en el mini bar una botellita pequeña de vino rosa a la mitad posiblemente de los huéspedes anteriores. | J121: Se retira la botella en el momento. | K121: Luis Carlos | L121: Navarro | M121: Servicio al Cliente | O121: 20 | P121: ROJA | Q121: IMPLEMENTACIÓN DE CHECK LIST HABITACIONES | R121: CSC-LIZ | S121: NO | T121: QUEJA | U121: Si | V121: SI | W121: HABITACIONES
A122: 543 | B122: 2018-05-21 | C122: x | E122: 601 | F122: C1 | G122: Habitación | H122: Huéspedes se quejan de que el baño huele a cigarro como si hubieran fumado, además se queja que el agua caliente es muy caliente y es peligrosa. | N122: 2018--05-206 | O122: 20 | P122: ROJA | Q122: PONER LAS SEÑALIZACIÓN EN LA DUCHA | R122: CSC-JAIRO | S122: SI | T122: QUEJA | U122: Si | V122: SI | W122: HABITACIONES
A123: 544 | B123: 2018-05-21 | C123: x | E123: 207 | F123: C1 | G123: Habitación | H123: Se quejan de que no hay espejo en la habitación. | N123: 2018--05-210 | O123: 20 | P123: Amarilla | Q123: MELISSA VA A REVISAR / SI EXISTE EL ESPEJO | R123: CSC-MELISSA | S123: NO | T123: QUEJA | U123: Si | V123: SI | W123: HABITACIONES
A124: 545 | B124: 2018-05-21 | C124: x | E124: 207 | F124: C1 | G124: Piscinas | H124: Mejores camas de bronceado y más sombra en el area de piscinas. | N124: 2018--05-210 | O124: 20 | P124: ROJA | Q124: COMENTAR LA NECESIDAD LA NECESIDAD CON DON Minor | R124: CSC-GERENCIA | S124: SI | T124: QUEJA | U124: Si | V124: SI | W124: Piscinas
A125: 546 | B125: 2018-05-21 | C125: x | E125: 207 | F125: C1 | G125: Hotel | H125: Huéspedes se quejan de los brazaletes, solicitan que se eliminen ya que eso es barato y se ve mal. | N125: 2018--05-210 | O125: 20 | P125: ROJA | Q125: BUSCAR LA POSIBILIDAD | R125: CSC - GERENCIA | S125: SI | T125: QUEJA | U125: Si | V125: SI | W125: Brazaletes
A126: 547 | B126: 2018-05-21 | C126: x | E126: 207 | F126: C1 | G126: Hotel | H126: Huéspedes se quejan porque no es permitido ingresar invitados o amigos de otros hoteles, indican que parece un hospital o una carcel. | N126: 2018--05-210 | O126: 20 | P126: ROJA | Q126: Elaborar rotulos informando la restricción | R126: CSC-DARIEL | S126: NO | T126: QUEJA | U126: Si | V126: SI | W126: Vistas de huespedes
A127: 548 | B127: 2018-05-21 | C127: x | E127: 609 | F127: C1 | G127: Restaurante | H127: Huéspedes de Caravan les salió una cucaracha de la mesa mientras se encontraban comiendo. | J127: Se les cambió de mesa y se pidieron las disculpas del caso. | K127: Luis Carlos | L127: Navarro | M127: Servicio al Cliente | O127: 20 | P127: ROJA | Q127: YA SE FUMIGÓ | R127: CSC-JAIRO | S127: SI | T127: QUEJA | U127: Si | V127: SI | W127: Plagas Habitaciones
A128: 549 | B128: 2018-05-22 | C128: x | E128: 507 | F128: C2 | G128: Habitación | H128: La huésped se mostró muy molesta poe que no tenia un maletero extra , el cual había solicitado varias veces. | I128: Entregaramos el maletero | J128: Se entregó el maletero y además se le proporcionó dos bebidas de cortesía. | K128: César | L128: Morales | M128: Servicio al Cliente | O128: 20 | P128: ROJA | Q128: REVISAR QUIEN ERA EL ANFITRIÓN / NO SE ENCONTRÓ EVIDENCIA QUE SUSTENTARA ESTA AFIRMACIÓN | R128: CSC-LIZ | S128: NO | T128: QUEJA | U128: Si | V128: SI | W128: Plagas Habitaciones
A129: 550 | B129: 2018-05-22 | C129: x | E129: 112 | F129: c1 | G129: Habitación | H129: "El único problema fue que habían pequeños ciempies en el baño" | N129: 2018-05-220 | O129: 20 | P129: ROJA | Q129: FUMIGAR | R129: CSC-JAIRO | S129: SI | T129: QUEJA | U129: Si | V129: SI | W129: Plagas Habitaciones
A130: 551 | B130: 2018-05-24 | C130: x | E130: 411 | F130: C1 | G130: Hotel | H130: Huesped indica que el hotel debería tener un poco de baile por la tarde o noche, como un salón de baile con algún entretenimiento. | N130: 2018-05-233 | O130: 21 | P130: Desestimada | Q130: VA EN CONTRA DEL CONCEPTO FAMILIAR DEL HOTEL | S130: NO | T130: SUGERENCIA | U130: Si | V130: N/A | W130: Desestimado
A131: 552 | B131: 2018-05-25 | C131: x | E131: 304 | F131: C1 | G131: Habitación | H131: Huéspedes se quejan del tamaño de la habitación e indican que es muy ajustada para 3 o 4 personas, además dicen que se ocupan 2 sanitarios y 2 lavatorios especialmente cuando hay 4 personas en la misma habitación. | I131: 2 lavatorios por habitación. | N131: 2018-05-239 | O131: 21 | P131: Desestimada | Q131: EXISTEN CATEGORIAS DE HABITACIONES QUE SUPLEN ESTA NECESIDAD | S131: NO | T131: SUGERENCIA | U131: Si | V131: N/A | W131: Desestimado
A132: 553 | B132: 2018-05-25 | G132: Lockers | H132: aL ser las 11:30am el encargado de lockers Javier reporta que el area del gimnasio, lockers y hamacas presenta un acceso complicado debido a que los compañeros de restaurantes estaban lavando el piso del Ti Cain, la caída de jabón y agua era constante impidiendo el acceso de una cosiderable cantidad de huespedes presentes en las piscinas, era complicado entrar por el área principal de lockers. El jabón estaba en las aceras lo cuál pudo provocar que algun huesped sufriera una caída. | J132: Mientras se fue a chequear se le pidió disculpas a dos huéspedes y se les orientó para ingresar por el lado del consultorio donde no había agua y jabón cayendo de la parte de arriba. | K132: Luis Carlos/Deyvin | L132: Navarro/Aguirre | M132: RECEPCION | O132: 21 | P132: ROJA | Q132: SE DEBE DE COMUNICA CUALQUIER ACCION QUE ALTERE LA OPERACIÓN DE OTRAS ÁREAS | R132: CSC - DIEGO | S132: NO | T132: QUEJA | U132: Si | V132: NO | W132: Falta de comunicación
A133: 554 | B133: 2018-05-25 | C133: x | E133: 210 | F133: c1 | G133: Restaurante | H133: Restaurantes muy caros, mejor si hubiera mas comida tipica y con precios mas bajos. | N133: 2018-05-242 | O133: 21 | P133: ROJA | Q133: SE CONTRATARÁ A UNA ASESORA EXTERNA PARA TRATAR DE SOLUCIONAR ESTE PROBLEMA DE LOS RESTAURANTES | R133: CSC - GREIVIN | S133: SI | T133: QUEJA | U133: Si | V133: SI | W133: Calidad comida
A134: =A133+1 -> 555 | B134: 2018-05-25 | C134: x | E134: 901 | F134: c1 | G134: Habitación | H134: Huésped reporta que encontró muchos insectos incluyendo 2 cucarachas . | N134: 2018-05-244 | O134: 21 | P134: ROJA | Q134: HABITACIONES YA FUERON FUMIGADAS | R134: CSC - JAIRO | S134: NO | T134: QUEJA | U134: Si | V134: SI | W134: Plagas Habitaciones
A135: 556 | B135: 2018-05-25 | C135: x | F135: C1 | G135: Habitación | H135: Huésped recomienda que se deberia cambiar el nombre de las habitaciones, ya que según su opinión el nombre Junior Suite no va con las características que tienen nuestras habitaciones, de hecho comenta que la habitación le pareció estupenda y da como ejemplo de nombre Premium | N135: 2018-05-245 | O135: 21 | P135: Desestimada | S135: NO | T135: SUGERENCIA | U135: Si | V135: NO | W135: Desestimado
A136: 557 | B136: 2018-05-25 | C136: x | F136: C1 | G136: Restaurante | H136: La relación precio calidad de los restaurantes es mala, como ejemplo dice que la ultima noche pidió comida en el sushi bar y esto fue según ella una desgracia. | N136: 2018-05-245 | O136: 21 | P136: ROJA | Q136: COMENTAR CON DIEGO | R136: CSC - DIEGO | S136: SI | T136: QUEJA | U136: Si | V136: SI | W136: Calidad Sushi
A137: 558 | B137: 2018-05-25 | C137: x | F137: C1 | G137: Botones | H137: La huésped comenta que al haber pedido algo en el sushi cuando se lo entregaron el botones no fue amable. | N137: 2018-05-245 | O137: 21 | P137: ROJA | Q137: COMENTAR CON LIZ | R137: CSC - LIZ | S137: SI | T137: QUEJA | U137: Si | V137: SI | W137: Servicio cliente botones
A138: 559 | B138: 2018-05-26 | C138: x | E138: 206 | F138: c3 | G138: Habitación | H138: huespedes se apersonaron muy molestos al area de recepción para quejarse por que no pudieron dormir debido a que la alarma de incendios se activó la noche anterior, se activó a las 2am y de nuevo 5am, no dieron chance a ninguna solución mas que hablar con el gerente. | J138: se ofrecieron las disculpas debidas y se les dijo que el encargado hablaria con ellos (en este caso César de Guest service) él les ofreció una cena de cortesia a lo que los huespedes se mostraron agradecidos y contentos. | K138: Fernando | L138: Sandoval | M138: Recepción | O138: 21 | P138: ROJA | Q138: El 28/05 LAS PERSONAS DE INSOTEK REALIZARON CAMBIOS EN LA CONFIGURACIÓN | S138: NO | T138: QUEJA | U138: Si | V138: SI | W138: Servicio cliente botones
A139: 560 | B139: 2018-05-26 | C139: x | E139: 207-208 | F139: c3 | G139: Habitación | H139: huespedes se apersonaron muy molestos al area de recepción para quejarse por que no pudieron dormir debido a que la alarma de incendios se activó la noche anterior, se activó a las 2am y de nuevo 5am, no dieron chance a ninguna solución mas que hablar con el gerente. | K139: Fernando | L139: Sandoval | M139: Recepción | O139: 21 | P139: ROJA | Q139: El 28/05 LAS PERSONAS DE INSOTEK REALIZARON CAMBIOS EN LA CONFIGURACIÓN | S139: NO | T139: QUEJA | U139: Si | V139: SI | W139: Alarmas
A140: 561 | B140: 2018-05-26 | E140: 306 | F140: c1 | G140: Habitación | H140: huespedes nos informan de foma traquila que la alarma los despertó la noche anterior mas no se encontraban molestos al respecto | J140: nos disculpamos debidamente con ellos mas no mostraron molestia alguna, la unica solución solicitada fue que trataramos que no ocurra de nuevo | K140: Fernando | L140: Sandoval | M140: Recepción | O140: 21 | P140: ROJA | Q140: El 28/05 LAS PERSONAS DE INSOTEK REALIZARON CAMBIOS EN LA CONFIGURACIÓN | S140: NO | T140: QUEJA | U140: Si | V140: SI | W140: Alarmas
A141: 562 | B141: 2018-05-26 | D141: óscar Retana | E141: 404 | G141: Habitación | H141: Él botones llega a la habitación a dejar el check in y encuentran una cerveza por la mitad en la refri | I141: Checquear bien las habitaciones | K141: Liz | L141: Aguilar | M141: Recpeción | O141: 21 | P141: ROJA | Q141: COMENTAR CON EL EQUIPO DE AMA DE LLAVES | R141: CSC - MELISSA | S141: SI | T141: QUEJA | U141: Si | V141: SI | W141: HABITACIONES
A142: 563 | B142: 2018-05-26 | C142: x | E142: 205 | F142: C1 | G142: Restaurante | H142: Huespedes se quejan de la poca variedad en las comidas | N142: 2018-05-248 | O142: 21 | P142: ROJA | Q142: SE CONTRATARÁ A UNA ASESORA EXTERNA PARA TRATAR DE SOLUCIONAR ESTE PROBLEMA DE LOS RESTAURANTES | R142: CSC - GREIVIN | S142: SI | T142: QUEJA | U142: Si | V142: SI | W142: Calidad comida
A143: 564 | B143: 2018-05-27 | C143: x | E143: 903 | F143: c1 | G143: Restaurante | H143: necesitamos mejor comida en los restaurantes | N143: 2018-05-258 | O143: 21 | P143: ROJA | Q143: SE CONTRATARÁ A UNA ASESORA EXTERNA PARA TRATAR DE SOLUCIONAR ESTE PROBLEMA DE LOS RESTAURANTES | R143: CSC - GREIVIN | S143: SI | T143: QUEJA | U143: Si | V143: SI | W143: Calidad comida
A144: 565 | B144: 2018-05-27 | C144: x | E144: 512 | F144: c1 | G144: Restaurante | H144: No hay carne en el desayuno, la variedad de la comida es limitada, y el tamaño de las sopas no es el ideal | N144: 2018-05-262 | O144: 21 | P144: ROJA | Q144: SE CONTRATARÁ A UNA ASESORA EXTERNA PARA TRATAR DE SOLUCIONAR ESTE PROBLEMA DE LOS RESTAURANTES | R144: CSC - GREIVIN | S144: SI | T144: QUEJA | U144: Si | V144: SI | W144: Calidad comida
A145: 566 | B145: 2018-05-26 | C145: x | E145: 504 | F145: c1 | G145: Restaurante | H145: Muy mala experiencia en el restaurante con un salonero, el cual no fue atento, con un mal servicio. | N145: 2018-05-263 | O145: 21 | P145: ROJA | Q145: COMENTAR CON DIEGO | R145: CSC - DIEGO | S145: SI | T145: QUEJA | U145: Si | V145: SI | W145: Servicio cliente restaurante
A146: 567 | B146: 2018-05-26 | C146: x | E146: 504 | F146: c1 | G146: Habitación | H146: Hab necesita mejor luz | O146: 21 | P146: ROJA | Q146: YA VIENEN LAS LÁMPARAS | R146: CSC - GREIVIN | S146: SI | T146: QUEJA | U146: Si | V146: SI | W146: Iluminación hab closet
A147: 568 | B147: 2018-05-03 | C147: x | G147: Restaurantes | H147: Opciones de almuerzo y cena muy limitadas | K147: TripAdvisor | O147: 21 | P147: ROJA | Q147: SE CONTRATARÁ A UNA ASESORA EXTERNA PARA TRATAR DE SOLUCIONAR ESTE PROBLEMA DE LOS RESTAURANTES | R147: CSC - GREIVIN | S147: SI | T147: QUEJA | U147: Si | V147: SI | W147: Calidad comida
A148: 569 | B148: 2018-05-07 | C148: x | G148: Restaurante | H148: Los alimentos no son de buena calidad y muy básicos, el desayuno es muy rutinario y es necesario tener mas variedad de opciones. Además el precio no se compara con el servicio y calidad. | K148: TripAdvisor | O148: 21 | P148: ROJA | Q148: SE CONTRATARÁ A UNA ASESORA EXTERNA PARA TRATAR DE SOLUCIONAR ESTE PROBLEMA DE LOS RESTAURANTES | R148: CSC - GREIVIN | S148: SI | T148: QUEJA | U148: Si | V148: SI | W148: Calidad comida
A149: 570 | B149: 2018-05-07 | C149: x | G149: Piscinas | H149: Limitadas y pequeñas areas de piscina | K149: TripAdvisor | O149: 21 | P149: Desestimada | Q149: NO ES UN CONCEPTO DE BALNEARIO | S149: NO | T149: SUGERENCIA | U149: Si | V149: N/A | W149: Piscinas
A150: 571 | B150: 2018-05-07 | C150: x | G150: Restaurante | H150: Opciones en las comidas de los restaurantes son muy limitadas. | K150: TripAdvisor | O150: 21 | P150: ROJA | Q150: SE CONTRATARÁ A UNA ASESORA EXTERNA PARA TRATAR DE SOLUCIONAR ESTE PROBLEMA DE LOS RESTAURANTES | R150: CSC - GREIVIN | S150: SI | T150: QUEJA | U150: Si | V150: SI | W150: Calidad comida
A151: 572 | B151: 2018-05-08 | C151: x | G151: Hotel | H151: Comida y servicios no se comparan con precio, esperaba más para el dinero que cuesta el hospedaje. | K151: TripAdvisor | O151: 21 | P151: ROJA | Q151: SE CONTRATARÁ A UNA ASESORA EXTERNA PARA TRATAR DE SOLUCIONAR ESTE PROBLEMA DE LOS RESTAURANTES | R151: CSC - GREIVIN | S151: SI | T151: QUEJA | U151: Si | V151: SI | W151: Calidad comida
A152: 573 | B152: 2018-05-08 | C152: x | G152: Hotel | H152: El hotel es bueno excepto por la comida (de regular a mediocre) y algunos empleados, como por ejemplo la persona en recepción que no quiso cambiar dólares. | K152: TripAdvisor | O152: 21 | P152: ROJA | Q152: SE CONTRATARÁ A UNA ASESORA EXTERNA PARA TRATAR DE SOLUCIONAR ESTE PROBLEMA DE LOS RESTAURANTES | R152: CSC - GREIVIN | S152: SI | T152: QUEJA | U152: Si | V152: SI | W152: Calidad comida
A153: 574 | B153: 2018-05-08 | C153: x | G153: Habitación | H153: El ventilador no se puede apagar a menos que se desactive la electricidad de toda la habitación. | K153: TripAdvisor | O153: 21 | P153: ROJA | Q153: ETIQUETAR LOS APAGADORES | R153: CSC - GREIVIN | S153: SI | T153: QUEJA | U153: Si | V153: NO | W153: Etiquetas en apagadores
A154: 575 | B154: 2018-05-08 | C154: x | G154: Restaurante | H154: Los precios de los restaurantes son un poco caros. | K154: TripAdvisor | O154: 21 | P154: ROJA | Q154: SE CONTRATARÁ A UNA ASESORA EXTERNA PARA TRATAR DE SOLUCIONAR ESTE PROBLEMA DE LOS RESTAURANTES | R154: CSC - GREIVIN | S154: SI | T154: QUEJA | U154: Si | V154: SI | W154: Calidad comida
A155: 576 | B155: 2018-05-09 | C155: x | G155: Restaurante | H155: El costo de las bebidas de los bares y las cmoidas en restaurantes es elevado. | K155: TripAdvisor | O155: 21 | P155: ROJA | Q155: SE CONTRATARÁ A UNA ASESORA EXTERNA PARA TRATAR DE SOLUCIONAR ESTE PROBLEMA DE LOS RESTAURANTES | R155: CSC - GREIVIN | S155: SI | T155: QUEJA | U155: Si | V155: SI | W155: Calidad comida
A156: 577 | B156: 2018-05-12 | C156: x | G156: Restaurante | H156: Variedad de opciones en el desayuno no es muy amplia. | K156: TripAdvisor | O156: 21 | P156: ROJA | Q156: SE CONTRATARÁ A UNA ASESORA EXTERNA PARA TRATAR DE SOLUCIONAR ESTE PROBLEMA DE LOS RESTAURANTES | R156: CSC - GREIVIN | S156: SI | T156: QUEJA | U156: Si | V156: SI | W156: Calidad comida
A157: 578 | B157: 2018-05-14 | C157: x | G157: Restaurante | H157: El desayuno puede mejorar, Costa Rica tiene muchas frutas y deberían incluirse en el desayuno ya que solamente había piña y banano como únicas opciones. | K157: TripAdvisor | O157: 21 | P157: ROJA | Q157: SE CONTRATARÁ A UNA ASESORA EXTERNA PARA TRATAR DE SOLUCIONAR ESTE PROBLEMA DE LOS RESTAURANTES | R157: CSC - GREIVIN | S157: SI | T157: QUEJA | U157: Si | V157: SI | W157: Calidad comida
A158: 579 | B158: 2018-05-14 | C158: x | G158: Restaurante | H158: Precio elevado de los restaurantes | K158: TripAdvisor | O158: 21 | P158: ROJA | Q158: SE CONTRATARÁ A UNA ASESORA EXTERNA PARA TRATAR DE SOLUCIONAR ESTE PROBLEMA DE LOS RESTAURANTES | R158: CSC - GREIVIN | S158: SI | T158: QUEJA | U158: Si | V158: SI | W158: Calidad comida
A159: 580 | B159: 2018-05-22 | C159: x | G159: Restaurante | H159: Precios increiblemente elevados | K159: TripAdvisor | O159: 21 | P159: ROJA | Q159: SE CONTRATARÁ A UNA ASESORA EXTERNA PARA TRATAR DE SOLUCIONAR ESTE PROBLEMA DE LOS RESTAURANTES | R159: CSC - GREIVIN | S159: SI | T159: QUEJA | U159: Si | V159: SI | W159: Calidad comida
A160: 581 | B160: 2018-05-22 | C160: x | G160: Habitación | H160: Habitación pequeña y con pequeños insectos , las paredes son delgadas y se escucha todo además durante la noche había un ruido extraño en el techo que interrumpía el sueño. | K160: TripAdvisor | O160: 21 | P160: ROJA | Q160: VALIDAR CON MELISSA Y JAIRO QUÉ HABITACIONES TIENEN RUIDO | R160: CSC - MELISSA | S160: SI | T160: QUEJA | U160: Si | V160: SI | W160: Ruido habitación
A161: 582 | B161: 2018-05-23 | C161: x | G161: Restaurante | H161: Comidas limitadas y menú de ensaladas no es amplio. | K161: TripAdvisor | O161: 21 | P161: ROJA | Q161: SE CONTRATARÁ A UNA ASESORA EXTERNA PARA TRATAR DE SOLUCIONAR ESTE PROBLEMA DE LOS RESTAURANTES | R161: CSC - GREIVIN | S161: SI | T161: QUEJA | U161: Si | V161: SI | W161: Calidad comida
A162: 583 | B162: 2018-05-23 | C162: x | G162: Restaurante | H162: Opciones limitadas en los restaurantes. | K162: TripAdvisor | O162: 21 | P162: ROJA | Q162: SE CONTRATARÁ A UNA ASESORA EXTERNA PARA TRATAR DE SOLUCIONAR ESTE PROBLEMA DE LOS RESTAURANTES | R162: CSC - GREIVIN | S162: SI | T162: QUEJA | U162: Si | V162: SI | W162: Calidad comida
A163: 584 | B163: 2018-05-26 | C163: x | G163: Restaurante | H163: Menu limitado especialmente si el restaurante principal está cerrado, no hay variedad de comida costarricense. | K163: TripAdvisor | O163: 21 | P163: ROJA | Q163: SE CONTRATARÁ A UNA ASESORA EXTERNA PARA TRATAR DE SOLUCIONAR ESTE PROBLEMA DE LOS RESTAURANTES | R163: CSC - GREIVIN | S163: SI | T163: QUEJA | U163: Si | V163: SI | W163: Calidad comida
A164: 585 | B164: 2018-05-28 | C164: x | E164: 410 | G164: Yoga | H164: Yoga sería mejor si las clases fueran avanzadas | M164: 2018-05-273 | O164: 21 | P164: Desestimada | Q164: SE ESTABLECIÓ CLASES BÁSICAS PARA QUE TODOS LOS CLIENTES PUEDAN APROVECHAR LAS SESIONES | T164: SUGERENCIA | U164: Si | V164: N/A | W164: Desestimado
A165: 586 | B165: 2018-05-28 | C165: x | E165: 410 | G165: Gym | H165: Sería bueno tener una banca en el gimnasio para poder hacer las pesas | M165: 2018-05-273 | O165: 21 | P165: Desestimada | Q165: LAS MAQUINAS OFRECEN UNA ESTACIÓN PARA ALZAR PESAS | T165: SUGERENCIA | U165: Si | V165: N/A | W165: Desestimado
A166: 587 | B166: 2018-05-29 | C166: x | E166: 515 | F166: c1 | G166: Restaurante | H166: Huésped comenta que dos veces han solicitado room service y al entregarlo no les llevan platos ni cubertería. | K166: Luis César | L166: Morales | O166: 21 | P166: ROJA | Q166: COMENTAR CON DIEGO | R166: CSC - DIEGO | S166: SI | T166: QUEJA | U166: Si | V166: NO | W166: Room service
A167: 588 | B167: 2018-05-30 | C167: x | E167: 709 | F167: C1 | G167: Habitación | H167: Una silla en la habitación para ponerse zapatos y pantalon, la cama es muy alta. | M167: 2018-05-303 | O167: 21 | P167: ROJA | Q167: SILLAS VIENEN EN CAMINO | R167: CSC - GREIVIN | S167: SI | T167: QUEJA | U167: Si | V167: SI | W167: Silla en habitación
A168: 589 | B168: 2018-05-30 | C168: x | E168: 104 | F168: C1 | G168: Restaurantes | H168: Reduzcan los precios de los los bares y restaurantes porque son muy elevados. | M168: 2018-05-302 | O168: 21 | P168: ROJA | Q168: SE CONTRATARÁ A UNA ASESORA EXTERNA PARA TRATAR DE SOLUCIONAR ESTE PROBLEMA DE LOS RESTAURANTES | R168: CSC - GREIVIN | S168: SI | T168: QUEJA | U168: Si | V168: SI | W168: Calidad comida
A169: 590 | B169: 2018-05-30 | C169: x | E169: 309 | F169: C1 | G169: Habitación | H169: Hormigas e insectos en la habitción. | M169: 2018-05-298 | O169: 21 | P169: ROJA | Q169: COMENTAR CON JAIRO | R169: CSC - JAIRO | S169: SI | T169: QUEJA | U169: Si | V169: SI | W169: Plagas Habitaciones
A170: 591 | B170: 2018-05-30 | C170: x | E170: 303 | F170: C1 | G170: Hotel | H170: Huespedes se quejan que ante el mal clima y que desde las 2:30pm comenzó a llover el hotel debería tener alguna opcion de entretenimiento como sala de peliculas, bingo, karaoke, juegos de trivia ya que es aburrido estar en la habitación encerrados. | M170: 2018-05-297 | O170: 21 | P170: ROJA | Q170: COMENTAR CON GERENCIA | R170: CSC - GERENCIA | S170: SI | T170: SUGERENCIA | U170: Si | V170: SI | W170: Sala de juegos
A171: 592 | B171: 2018-05-30 | C171: x | G171: Restaurante | H171: Menú limitado en el Italiano | K171: TripAdvisor | O171: 21 | P171: ROJA | Q171: SE CONTRATARÁ A UNA ASESORA EXTERNA PARA TRATAR DE SOLUCIONAR ESTE PROBLEMA DE LOS RESTAURANTES | R171: CSC - GREIVIN | S171: SI | T171: QUEJA | U171: Si | V171: SI | W171: Calidad comida
A172: 593 | B172: 2018-05-31 | C172: x | E172: 506 | F172: C1 | G172: Restaurante | H172: Pan fresco todas las mañanas. | M172: 2018-05-305 | O172: 22 | P172: ROJA | R172: CSC - DIEGO | S172: SI | T172: QUEJA | U172: Si | V172: SI | W172: Calida Desayuno
A173: 594 | B173: 2018-05-31 | C173: x | E173: 506 | F173: C1 | G173: Habitación | H173: Una silla en la habitación es necesaria | M173: 2018-05-305 | O173: 22 | P173: ROJA | Q173: SILLAS VIENEN EN CAMINO | R173: CSC - GREIVIN | S173: SI | T173: QUEJA | U173: Si | V173: SI | W173: Silla en habitación
A174: 595 | B174: 2018-05-31 | C174: X | E174: 305 | F174: c1 | G174: Restaurante | H174: No hay opciones en el desayuno libres de glutten y el restaurante Italiano muy bajo en servicio. | M174: 2018-05-306 | O174: 22 | P174: Desestimada | Q174: NO SE VA A ASUMIR RESPONSABILIDAD DE CELIACOS | S174: NO | T174: SUGERENCIA | U174: Si | V174: N/A | W174: Desestimado
A175: 596 | B175: 2018-05-31 | C175: x | E175: 111 | F175: C1 | G175: Hotel | H175: No hay paraguas en la habitación. | M175: 2018-05-307 | O175: 22 | P175: Desestimada | Q175: ELEVA COSTOS | S175: NO | T175: SUGERENCIA | U175: Si | V175: N/A | W175: Desestimado
A176: 597 | B176: 2018-05-31 | C176: x | E176: 310 | F176: C1 | G176: Hotel | H176: En la noche debería haber alguna actividad nocturna de entretenimiento. | M176: 2018-05-310 | O176: 22 | P176: Desestimada | Q176: VA EN CONTRA DEL CONCEPTO FAMILIAR DEL HOTEL | S176: NO | T176: SUGERENCIA | U176: Si | V176: N/A | W176: Desestimado
A177: 598 | B177: 2018-05-30 | C177: x | E177: 505 | F177: C1 | G177: Hotel | H177: La señal de Internet es mala y débil especialmente en las habitaciones. | M177: 2018-05-314 | O177: 22 | P177: ROJA | Q177: COMENTAR A ARNALDO | R177: CSC - LIZ | S177: SI | T177: QUEJA | U177: Si | V177: SI | W177: Wifi
A178: 599 | B178: 2018-05-31 | C178: x | E178: 601 | F178: C1 | G178: Hotel | H178: El hotel debería de tener un area designada para juegos de mesa con sillas y mesas para juegos mientras llueve. | M178: 2018-05-315 | O178: 22 | P178: ROJA | Q178: COMENTAR CON GERENCIA | R178: CSC - GERENCIA | S178: SI | T178: SUGERENCIA | U178: Si | V178: SI | W178: Sala de juegos
A179: 600 | B179: 2018-06-02 | C179: x | E179: 205 | F179: c2 | G179: Habitación | H179: Huésped reporta que tenía una pizza en la habitación, y que la compañera mucama al realizar la limpieza la tiró a la basura. | I179: Que hablemos con la mucama para ver que sucedió y ver como las podemos compensar también. | J179: Se habla con la compañera mucama, ella nos comenta que la botó porque la misma tenía hormigas y que por eso la tiró a la basura. Se les da como cortesía otra pizza | K179: Luis César | L179: Morales | O179: 22 | P179: Desestimada | Q179: MANTENER COMIDA DENTRO DE LA HABITACIÓN PROPICIA TENER INSECTOS, LA MUCAMA TRATA DE MANTENER ESTE OBJETIVO | S179: NO | T179: QUEJA | U179: Si | V179: NO | W179: Desestimado
A180: 601 | B180: 2018-06-03 | C180: x | E180: 107 | F180: c1 | G180: habitacion | H180: Huesped reporta hormigas en la habitación. | I180: Spray y un poco de limpieza en la habitación . | K180: Deyvin | L180: Aguirre | O180: 22 | P180: ROJA | R180: CSC - JAIRO | S180: SI | T180: QUEJA | U180: Si | V180: SI | W180: Plagas Habitaciones
A181: 602 | B181: 2018-06-03 | C181: x | E181: 103 | F181: c1 | G181: Habitación | H181: Huesped reporta que tiene cucarachas en la habitación en la noche. | I181: Revisar la habitación, y echar algo para que salgan y no molesten. | K181: Deyvn | L181: Aguirre | O181: 22 | P181: ROJA | R181: CSC - JAIRO | S181: SI | T181: QUEJA | U181: Si | V181: SI | W181: Plagas Habitaciones
A182: 603 | B182: 2018-06-03 | C182: X | E182: 510 | F182: C1 | G182: Bar Húmedo | H182: Huésped comenta a modo de recomendación que los compañeros de los bares en la piscina, deberían utilizar siempre guantes al realizar las distintas labores que realizan ahí, dado que muchas veces se limpian las manos en sus camisas y por el tipo de camisas y el calor que se produce ahí, pasan sudando por lo que es anti higienico | I182: Revisar la recomendación | K182: L César | L182: Morales | O182: 22 | P182: ROJA | Q182: COMENTAR CON DIEGO | R182: CSC - DIEGO | S182: SI | T182: SUGERENCIA | U182: Si | V182: NO | W182: Higiene en restaurante
A183: 604 | B183: 2018-06-02 | C183: x | E183: 108 | F183: C1 | G183: Habitación | H183: Hormigas en la habitación, hormigas en el coffee maker, hormigas en la cama. | N183: 2018--06-13 | O183: 22 | P183: ROJA | R183: CSC - JAIRO | S183: SI | T183: QUEJA | U183: Si | V183: SI | W183: Plagas Habitaciones
A184: 605 | B184: 2018-06-03 | C184: x | E184: 406 | F184: C1 | G184: Hotel | H184: Huésped indica que sería muy bueno tener sombrillas en la habitación. | N184: 2018--06-14 | O184: 22 | P184: Desestimada | Q184: ELEVA COSTOS | S184: NO | T184: SUGERENCIA | U184: Si | V184: N/A | W184: Desestimado
A185: 606 | B185: 2018-05-31 | C185: x | E185: 104 | F185: C1 | G185: Habitación | H185: Muchas hormigas pequeñas en el baño y el teléfono no funcionaba. | N185: 2018--06-15 | O185: 22 | P185: ROJA | R185: CSC - JAIRO | S185: SI | T185: QUEJA | U185: Si | V185: SI | W185: Plagas Habitaciones
A186: 607 | B186: 2018-06-03 | C186: x | E186: 211 | F186: C1 | G186: Restaurante | H186: Probamos dos rollos de sushi y un sashimi y la calidad fue muy mala, el pescado no estaba fresco y la combinación de sabores no era la mejor, además la presentación de los rollos deficiente y la calidad del arroz no estaba al nivel de un restaurante aceptable de sushi. Y precios sumamente elevados en relación a la calidad. | N186: 2018--06-18 | O186: 22 | P186: ROJA | Q186: SE CONTRATARÁ A UNA ASESORA EXTERNA PARA TRATAR DE SOLUCIONAR ESTE PROBLEMA DE LOS RESTAURANTES | R186: CSC - GREIVIN | S186: SI | T186: QUEJA | U186: Si | V186: SI | W186: Calidad comida
A187: 608 | B187: 2018-06-02 | C187: x | E187: 309 | F187: C1 | G187: Restaurante | H187: Huésped se queja del restaurante Italiano el cual en ese momento se encontraba trabajando como el restaurante principal debido al cierre del Ti-Cain, se queja de que no hay en realidad opciones de comida costarricense, los precios muy altos en comparación con la cantidad y calidad de la comida. | N187: 2018--06-19 | O187: 22 | P187: ROJA | Q187: SE CONTRATARÁ A UNA ASESORA EXTERNA PARA TRATAR DE SOLUCIONAR ESTE PROBLEMA DE LOS RESTAURANTES | R187: CSC - GREIVIN | S187: SI | T187: QUEJA | U187: Si | V187: SI | W187: Calidad comida
A188: 609 | B188: 2018-06-04 | C188: x | E188: 605 | F188: C1 | G188: Restaurante | H188: Se quejan porque no hay coca cola zero ni tampoco menú para celiacos. | N188: 2018--06-23 | O188: 22 | P188: ROJA | Q188: SE CONTRATARÁ A UNA ASESORA EXTERNA PARA TRATAR DE SOLUCIONAR ESTE PROBLEMA DE LOS RESTAURANTES | R188: CSC - GREIVIN | S188: SI | T188: QUEJA | U188: Si | V188: SI | W188: Calidad comida
A189: 610 | B189: 2018-06-04 | C189: x | E189: 608 | F189: C1 | G189: Habitación | H189: NO hay silla en la habitación y es necesaria | N189: 2018--06-24 | O189: 22 | P189: ROJA | Q189: SILLAS VIENEN EN CAMINO | R189: CSC - GREIVIN | S189: SI | T189: QUEJA | U189: Si | V189: SI | W189: Silla en habitación
A190: 611 | B190: 2018-06-04 | C190: X | E190: 111 | F190: C1 | G190: habitación | H190: Huesped se queja de hormigas dentro de la habitación y fuera. | J190: Se procede a echar spray y limpiar. | K190: Deyvin | L190: Aguirre | O190: 22 | P190: ROJA | R190: CSC - JAIRO | S190: SI | T190: QUEJA | U190: Si | V190: SI | W190: Plagas Habitaciones
A191: 612 | B191: 2018-06-05 | C191: x | E191: 504 | F191: c1 | G191: Habitación | H191: Huesped se queja de hormigas en el area del baño. | N191: ´2018-06--31 | O191: 22 | P191: ROJA | R191: CSC - JAIRO | S191: SI | T191: QUEJA | U191: Si | V191: SI | W191: Plagas Habitaciones
A192: 613 | B192: 2018-06-05 | C192: x | E192: 504 | F192: c1 | G192: Habitación | H192: Hubieramos podido usar los vasos, si estos estuviesen limpios. | N192: ´2018-06--31 | O192: 22 | P192: ROJA | Q192: COMENTAR CON MELISSA | R192: CSC - MELISSA | S192: SI | T192: QUEJA | U192: Si | V192: SI | W192: HABITACIONES
A193: 614 | B193: 2018-06-02 | C193: x | E193: 206 | F193: C1 | G193: Restaurante | H193: Huésped se queja de las limitadas opciones en las comidas del bar de la piscina, le gustaria como hamburguesas. Además se queja del mal servicio recibido especialmente en el Italiano. | N193: 2018--06-32 | O193: 22 | P193: ROJA | Q193: SE CONTRATARÁ A UNA ASESORA EXTERNA PARA TRATAR DE SOLUCIONAR ESTE PROBLEMA DE LOS RESTAURANTES | R193: CSC - GREIVIN | S193: SI | T193: QUEJA | U193: Si | V193: SI | W193: Calidad comida
A194: 615 | B194: 2018-06-05 | C194: x | E194: 305 | F194: C1 | G194: Hotel | H194: Huésped se queja que reservó 22 días antes y solicitó una hab para adulta mayor y cerca a todas las areas comunes, sin embargo no tuvo respuesta. | N194: 2018--06-33 | O194: 22 | P194: ROJA | Q194: INDAGAR CON MIGUEL SOBRE ESTE CASO | R194: CSC - IVAN | S194: SI | T194: QUEJA | U194: Si | V194: NO | W194: Proceso de reservas
A195: 616 | B195: 2018-06-05 | C195: x | E195: 305 | F195: C1 | G195: Restaurante | H195: Huésped se queja de los precios de los restaurantes, muy altos | N195: 2018--06-33 | O195: 22 | P195: ROJA | Q195: SE CONTRATARÁ A UNA ASESORA EXTERNA PARA TRATAR DE SOLUCIONAR ESTE PROBLEMA DE LOS RESTAURANTES | R195: CSC - GREIVIN | S195: SI | T195: QUEJA | U195: Si | V195: SI | W195: Calidad comida
A196: 617 | B196: 2018-06-07 | C196: x | E196: 414-415 | F196: C1 | G196: Habitación | H196: Cliente indica que no puede conectarse al Wifi, y luego cuando logró la conexion, la misma es muy debil y no le permite accesar correctamente. | J196: Se llama a Arnaldo para que venga a revisar si hay algun problema con la red. | K196: Deyvin | L196: Aguirre | M196: C. | O196: 25 | P196: ROJA | Q196: Asignar Arnaldo Moreira | S196: SI | T196: QUEJA | U196: SI | V196: SI | W196: Wifi
A197: 618 | B197: 2018-06-08 | C197: x | E197: 712 | F197: C1 | G197: Habitación | H197: El refrigerador produce demasiado ruido | N197: 2018--06-57 | O197: 25 | P197: ROJA | Q197: Asignar Dariel Miranda | S197: SI | T197: QUEJA | U197: 2018-08-09 | V197: SI | W197: HABITACIONES
A198: =A197+1 -> 619 | B198: 2018-06-08 | C198: x | E198: 712 | F198: C1 | G198: Habitación | H198: El internet no funcionó bien, muy lento cuando pudimos recibir algo de señal. | N198: 2018--06-57 | O198: 25 | P198: ROJA | Q198: Asignar Arnaldo Moreira | S198: SI | T198: QUEJA | U198: SI | V198: SI | W198: Wifi
A199: 620 | B199: 2018-06-07 | C199: x | E199: 705 | F199: C1 | G199: Restaurante | H199: Más opciones de comida vegetariana en el restaurante principal. | N199: 2018--06-56 | O199: 25 | P199: ROJA | Q199: Asignar Diego Cambronero | S199: SI | T199: SUGERENCIA | U199: 2018-08-23 | V199: SI | W199: MENÚ VEGETARIANO
A200: 621 | B200: 2018-06-07 | C200: x | E200: 610 | F200: c1 | G200: Restaurante | H200: Las porciones de comida no están acorde con el precio | N200: 2018-06-62 | O200: 25 | P200: ROJA | Q200: Asignar Diego Cambronero | S200: SI | T200: QUEJA | U200: 2018-08-19 | V200: SI | W200: Calidad comida
A201: 622 | B201: 2018-06-05 | C201: x | E201: 712 | F201: c1 | G201: Habitación | H201: Unos cuantos insectos en la habitación | N201: 2018-06-65 | O201: 25 | P201: ROJA | Q201: Asignar Jairo Garcia | R201: PLAN DE FUMIGACIÓN COMPLETADO | S201: SI | T201: QUEJA | U201: SI | V201: SI | W201: Plagas Habitaciones
... 268 more rows

Sheet Impresión
E1: Cantidad Quejas: | F1: =SUBTOTAL(9,Tabla1[información]) -> 4012 | G1: Folio: | H1: 53 | J1: =TODAY() -> 2018-09-17
A2: Fecha | B2: N° Queja | C2: Hab | D2: Descripción de la Queja | E2: Departamento Responsable | F2: Acciones Correctivas | G2: Propuesta Solución Queja | H2: Resultado | I2: información | J2: Folio
A3: =IF('Registro de quejas (2)'!B3=0,"",'Registro de quejas (2)'!B3) -> 2018-04-18 | B3: =IF('Registro de quejas (2)'!A3=0,"",'Registro de quejas (2)'!A3) -> 424 | C3: =IF('Registro de quejas (2)'!E3=0,"",'Registro de quejas (2)'!E3) -> 601 | D3: =IF('Registro de quejas (2)'!H3=0,"",'Registro de quejas (2)'!H3) -> Huesped se queja de hormigas en el area del baño. | E3: =IF('Registro de quejas (2)'!G3=0,"",'Registro de quejas (2)'!Q3) -> COMENTAR CON JAIRO | H3: =IF('Registro de quejas (2)'!U3="si","si",IF('Registro de quejas (2)'!U3="No","No",IF('Registro de quejas (2)'!U3<=Impresión!J$1,"No",IF('Registro de quejas (2)'!U3>Impresión!J$1,"Proceso"," ")))) -> si | I3: 1 | J3: =H$1 -> 53
A4: =IF('Registro de quejas (2)'!B4=0,"",'Registro de quejas (2)'!B4) -> 2018-04-18 | B4: =IF('Registro de quejas (2)'!A4=0,"",'Registro de quejas (2)'!A4) -> 425 | C4: =IF('Registro de quejas (2)'!E4=0,"",'Registro de quejas (2)'!E4) -> 112 | D4: =IF('Registro de quejas (2)'!H4=0,"",'Registro de quejas (2)'!H4) -> Huesped indica que se necesita un espejo afuera del baño. | E4: =IF('Registro de quejas (2)'!G4=0,"",'Registro de quejas (2)'!Q4) -> YA EXISTE ESPEJOS DE CUERPO ENTERO | H4: =IF('Registro de quejas (2)'!U4="si","si",IF('Registro de quejas (2)'!U4="No","No",IF('Registro de quejas (2)'!U4<=Impresión!J$1,"No",IF('Registro de quejas (2)'!U4>Impresión!J$1,"Proceso"," ")))) -> si | I4: =I3 -> 1 | J4: =H$1 -> 53
A5: =IF('Registro de quejas (2)'!B5=0,"",'Registro de quejas (2)'!B5) -> 2018-04-18 | B5: =IF('Registro de quejas (2)'!A5=0,"",'Registro de quejas (2)'!A5) -> 426 | C5: =IF('Registro de quejas (2)'!E5=0,"",'Registro de quejas (2)'!E5) -> 111 | D5: =IF('Registro de quejas (2)'!H5=0,"",'Registro de quejas (2)'!H5) -> Huesped se queja que entre las 5 y 7 pm deberían haber mas bartenders ya que hay que esperar mucho para ser atendido y mas tiempo para que le hagan un cocktail. | E5: =IF('Registro de quejas (2)'!G5=0,"",'Registro de quejas (2)'!Q5) -> DIEGO VA A REVISAR LO QUE SUCEDIÓ | H5: =IF('Registro de quejas (2)'!U5="si","si",IF('Registro de quejas (2)'!U5="No","No",IF('Registro de quejas (2)'!U5<=Impresión!J$1,"No",IF('Registro de quejas (2)'!U5>Impresión!J$1,"Proceso"," ")))) -> si | I5: 1 | J5: 53
A6: =IF('Registro de quejas (2)'!B6=0,"",'Registro de quejas (2)'!B6) -> 2018-04-17 | B6: =IF('Registro de quejas (2)'!A6=0,"",'Registro de quejas (2)'!A6) -> 427 | C6: =IF('Registro de quejas (2)'!E6=0,"",'Registro de quejas (2)'!E6) -> 706 | D6: =IF('Registro de quejas (2)'!H6=0,"",'Registro de quejas (2)'!H6) -> Huesped se queja porque no hay pan libre de gluten en el desayuno. | E6: =IF('Registro de quejas (2)'!G6=0,"",'Registro de quejas (2)'!Q6) -> ALTO RIESGO CON LOS CELIACOS | H6: =IF('Registro de quejas (2)'!U6="si","si",IF('Registro de quejas (2)'!U6="No","No",IF('Registro de quejas (2)'!U6<=Impresión!J$1,"No",IF('Registro de quejas (2)'!U6>Impresión!J$1,"Proceso"," ")))) -> si | I6: 1 | J6: =H$1 -> 53
A7: =IF('Registro de quejas (2)'!B7=0,"",'Registro de quejas (2)'!B7) -> 2018-04-18 | B7: =IF('Registro de quejas (2)'!A7=0,"",'Registro de quejas (2)'!A7) -> 428 | C7: =IF('Registro de quejas (2)'!E7=0,"",'Registro de quejas (2)'!E7) -> 710 | D7: =IF('Registro de quejas (2)'!H7=0,"",'Registro de quejas (2)'!H7) -> Huesped llama quejandose por hormigas en el lavatorio y en el area del baño. | E7: =IF('Registro de quejas (2)'!G7=0,"",'Registro de quejas (2)'!Q7) -> COMENTAR CON JAIRO | H7: =IF('Registro de quejas (2)'!U7="si","si",IF('Registro de quejas (2)'!U7="No","No",IF('Registro de quejas (2)'!U7<=Impresión!J$1,"No",IF('Registro de quejas (2)'!U7>Impresión!J$1,"Proceso"," ")))) -> si | I7: 1 | J7: 53
A8: =IF('Registro de quejas (2)'!B8=0,"",'Registro de quejas (2)'!B8) -> 2018-04-19 | B8: =IF('Registro de quejas (2)'!A8=0,"",'Registro de quejas (2)'!A8) -> 429 | C8: =IF('Registro de quejas (2)'!E8=0,"",'Registro de quejas (2)'!E8) -> 904 | D8: =IF('Registro de quejas (2)'!H8=0,"",'Registro de quejas (2)'!H8) -> Huesped reporta que ocasionalmente el lavatorio desprendia fuertes olores a alcantarilla y cloaca. | E8: =IF('Registro de quejas (2)'!G8=0,"",'Registro de quejas (2)'!Q8) -> CERSIORARSE DE LOS MALOS OLORES EN LA HABITACIÓN | H8: =IF('Registro de quejas (2)'!U8="si","si",IF('Registro de quejas (2)'!U8="No","No",IF('Registro de quejas (2)'!U8<=Impresión!J$1,"No",IF('Registro de quejas (2)'!U8>Impresión!J$1,"Proceso"," ")))) -> si | I8: 1 | J8: 53
A9: =IF('Registro de quejas (2)'!B9=0,"",'Registro de quejas (2)'!B9) -> 2018-04-19 | B9: =IF('Registro de quejas (2)'!A9=0,"",'Registro de quejas (2)'!A9) -> 430 | C9: =IF('Registro de quejas (2)'!E9=0,"",'Registro de quejas (2)'!E9) -> 706 | D9: =IF('Registro de quejas (2)'!H9=0,"",'Registro de quejas (2)'!H9) -> Huesped se queja porque no hay silla en la habitación, las camas son muy altas y ellos huespedes de baja estatura. | E9: =IF('Registro de quejas (2)'!G9=0,"",'Registro de quejas (2)'!Q9) -> YA MERITO | H9: =IF('Registro de quejas (2)'!U9="si","si",IF('Registro de quejas (2)'!U9="No","No",IF('Registro de quejas (2)'!U9<=Impresión!J$1,"No",IF('Registro de quejas (2)'!U9>Impresión!J$1,"Proceso"," ")))) -> si | I9: 1 | J9: 53
A10: =IF('Registro de quejas (2)'!B10=0,"",'Registro de quejas (2)'!B10) -> 2018-04-20 | B10: =IF('Registro de quejas (2)'!A10=0,"",'Registro de quejas (2)'!A10) -> 431 | C10: =IF('Registro de quejas (2)'!E10=0,"",'Registro de quejas (2)'!E10) -> 601 | D10: =IF('Registro de quejas (2)'!H10=0,"",'Registro de quejas (2)'!H10) -> Huésped solicitó transporte para venir al parqueo para irse a tour, pero el carrito de golf no llegó por ellos, debieron venirse caminando entonces | E10: =IF('Registro de quejas (2)'!G10=0,"",'Registro de quejas (2)'!Q10) -> MAYOR CUIDADO POR PARTE DEL ANFITRIÓN | H10: =IF('Registro de quejas (2)'!U10="si","si",IF('Registro de quejas (2)'!U10="No","No",IF('Registro de quejas (2)'!U10<=Impresión!J$1,"No",IF('Registro de quejas (2)'!U10>Impresión!J$1,"Proceso"," ")))) -> si | I10: 1 | J10: 53
A11: =IF('Registro de quejas (2)'!B11=0,"",'Registro de quejas (2)'!B11) -> 2018-04-20 | B11: =IF('Registro de quejas (2)'!A11=0,"",'Registro de quejas (2)'!A11) -> 432 | C11: =IF('Registro de quejas (2)'!E11=0,"",'Registro de quejas (2)'!E11) -> 601 | D11: =IF('Registro de quejas (2)'!H11=0,"",'Registro de quejas (2)'!H11) -> Huésped reporta que tiene muchas hormigas dentro de la habitación, que hasta están en las maletas. | E11: =IF('Registro de quejas (2)'!G11=0,"",'Registro de quejas (2)'!Q11) -> COMENTAR CON JAIRO | H11: =IF('Registro de quejas (2)'!U11="si","si",IF('Registro de quejas (2)'!U11="No","No",IF('Registro de quejas (2)'!U11<=Impresión!J$1,"No",IF('Registro de quejas (2)'!U11>Impresión!J$1,"Proceso"," ")))) -> si | I11: 1 | J11: 53
A12: =IF('Registro de quejas (2)'!B12=0,"",'Registro de quejas (2)'!B12) -> 2018-04-20 | B12: =IF('Registro de quejas (2)'!A12=0,"",'Registro de quejas (2)'!A12) -> 433 | C12: =IF('Registro de quejas (2)'!E12=0,"",'Registro de quejas (2)'!E12) -> 108 | D12: =IF('Registro de quejas (2)'!H12=0,"",'Registro de quejas (2)'!H12) -> Después de haberlos cambiado de la 601 a la habitación 108, la señora Brandi reporta que hay una cucaracha dentro de la habitación y por este motivo estaba muy molesta | E12: =IF('Registro de quejas (2)'!G12=0,"",'Registro de quejas (2)'!Q12) -> COMENTAR CON JAIRO | H12: =IF('Registro de quejas (2)'!U12="si","si",IF('Registro de quejas (2)'!U12="No","No",IF('Registro de quejas (2)'!U12<=Impresión!J$1,"No",IF('Registro de quejas (2)'!U12>Impresión!J$1,"Proceso"," ")))) -> si | I12: 1 | J12: 53
A13: =IF('Registro de quejas (2)'!B13=0,"",'Registro de quejas (2)'!B13) -> 2018-04-20 | B13: =IF('Registro de quejas (2)'!A13=0,"",'Registro de quejas (2)'!A13) -> 434 | C13: =IF('Registro de quejas (2)'!E13=0,"",'Registro de quejas (2)'!E13) -> 309 | D13: =IF('Registro de quejas (2)'!H13=0,"",'Registro de quejas (2)'!H13) -> Sería bueno tener al menos una sombrilla por habitación | E13: =IF('Registro de quejas (2)'!G13=0,"",'Registro de quejas (2)'!Q13) -> COSTOS ELEVADOS | H13: =IF('Registro de quejas (2)'!U13="si","si",IF('Registro de quejas (2)'!U13="No","No",IF('Registro de quejas (2)'!U13<=Impresión!J$1,"No",IF('Registro de quejas (2)'!U13>Impresión!J$1,"Proceso"," ")))) -> si | I13: 1 | J13: 53
A14: =IF('Registro de quejas (2)'!B14=0,"",'Registro de quejas (2)'!B14) -> 2018-04-21 | B14: =IF('Registro de quejas (2)'!A14=0,"",'Registro de quejas (2)'!A14) -> 435 | C14: =IF('Registro de quejas (2)'!E14=0,"",'Registro de quejas (2)'!E14) -> 901 | D14: =IF('Registro de quejas (2)'!H14=0,"",'Registro de quejas (2)'!H14) -> La puerta del baño no se cierra o abre bien. | E14: =IF('Registro de quejas (2)'!G14=0,"",'Registro de quejas (2)'!Q14) -> AVERIGUAR LO QUE INDICA EL CLIENTE | H14: =IF('Registro de quejas (2)'!U14="si","si",IF('Registro de quejas (2)'!U14="No","No",IF('Registro de quejas (2)'!U14<=Impresión!J$1,"No",IF('Registro de quejas (2)'!U14>Impresión!J$1,"Proceso"," ")))) -> si | I14: 1 | J14: 53
A15: =IF('Registro de quejas (2)'!B15=0,"",'Registro de quejas (2)'!B15) -> 2018-04-21 | B15: =IF('Registro de quejas (2)'!A15=0,"",'Registro de quejas (2)'!A15) -> 436 | C15: =IF('Registro de quejas (2)'!E15=0,"",'Registro de quejas (2)'!E15) -> 901 | D15: =IF('Registro de quejas (2)'!H15=0,"",'Registro de quejas (2)'!H15) -> Hay un fuerte olor que sale del baño | E15: =IF('Registro de quejas (2)'!G15=0,"",'Registro de quejas (2)'!Q15) -> VALIDAR CON MELISSA | H15: =IF('Registro de quejas (2)'!U15="si","si",IF('Registro de quejas (2)'!U15="No","No",IF('Registro de quejas (2)'!U15<=Impresión!J$1,"No",IF('Registro de quejas (2)'!U15>Impresión!J$1,"Proceso"," ")))) -> si | I15: 1 | J15: 53
A16: =IF('Registro de quejas (2)'!B16=0,"",'Registro de quejas (2)'!B16) -> 2018-04-21 | B16: =IF('Registro de quejas (2)'!A16=0,"",'Registro de quejas (2)'!A16) -> 437 | C16: =IF('Registro de quejas (2)'!E16=0,"",'Registro de quejas (2)'!E16) -> 702 | D16: =IF('Registro de quejas (2)'!H16=0,"",'Registro de quejas (2)'!H16) -> Podría haber una o dos sillas en la habitación, incluso pueden estar guardadas en el closet | E16: =IF('Registro de quejas (2)'!G16=0,"",'Registro de quejas (2)'!Q16) -> YA MERITO | H16: =IF('Registro de quejas (2)'!U16="si","si",IF('Registro de quejas (2)'!U16="No","No",IF('Registro de quejas (2)'!U16<=Impresión!J$1,"No",IF('Registro de quejas (2)'!U16>Impresión!J$1,"Proceso"," ")))) -> si | I16: 1 | J16: 53
A17: =IF('Registro de quejas (2)'!B17=0,"",'Registro de quejas (2)'!B17) -> 2018-04-21 | B17: =IF('Registro de quejas (2)'!A17=0,"",'Registro de quejas (2)'!A17) -> 438 | C17: =IF('Registro de quejas (2)'!E17=0,"",'Registro de quejas (2)'!E17) -> 702 | D17: =IF('Registro de quejas (2)'!H17=0,"",'Registro de quejas (2)'!H17) -> Las lamparas que hay en la habitación no sirven para leer | E17: =IF('Registro de quejas (2)'!G17=0,"",'Registro de quejas (2)'!Q17) -> COMPRA DE LÁMPARAS PENDIENTE | H17: =IF('Registro de quejas (2)'!U17="si","si",IF('Registro de quejas (2)'!U17="No","No",IF('Registro de quejas (2)'!U17<=Impresión!J$1,"No",IF('Registro de quejas (2)'!U17>Impresión!J$1,"Proceso"," ")))) -> si | I17: 1 | J17: 53
A18: =IF('Registro de quejas (2)'!B18=0,"",'Registro de quejas (2)'!B18) -> 2018-04-21 | B18: =IF('Registro de quejas (2)'!A18=0,"",'Registro de quejas (2)'!A18) -> 439 | C18: =IF('Registro de quejas (2)'!E18=0,"",'Registro de quejas (2)'!E18) -> 702 | D18: =IF('Registro de quejas (2)'!H18=0,"",'Registro de quejas (2)'!H18) -> La ducha podría usar menos agua si estuviera mejor calibrada | E18: =IF('Registro de quejas (2)'!G18=0,"",'Registro de quejas (2)'!Q18) -> POSTALES INFORMATIVAS PENDIENTES POR COLOCAR | H18: =IF('Registro de quejas (2)'!U18="si","si",IF('Registro de quejas (2)'!U18="No","No",IF('Registro de quejas (2)'!U18<=Impresión!J$1,"No",IF('Registro de quejas (2)'!U18>Impresión!J$1,"Proceso"," ")))) -> si | I18: 1 | J18: 53
A19: =IF('Registro de quejas (2)'!B19=0,"",'Registro de quejas (2)'!B19) -> 2018-04-21 | B19: =IF('Registro de quejas (2)'!A19=0,"",'Registro de quejas (2)'!A19) -> 440 | C19: =IF('Registro de quejas (2)'!E19=0,"",'Registro de quejas (2)'!E19) -> 702 | D19: =IF('Registro de quejas (2)'!H19=0,"",'Registro de quejas (2)'!H19) -> Una linea para tender la ropa fuera de la habitación sería util | E19: =IF('Registro de quejas (2)'!G19=0,"",'Registro de quejas (2)'!Q19) -> EXISTEN TENDEDEROS EN LA BAÑO - PREGUNTAR A MELISSA | H19: =IF('Registro de quejas (2)'!U19="si","si",IF('Registro de quejas (2)'!U19="No","No",IF('Registro de quejas (2)'!U19<=Impresión!J$1,"No",IF('Registro de quejas (2)'!U19>Impresión!J$1,"Proceso"," ")))) -> si | I19: 1 | J19: 53
A20: =IF('Registro de quejas (2)'!B20=0,"",'Registro de quejas (2)'!B20) -> 2018-04-21 | B20: =IF('Registro de quejas (2)'!A20=0,"",'Registro de quejas (2)'!A20) -> 441 | C20: =IF('Registro de quejas (2)'!E20=0,"",'Registro de quejas (2)'!E20) -> 702 | D20: =IF('Registro de quejas (2)'!H20=0,"",'Registro de quejas (2)'!H20) -> Si se etiquetaran las apagadores de la habitación sería mas funcional, ya que no se sabe cual es para cada cosa. | E20: =IF('Registro de quejas (2)'!G20=0,"",'Registro de quejas (2)'!Q20) -> NO SE PUEDE AGREGAR MAS INFORMACIÓN EN LA HABITACIÓN | H20: =IF('Registro de quejas (2)'!U20="si","si",IF('Registro de quejas (2)'!U20="No","No",IF('Registro de quejas (2)'!U20<=Impresión!J$1,"No",IF('Registro de quejas (2)'!U20>Impresión!J$1,"Proceso"," ")))) -> si | I20: 1 | J20: 53
A21: =IF('Registro de quejas (2)'!B21=0,"",'Registro de quejas (2)'!B21) -> 2018-04-22 | B21: =IF('Registro de quejas (2)'!A21=0,"",'Registro de quejas (2)'!A21) -> 442 | C21: =IF('Registro de quejas (2)'!E21=0,"",'Registro de quejas (2)'!E21) -> 408 | D21: =IF('Registro de quejas (2)'!H21=0,"",'Registro de quejas (2)'!H21) -> Huesped se acerca a Recepción muy molesto debido a que llamó para solicitar hielo y nunca lo recibió, el señor no permite ni que le ayudemos, se queja muy fuerte por el mal servicio, tambien se queja por que en la maquina de hielo no hay bolsas y solo pide una bolsa para seguidamente indicarnos que no quiere ningún carrito de golf y que se irá caminando apesar de la lluvia. | E21: =IF('Registro de quejas (2)'!G21=0,"",'Registro de quejas (2)'!Q21) -> MAYOR CUIDADO POR PARTE DEL ANFITRIÓN | H21: =IF('Registro de quejas (2)'!U21="si","si",IF('Registro de quejas (2)'!U21="No","No",IF('Registro de quejas (2)'!U21<=Impresión!J$1,"No",IF('Registro de quejas (2)'!U21>Impresión!J$1,"Proceso"," ")))) -> si | I21: 1 | J21: 53
A22: =IF('Registro de quejas (2)'!B22=0,"",'Registro de quejas (2)'!B22) -> 2018-04-21 | B22: =IF('Registro de quejas (2)'!A22=0,"",'Registro de quejas (2)'!A22) -> 443 | C22: =IF('Registro de quejas (2)'!E22=0,"",'Registro de quejas (2)'!E22) -> 310 | D22: =IF('Registro de quejas (2)'!H22=0,"",'Registro de quejas (2)'!H22) -> Huesped indica que debería haber un tomacorriente especial cerca de la mesa para cargar la computadora | E22: =IF('Registro de quejas (2)'!G22=0,"",'Registro de quejas (2)'!Q22) -> EN TIENDA ESTÁN DISPONIBLES ADAPTADORES PARA TOMAS | H22: =IF('Registro de quejas (2)'!U22="si","si",IF('Registro de quejas (2)'!U22="No","No",IF('Registro de quejas (2)'!U22<=Impresión!J$1,"No",IF('Registro de quejas (2)'!U22>Impresión!J$1,"Proceso"," ")))) -> si | I22: 1 | J22: 53
A23: =IF('Registro de quejas (2)'!B23=0,"",'Registro de quejas (2)'!B23) -> 2018-04-21 | B23: =IF('Registro de quejas (2)'!A23=0,"",'Registro de quejas (2)'!A23) -> 444 | C23: =IF('Registro de quejas (2)'!E23=0,"",'Registro de quejas (2)'!E23) -> 210 | D23: =IF('Registro de quejas (2)'!H23=0,"",'Registro de quejas (2)'!H23) -> Huesped se queja que las opciones vegetarianas son muy limitadas para la epoca en la que nos encontramos, el mismo indica que al haber muchas personas vegetarianas, el hotel debería mejorar. | E23: =IF('Registro de quejas (2)'!G23=0,"",'Registro de quejas (2)'!Q23) -> HACER UN SOLO MENÚ DE VEGETARIANOS | H23: =IF('Registro de quejas (2)'!U23="si","si",IF('Registro de quejas (2)'!U23="No","No",IF('Registro de quejas (2)'!U23<=Impresión!J$1,"No",IF('Registro de quejas (2)'!U23>Impresión!J$1,"Proceso"," ")))) -> si | I23: 1 | J23: 53
A24: =IF('Registro de quejas (2)'!B24=0,"",'Registro de quejas (2)'!B24) -> 2018-04-23 | B24: =IF('Registro de quejas (2)'!A24=0,"",'Registro de quejas (2)'!A24) -> 445 | C24: =IF('Registro de quejas (2)'!E24=0,"",'Registro de quejas (2)'!E24) -> 211 | D24: =IF('Registro de quejas (2)'!H24=0,"",'Registro de quejas (2)'!H24) -> Para un hotel como este uno espera que haya batas de baño en la habitación | E24: =IF('Registro de quejas (2)'!G24=0,"",'Registro de quejas (2)'!Q24) -> COSTOS MUY ALTOS | H24: =IF('Registro de quejas (2)'!U24="si","si",IF('Registro de quejas (2)'!U24="No","No",IF('Registro de quejas (2)'!U24<=Impresión!J$1,"No",IF('Registro de quejas (2)'!U24>Impresión!J$1,"Proceso"," ")))) -> si | I24: 1 | J24: 53
A25: =IF('Registro de quejas (2)'!B25=0,"",'Registro de quejas (2)'!B25) -> 2018-04-23 | B25: =IF('Registro de quejas (2)'!A25=0,"",'Registro de quejas (2)'!A25) -> 446 | C25: =IF('Registro de quejas (2)'!E25=0,"",'Registro de quejas (2)'!E25) -> 211 | D25: =IF('Registro de quejas (2)'!H25=0,"",'Registro de quejas (2)'!H25) -> Hay muchos niños, no esperabamos tener que hacer fila para poder conseguir omelets, pancakes o frutas. | E25: =IF('Registro de quejas (2)'!G25=0,"",'Registro de quejas (2)'!Q25) -> DIEGO YA TOMÓ DIRECTRICES | H25: =IF('Registro de quejas (2)'!U25="si","si",IF('Registro de quejas (2)'!U25="No","No",IF('Registro de quejas (2)'!U25<=Impresión!J$1,"No",IF('Registro de quejas (2)'!U25>Impresión!J$1,"Proceso"," ")))) -> si | I25: 1 | J25: 53
A26: =IF('Registro de quejas (2)'!B26=0,"",'Registro de quejas (2)'!B26) -> 2018-04-22 | B26: =IF('Registro de quejas (2)'!A26=0,"",'Registro de quejas (2)'!A26) -> 447 | C26: =IF('Registro de quejas (2)'!E26=0,"",'Registro de quejas (2)'!E26) -> 201 | D26: =IF('Registro de quejas (2)'!H26=0,"",'Registro de quejas (2)'!H26) -> Pusimos el rotulo de no cambiar las toallas pero si las cambiaron. | E26: =IF('Registro de quejas (2)'!G26=0,"",'Registro de quejas (2)'!Q26) -> COMENTAR CON MELISSA | H26: =IF('Registro de quejas (2)'!U26="si","si",IF('Registro de quejas (2)'!U26="No","No",IF('Registro de quejas (2)'!U26<=Impresión!J$1,"No",IF('Registro de quejas (2)'!U26>Impresión!J$1,"Proceso"," ")))) -> si | I26: 1 | J26: 53
A27: =IF('Registro de quejas (2)'!B27=0,"",'Registro de quejas (2)'!B27) -> 2018-04-24 | B27: =IF('Registro de quejas (2)'!A27=0,"",'Registro de quejas (2)'!A27) -> 448 | C27: =IF('Registro de quejas (2)'!E27=0,"",'Registro de quejas (2)'!E27) -> 308 | D27: =IF('Registro de quejas (2)'!H27=0,"",'Registro de quejas (2)'!H27) -> Huesped solicitó transporte para 2 personas dado la lluvia sin embargo ningun compañero fue por ellos, ella muy molesta se vino caminando desde su habitacion. | E27: =IF('Registro de quejas (2)'!G27=0,"",'Registro de quejas (2)'!Q27) ->  | H27: =IF('Registro de quejas (2)'!U27="si","si",IF('Registro de quejas (2)'!U27="No","No",IF('Registro de quejas (2)'!U27<=Impresión!J$1,"No",IF('Registro de quejas (2)'!U27>Impresión!J$1,"Proceso"," ")))) -> si | I27: 1 | J27: 53
A28: =IF('Registro de quejas (2)'!B28=0,"",'Registro de quejas (2)'!B28) -> 2018-04-24 | B28: =IF('Registro de quejas (2)'!A28=0,"",'Registro de quejas (2)'!A28) -> 449 | C28: =IF('Registro de quejas (2)'!E28=0,"",'Registro de quejas (2)'!E28) -> 106 | D28: =IF('Registro de quejas (2)'!H28=0,"",'Registro de quejas (2)'!H28) -> Huésped comenta que los grupos de niños son muy ruidosos y si el hotel vende tranquilidad debería de cumplirse, se sintío inconforme en areas comunes e incluso en la habitación. | E28: =IF('Registro de quejas (2)'!G28=0,"",'Registro de quejas (2)'!Q28) -> COMENTAR CON GERENCIA GRUPO DE BEST | H28: =IF('Registro de quejas (2)'!U28="si","si",IF('Registro de quejas (2)'!U28="No","No",IF('Registro de quejas (2)'!U28<=Impresión!J$1,"No",IF('Registro de quejas (2)'!U28>Impresión!J$1,"Proceso"," ")))) -> si | I28: 1 | J28: 53
A29: =IF('Registro de quejas (2)'!B29=0,"",'Registro de quejas (2)'!B29) -> 2018-04-24 | B29: =IF('Registro de quejas (2)'!A29=0,"",'Registro de quejas (2)'!A29) -> 450 | C29: =IF('Registro de quejas (2)'!E29=0,"",'Registro de quejas (2)'!E29) -> 602 | D29: =IF('Registro de quejas (2)'!H29=0,"",'Registro de quejas (2)'!H29) -> Huésped encontró una piedrita en el piso al majarla y escribe que fue un verdadero Ouch! Y además dice que el resto de la habitación no parecia que estuviera bien limpia | E29: =IF('Registro de quejas (2)'!G29=0,"",'Registro de quejas (2)'!Q29) -> COMENTAR CON MELISSA | H29: =IF('Registro de quejas (2)'!U29="si","si",IF('Registro de quejas (2)'!U29="No","No",IF('Registro de quejas (2)'!U29<=Impresión!J$1,"No",IF('Registro de quejas (2)'!U29>Impresión!J$1,"Proceso"," ")))) -> si | I29: 1 | J29: 53
A30: =IF('Registro de quejas (2)'!B30=0,"",'Registro de quejas (2)'!B30) -> 2018-04-24 | B30: =IF('Registro de quejas (2)'!A30=0,"",'Registro de quejas (2)'!A30) -> 451 | C30: =IF('Registro de quejas (2)'!E30=0,"",'Registro de quejas (2)'!E30) -> 602 | D30: =IF('Registro de quejas (2)'!H30=0,"",'Registro de quejas (2)'!H30) -> Una sombrilla por habitación, reduciría el uso de los carritos de golf | E30: =IF('Registro de quejas (2)'!G30=0,"",'Registro de quejas (2)'!Q30) -> COSTOS ELEVADOS | H30: =IF('Registro de quejas (2)'!U30="si","si",IF('Registro de quejas (2)'!U30="No","No",IF('Registro de quejas (2)'!U30<=Impresión!J$1,"No",IF('Registro de quejas (2)'!U30>Impresión!J$1,"Proceso"," ")))) -> si | I30: 1 | J30: 53
A31: =IF('Registro de quejas (2)'!B31=0,"",'Registro de quejas (2)'!B31) -> 2018-04-24 | B31: =IF('Registro de quejas (2)'!A31=0,"",'Registro de quejas (2)'!A31) -> 452 | C31: =IF('Registro de quejas (2)'!E31=0,"",'Registro de quejas (2)'!E31) -> 602 | D31: =IF('Registro de quejas (2)'!H31=0,"",'Registro de quejas (2)'!H31) -> Una sola cama y un sillón sería mucho mejor que dos camas y ningún sitio donde sentarse | E31: =IF('Registro de quejas (2)'!G31=0,"",'Registro de quejas (2)'!Q31) -> YA MERITO | H31: =IF('Registro de quejas (2)'!U31="si","si",IF('Registro de quejas (2)'!U31="No","No",IF('Registro de quejas (2)'!U31<=Impresión!J$1,"No",IF('Registro de quejas (2)'!U31>Impresión!J$1,"Proceso"," ")))) -> si | I31: 1 | J31: 53
A32: =IF('Registro de quejas (2)'!B32=0,"",'Registro de quejas (2)'!B32) -> 2018-04-25 | B32: =IF('Registro de quejas (2)'!A32=0,"",'Registro de quejas (2)'!A32) -> 453 | C32: =IF('Registro de quejas (2)'!E32=0,"",'Registro de quejas (2)'!E32) -> 415 | D32: =IF('Registro de quejas (2)'!H32=0,"",'Registro de quejas (2)'!H32) -> Deberiamos de pensar en quitar las lineas amarillas de la calle, no hay necesidad de ellas porque los carros no van a altas velocidades y a su vez estas lineas afean la belleza de las instalaciones en conjunto con la naturaleza | E32: =IF('Registro de quejas (2)'!G32=0,"",'Registro de quejas (2)'!Q32) -> LINEAS SON NECESARIAS | H32: =IF('Registro de quejas (2)'!U32="si","si",IF('Registro de quejas (2)'!U32="No","No",IF('Registro de quejas (2)'!U32<=Impresión!J$1,"No",IF('Registro de quejas (2)'!U32>Impresión!J$1,"Proceso"," ")))) -> si | I32: 1 | J32: 53
A33: =IF('Registro de quejas (2)'!B33=0,"",'Registro de quejas (2)'!B33) -> 2018-04-25 | B33: =IF('Registro de quejas (2)'!A33=0,"",'Registro de quejas (2)'!A33) -> 454 | C33: =IF('Registro de quejas (2)'!E33=0,"",'Registro de quejas (2)'!E33) -> 415 | D33: =IF('Registro de quejas (2)'!H33=0,"",'Registro de quejas (2)'!H33) -> La pared donde esta el aire acondicionado va tener problemas a futuro debido a que el condensador gotea | E33: =IF('Registro de quejas (2)'!G33=0,"",'Registro de quejas (2)'!Q33) -> COMENTAR CON JAIRO | H33: =IF('Registro de quejas (2)'!U33="si","si",IF('Registro de quejas (2)'!U33="No","No",IF('Registro de quejas (2)'!U33<=Impresión!J$1,"No",IF('Registro de quejas (2)'!U33>Impresión!J$1,"Proceso"," ")))) -> si | I33: 1 | J33: 53
A34: =IF('Registro de quejas (2)'!B34=0,"",'Registro de quejas (2)'!B34) -> 2018-04-25 | B34: =IF('Registro de quejas (2)'!A34=0,"",'Registro de quejas (2)'!A34) -> 455 | C34: =IF('Registro de quejas (2)'!E34=0,"",'Registro de quejas (2)'!E34) -> 401 | D34: =IF('Registro de quejas (2)'!H34=0,"",'Registro de quejas (2)'!H34) -> Huesped se queja que habían insectos viniendo atraves de las paredes. | E34: =IF('Registro de quejas (2)'!G34=0,"",'Registro de quejas (2)'!Q34) -> COMENTAR CON JAIRO | H34: =IF('Registro de quejas (2)'!U34="si","si",IF('Registro de quejas (2)'!U34="No","No",IF('Registro de quejas (2)'!U34<=Impresión!J$1,"No",IF('Registro de quejas (2)'!U34>Impresión!J$1,"Proceso"," ")))) -> si | I34: 1 | J34: 53
A35: =IF('Registro de quejas (2)'!B35=0,"",'Registro de quejas (2)'!B35) -> 2018-04-26 | B35: =IF('Registro de quejas (2)'!A35=0,"",'Registro de quejas (2)'!A35) -> 456 | C35: =IF('Registro de quejas (2)'!E35=0,"",'Registro de quejas (2)'!E35) -> 509 | D35: =IF('Registro de quejas (2)'!H35=0,"",'Registro de quejas (2)'!H35) -> Huesped indica que se necesita mas variedad en el desayuno. | E35: =IF('Registro de quejas (2)'!G35=0,"",'Registro de quejas (2)'!Q35) -> DIEGO ESTÁ TRABAJANDO EN ESO | H35: =IF('Registro de quejas (2)'!U35="si","si",IF('Registro de quejas (2)'!U35="No","No",IF('Registro de quejas (2)'!U35<=Impresión!J$1,"No",IF('Registro de quejas (2)'!U35>Impresión!J$1,"Proceso"," ")))) -> si | I35: 1 | J35: 53
A36: =IF('Registro de quejas (2)'!B36=0,"",'Registro de quejas (2)'!B36) -> 2018-04-27 | B36: =IF('Registro de quejas (2)'!A36=0,"",'Registro de quejas (2)'!A36) -> 457 | C36: =IF('Registro de quejas (2)'!E36=0,"",'Registro de quejas (2)'!E36) -> 502 | D36: =IF('Registro de quejas (2)'!H36=0,"",'Registro de quejas (2)'!H36) -> demasiado ruido causado por el generador | E36: =IF('Registro de quejas (2)'!G36=0,"",'Registro de quejas (2)'!Q36) -> SE TRAJO UN TÉCNICO DE RUIDO PARA DETECTAR EL ORIGEN Y LA SOLUCIÓN | H36: =IF('Registro de quejas (2)'!U36="si","si",IF('Registro de quejas (2)'!U36="No","No",IF('Registro de quejas (2)'!U36<=Impresión!J$1,"No",IF('Registro de quejas (2)'!U36>Impresión!J$1,"Proceso"," ")))) -> si | I36: 1 | J36: 53
A37: =IF('Registro de quejas (2)'!B37=0,"",'Registro de quejas (2)'!B37) -> 2018-04-27 | B37: =IF('Registro de quejas (2)'!A37=0,"",'Registro de quejas (2)'!A37) -> 458 | C37: =IF('Registro de quejas (2)'!E37=0,"",'Registro de quejas (2)'!E37) -> 406 | D37: =IF('Registro de quejas (2)'!H37=0,"",'Registro de quejas (2)'!H37) -> demasiado ruido causado por el generador | E37: =IF('Registro de quejas (2)'!G37=0,"",'Registro de quejas (2)'!Q37) -> SE TRAJO UN TÉCNICO DE RUIDO PARA DETECTAR EL ORIGEN Y LA SOLUCIÓN | H37: =IF('Registro de quejas (2)'!U37="si","si",IF('Registro de quejas (2)'!U37="No","No",IF('Registro de quejas (2)'!U37<=Impresión!J$1,"No",IF('Registro de quejas (2)'!U37>Impresión!J$1,"Proceso"," ")))) -> si | I37: 1 | J37: 53
A38: =IF('Registro de quejas (2)'!B38=0,"",'Registro de quejas (2)'!B38) -> 2018-04-27 | B38: =IF('Registro de quejas (2)'!A38=0,"",'Registro de quejas (2)'!A38) -> 459 | C38: =IF('Registro de quejas (2)'!E38=0,"",'Registro de quejas (2)'!E38) -> 510 | D38: =IF('Registro de quejas (2)'!H38=0,"",'Registro de quejas (2)'!H38) -> Huespedes se acercan molestos arecepción para reclamar que como puede ser posible que no haya ni una sola silla en la habitación, ellos son una pareja de baja estatura y solicitan se les dé una silla a la habitación. | E38: =IF('Registro de quejas (2)'!G38=0,"",'Registro de quejas (2)'!Q38) -> YA MERITO | H38: =IF('Registro de quejas (2)'!U38="si","si",IF('Registro de quejas (2)'!U38="No","No",IF('Registro de quejas (2)'!U38<=Impresión!J$1,"No",IF('Registro de quejas (2)'!U38>Impresión!J$1,"Proceso"," ")))) -> si | I38: 1 | J38: 53
A39: =IF('Registro de quejas (2)'!B39=0,"",'Registro de quejas (2)'!B39) -> 2018-04-27 | B39: =IF('Registro de quejas (2)'!A39=0,"",'Registro de quejas (2)'!A39) -> 460 | C39: =IF('Registro de quejas (2)'!E39=0,"",'Registro de quejas (2)'!E39) -> 103 | D39: =IF('Registro de quejas (2)'!H39=0,"",'Registro de quejas (2)'!H39) -> Mas opciones para el menu de desayuno, todos los días lo mismo no nos hace felices | E39: =IF('Registro de quejas (2)'!G39=0,"",'Registro de quejas (2)'!Q39) -> DIEGO ESTÁ TRABAJANDO EN ESO | H39: =IF('Registro de quejas (2)'!U39="si","si",IF('Registro de quejas (2)'!U39="No","No",IF('Registro de quejas (2)'!U39<=Impresión!J$1,"No",IF('Registro de quejas (2)'!U39>Impresión!J$1,"Proceso"," ")))) -> si | I39: 1 | J39: 53
A40: =IF('Registro de quejas (2)'!B40=0,"",'Registro de quejas (2)'!B40) -> 2018-04-26 | B40: =IF('Registro de quejas (2)'!A40=0,"",'Registro de quejas (2)'!A40) -> 461 | C40: =IF('Registro de quejas (2)'!E40=0,"",'Registro de quejas (2)'!E40) -> 104 | D40: =IF('Registro de quejas (2)'!H40=0,"",'Registro de quejas (2)'!H40) -> La ceramica de la hab es muy resbalosa y cuando esta mojada es muy dificl caminar para las personas que tenemos problemas caminando | E40: =IF('Registro de quejas (2)'!G40=0,"",'Registro de quejas (2)'!Q40) -> NO SE HA RECOGIDO EL PRODUCTO DE PROVEEDURÍA | H40: =IF('Registro de quejas (2)'!U40="si","si",IF('Registro de quejas (2)'!U40="No","No",IF('Registro de quejas (2)'!U40<=Impresión!J$1,"No",IF('Registro de quejas (2)'!U40>Impresión!J$1,"Proceso"," ")))) -> si | I40: 1 | J40: 53
A41: =IF('Registro de quejas (2)'!B41=0,"",'Registro de quejas (2)'!B41) -> 2018-04-27 | B41: =IF('Registro de quejas (2)'!A41=0,"",'Registro de quejas (2)'!A41) -> 462 | C41: =IF('Registro de quejas (2)'!E41=0,"",'Registro de quejas (2)'!E41) ->  | D41: =IF('Registro de quejas (2)'!H41=0,"",'Registro de quejas (2)'!H41) -> Ayer note que hay falta de iluminación en el jacuzzi, les pregunte a mantenimiento y me dijeron que están esperando unas lámparas. Solamente para que tomen nota de esto, asi nos evitamos un accidente. | E41: =IF('Registro de quejas (2)'!G41=0,"",'Registro de quejas (2)'!Q41) ->  | H41: =IF('Registro de quejas (2)'!U41="si","si",IF('Registro de quejas (2)'!U41="No","No",IF('Registro de quejas (2)'!U41<=Impresión!J$1,"No",IF('Registro de quejas (2)'!U41>Impresión!J$1,"Proceso"," ")))) -> si | I41: 1 | J41: 53
A42: =IF('Registro de quejas (2)'!B42=0,"",'Registro de quejas (2)'!B42) -> 2018-04-28 | B42: =IF('Registro de quejas (2)'!A42=0,"",'Registro de quejas (2)'!A42) -> 463 | C42: =IF('Registro de quejas (2)'!E42=0,"",'Registro de quejas (2)'!E42) -> 402 | D42: =IF('Registro de quejas (2)'!H42=0,"",'Registro de quejas (2)'!H42) -> Huesped se queja que el gimnasio necesita mejor equipo. | E42: =IF('Registro de quejas (2)'!G42=0,"",'Registro de quejas (2)'!Q42) -> PEDIRLE A EDWARD QUE NOS ASESORE | H42: =IF('Registro de quejas (2)'!U42="si","si",IF('Registro de quejas (2)'!U42="No","No",IF('Registro de quejas (2)'!U42<=Impresión!J$1,"No",IF('Registro de quejas (2)'!U42>Impresión!J$1,"Proceso"," ")))) -> si | I42: 1 | J42: 53
A43: =IF('Registro de quejas (2)'!B43=0,"",'Registro de quejas (2)'!B43) -> 2018-04-28 | B43: =IF('Registro de quejas (2)'!A43=0,"",'Registro de quejas (2)'!A43) -> 464 | C43: =IF('Registro de quejas (2)'!E43=0,"",'Registro de quejas (2)'!E43) -> 106 | D43: =IF('Registro de quejas (2)'!H43=0,"",'Registro de quejas (2)'!H43) -> Huesped indica que la música del bar húmedo podría mejorar y no ser aburrida y desactualizada. | E43: =IF('Registro de quejas (2)'!G43=0,"",'Registro de quejas (2)'!Q43) -> COMENTAR CON BAR PISCINAS | H43: =IF('Registro de quejas (2)'!U43="si","si",IF('Registro de quejas (2)'!U43="No","No",IF('Registro de quejas (2)'!U43<=Impresión!J$1,"No",IF('Registro de quejas (2)'!U43>Impresión!J$1,"Proceso"," ")))) -> si | I43: 1 | J43: 53
A44: =IF('Registro de quejas (2)'!B44=0,"",'Registro de quejas (2)'!B44) -> 2018-04-29 | B44: =IF('Registro de quejas (2)'!A44=0,"",'Registro de quejas (2)'!A44) -> 465 | C44: =IF('Registro de quejas (2)'!E44=0,"",'Registro de quejas (2)'!E44) -> 901 | D44: =IF('Registro de quejas (2)'!H44=0,"",'Registro de quejas (2)'!H44) -> Huesped al hacer check-out se queja del funcionamiento del Aire Acondicionado, indica que no enfría y que nunca pudieron refrescar la habitación como lo deseaban. | E44: =IF('Registro de quejas (2)'!G44=0,"",'Registro de quejas (2)'!Q44) -> COMENTAR CON MELISSA | H44: =IF('Registro de quejas (2)'!U44="si","si",IF('Registro de quejas (2)'!U44="No","No",IF('Registro de quejas (2)'!U44<=Impresión!J$1,"No",IF('Registro de quejas (2)'!U44>Impresión!J$1,"Proceso"," ")))) -> si | I44: 1 | J44: 53
A45: =IF('Registro de quejas (2)'!B45=0,"",'Registro de quejas (2)'!B45) -> 2018-04-29 | B45: =IF('Registro de quejas (2)'!A45=0,"",'Registro de quejas (2)'!A45) -> 466 | C45: =IF('Registro de quejas (2)'!E45=0,"",'Registro de quejas (2)'!E45) -> 111 | D45: =IF('Registro de quejas (2)'!H45=0,"",'Registro de quejas (2)'!H45) -> Huesped solicita mejor la calidad del pepperoni de las pizzas. | E45: =IF('Registro de quejas (2)'!G45=0,"",'Registro de quejas (2)'!Q45) -> SE VAN A PROBAR PARA LA OTRA SEMANA | H45: =IF('Registro de quejas (2)'!U45="si","si",IF('Registro de quejas (2)'!U45="No","No",IF('Registro de quejas (2)'!U45<=Impresión!J$1,"No",IF('Registro de quejas (2)'!U45>Impresión!J$1,"Proceso"," ")))) -> si | I45: 1 | J45: 53
A46: =IF('Registro de quejas (2)'!B46=0,"",'Registro de quejas (2)'!B46) -> 2018-04-29 | B46: =IF('Registro de quejas (2)'!A46=0,"",'Registro de quejas (2)'!A46) -> 467 | C46: =IF('Registro de quejas (2)'!E46=0,"",'Registro de quejas (2)'!E46) -> 106 | D46: =IF('Registro de quejas (2)'!H46=0,"",'Registro de quejas (2)'!H46) -> Puerta del baño se encuentra mala y caída. | E46: =IF('Registro de quejas (2)'!G46=0,"",'Registro de quejas (2)'!Q46) -> AVERIGUAR LO QUE INDICA EL CLIENTE | H46: =IF('Registro de quejas (2)'!U46="si","si",IF('Registro de quejas (2)'!U46="No","No",IF('Registro de quejas (2)'!U46<=Impresión!J$1,"No",IF('Registro de quejas (2)'!U46>Impresión!J$1,"Proceso"," ")))) -> si | I46: 1 | J46: 53
A47: =IF('Registro de quejas (2)'!B47=0,"",'Registro de quejas (2)'!B47) -> 2018-04-29 | B47: =IF('Registro de quejas (2)'!A47=0,"",'Registro de quejas (2)'!A47) -> 468 | C47: =IF('Registro de quejas (2)'!E47=0,"",'Registro de quejas (2)'!E47) -> 306 | D47: =IF('Registro de quejas (2)'!H47=0,"",'Registro de quejas (2)'!H47) -> Huesped sequeja del sonido que se percibe desde las otras habitaciones | E47: =IF('Registro de quejas (2)'!G47=0,"",'Registro de quejas (2)'!Q47) -> SE VA A CREAR UN EQUIPO DE INVESTIGACIÓN DE SONIDOS | H47: =IF('Registro de quejas (2)'!U47="si","si",IF('Registro de quejas (2)'!U47="No","No",IF('Registro de quejas (2)'!U47<=Impresión!J$1,"No",IF('Registro de quejas (2)'!U47>Impresión!J$1,"Proceso"," ")))) -> si | I47: 1 | J47: 53
A48: =IF('Registro de quejas (2)'!B48=0,"",'Registro de quejas (2)'!B48) -> 2018-04-29 | B48: =IF('Registro de quejas (2)'!A48=0,"",'Registro de quejas (2)'!A48) -> 469 | C48: =IF('Registro de quejas (2)'!E48=0,"",'Registro de quejas (2)'!E48) -> 311 | D48: =IF('Registro de quejas (2)'!H48=0,"",'Registro de quejas (2)'!H48) -> El mojito estaba horrible y muy caro | E48: =IF('Registro de quejas (2)'!G48=0,"",'Registro de quejas (2)'!Q48) -> DIEGO VA A REVISAR LO QUE SUCEDIÓ | H48: =IF('Registro de quejas (2)'!U48="si","si",IF('Registro de quejas (2)'!U48="No","No",IF('Registro de quejas (2)'!U48<=Impresión!J$1,"No",IF('Registro de quejas (2)'!U48>Impresión!J$1,"Proceso"," ")))) -> si | I48: 1 | J48: 53
A49: =IF('Registro de quejas (2)'!B49=0,"",'Registro de quejas (2)'!B49) -> 2018-04-29 | B49: =IF('Registro de quejas (2)'!A49=0,"",'Registro de quejas (2)'!A49) -> 470 | C49: =IF('Registro de quejas (2)'!E49=0,"",'Registro de quejas (2)'!E49) -> 201 | D49: =IF('Registro de quejas (2)'!H49=0,"",'Registro de quejas (2)'!H49) -> Huesped indica que deberían agregar mas espacios en la piscina para descansar, ejemplo: camitas de piedra en el agua y no solo asientos. | E49: =IF('Registro de quejas (2)'!G49=0,"",'Registro de quejas (2)'!Q49) -> COMENTAR CON GERENCIA | H49: =IF('Registro de quejas (2)'!U49="si","si",IF('Registro de quejas (2)'!U49="No","No",IF('Registro de quejas (2)'!U49<=Impresión!J$1,"No",IF('Registro de quejas (2)'!U49>Impresión!J$1,"Proceso"," ")))) -> si | I49: 1 | J49: 53
A50: =IF('Registro de quejas (2)'!B50=0,"",'Registro de quejas (2)'!B50) -> 2018-04-30 | B50: =IF('Registro de quejas (2)'!A50=0,"",'Registro de quejas (2)'!A50) -> 471 | C50: =IF('Registro de quejas (2)'!E50=0,"",'Registro de quejas (2)'!E50) -> 305 | D50: =IF('Registro de quejas (2)'!H50=0,"",'Registro de quejas (2)'!H50) -> "Mi esposo queria un masaje de envoltura o exfoliación com decía que cerraban a las 8 pm, esperabamos que nos pudieran atender después de las 3 pm, pero nos dijeron que no porque las muchachas salian a las 6 pm, además no había recepcionista para buscar la info tuvimos que interrumpir una sesión. | E50: =IF('Registro de quejas (2)'!G50=0,"",'Registro de quejas (2)'!Q50) -> COMENTAR CON YEIMY | H50: =IF('Registro de quejas (2)'!U50="si","si",IF('Registro de quejas (2)'!U50="No","No",IF('Registro de quejas (2)'!U50<=Impresión!J$1,"No",IF('Registro de quejas (2)'!U50>Impresión!J$1,"Proceso"," ")))) -> si | I50: 1 | J50: 53
A51: =IF('Registro de quejas (2)'!B51=0,"",'Registro de quejas (2)'!B51) -> 2018-04-30 | B51: =IF('Registro de quejas (2)'!A51=0,"",'Registro de quejas (2)'!A51) -> 472 | C51: =IF('Registro de quejas (2)'!E51=0,"",'Registro de quejas (2)'!E51) -> 409 | D51: =IF('Registro de quejas (2)'!H51=0,"",'Registro de quejas (2)'!H51) -> Sería bueno que tuvieran sangría en todos los bares | E51: =IF('Registro de quejas (2)'!G51=0,"",'Registro de quejas (2)'!Q51) -> YA SE HICIERON LOS AJUSTES PARA OFRECER SANGRÍA EN TODOS LOS BARES | H51: =IF('Registro de quejas (2)'!U51="si","si",IF('Registro de quejas (2)'!U51="No","No",IF('Registro de quejas (2)'!U51<=Impresión!J$1,"No",IF('Registro de quejas (2)'!U51>Impresión!J$1,"Proceso"," ")))) -> si | I51: 1 | J51: 53
A52: =IF('Registro de quejas (2)'!B52=0,"",'Registro de quejas (2)'!B52) -> 2018-05-01 | B52: =IF('Registro de quejas (2)'!A52=0,"",'Registro de quejas (2)'!A52) -> 473 | C52: =IF('Registro de quejas (2)'!E52=0,"",'Registro de quejas (2)'!E52) -> 307 | D52: =IF('Registro de quejas (2)'!H52=0,"",'Registro de quejas (2)'!H52) -> Huesped se acerca a recepcion disgustado acerca de una situacion acontecida en el Rest Italiano, indica que solicitó una pizza cuya cual venia con un pedazo de plastico y nos informa que al expresar su disgusto con el compañero presente hizo caso omiso a su reclamo, el nos expresa que firmó la factura inconforme por lo tanto vino a Recepcion a mostrar su descontento, solicitando una solucipon al respecto. (huesped vino resintiendo su malestar, cubriendo su abdomen con su mano) | E52: =IF('Registro de quejas (2)'!G52=0,"",'Registro de quejas (2)'!Q52) -> COBRAR POR PARTES IGUALES LA PIZZA Y LAS BEBIDAS DE CORTESÍAS | H52: =IF('Registro de quejas (2)'!U52="si","si",IF('Registro de quejas (2)'!U52="No","No",IF('Registro de quejas (2)'!U52<=Impresión!J$1,"No",IF('Registro de quejas (2)'!U52>Impresión!J$1,"Proceso"," ")))) -> si | I52: 1 | J52: 53
A53: =IF('Registro de quejas (2)'!B53=0,"",'Registro de quejas (2)'!B53) -> 2018-04-30 | B53: =IF('Registro de quejas (2)'!A53=0,"",'Registro de quejas (2)'!A53) -> 474 | C53: =IF('Registro de quejas (2)'!E53=0,"",'Registro de quejas (2)'!E53) -> 110 | D53: =IF('Registro de quejas (2)'!H53=0,"",'Registro de quejas (2)'!H53) -> Los cocteles y bebidas en general muy caros y con mejoras pendientes en calidad | E53: =IF('Registro de quejas (2)'!G53=0,"",'Registro de quejas (2)'!Q53) -> COMUNICAR A SALON SOBRE EL COMENTARIO | H53: =IF('Registro de quejas (2)'!U53="si","si",IF('Registro de quejas (2)'!U53="No","No",IF('Registro de quejas (2)'!U53<=Impresión!J$1,"No",IF('Registro de quejas (2)'!U53>Impresión!J$1,"Proceso"," ")))) -> si | I53: 1 | J53: 53
A54: =IF('Registro de quejas (2)'!B54=0,"",'Registro de quejas (2)'!B54) -> 2018-05-01 | B54: =IF('Registro de quejas (2)'!A54=0,"",'Registro de quejas (2)'!A54) -> 475 | C54: =IF('Registro de quejas (2)'!E54=0,"",'Registro de quejas (2)'!E54) -> 402 | D54: =IF('Registro de quejas (2)'!H54=0,"",'Registro de quejas (2)'!H54) -> Mejorar la calidad del café en el desayuno | E54: =IF('Registro de quejas (2)'!G54=0,"",'Registro de quejas (2)'!Q54) -> HABLAR CON GERENCIA | H54: =IF('Registro de quejas (2)'!U54="si","si",IF('Registro de quejas (2)'!U54="No","No",IF('Registro de quejas (2)'!U54<=Impresión!J$1,"No",IF('Registro de quejas (2)'!U54>Impresión!J$1,"Proceso"," ")))) -> si | I54: 1 | J54: 53
A55: =IF('Registro de quejas (2)'!B55=0,"",'Registro de quejas (2)'!B55) -> 2018-05-01 | B55: =IF('Registro de quejas (2)'!A55=0,"",'Registro de quejas (2)'!A55) -> 476 | C55: =IF('Registro de quejas (2)'!E55=0,"",'Registro de quejas (2)'!E55) -> 402 | D55: =IF('Registro de quejas (2)'!H55=0,"",'Registro de quejas (2)'!H55) -> Mejorar la calidad del champú-gel manzana | E55: =IF('Registro de quejas (2)'!G55=0,"",'Registro de quejas (2)'!Q55) -> SE VA A CAMBIAR LA RECETA | H55: =IF('Registro de quejas (2)'!U55="si","si",IF('Registro de quejas (2)'!U55="No","No",IF('Registro de quejas (2)'!U55<=Impresión!J$1,"No",IF('Registro de quejas (2)'!U55>Impresión!J$1,"Proceso"," ")))) -> si | I55: 1 | J55: 53
A56: =IF('Registro de quejas (2)'!B56=0,"",'Registro de quejas (2)'!B56) -> 2018-04-29 | B56: =IF('Registro de quejas (2)'!A56=0,"",'Registro de quejas (2)'!A56) -> 477 | C56: =IF('Registro de quejas (2)'!E56=0,"",'Registro de quejas (2)'!E56) -> 302 | D56: =IF('Registro de quejas (2)'!H56=0,"",'Registro de quejas (2)'!H56) -> El jugo de naranja podrá ser hecho con frutas a mano | E56: =IF('Registro de quejas (2)'!G56=0,"",'Registro de quejas (2)'!Q56) -> JUGO ES ARTESANAL | H56: =IF('Registro de quejas (2)'!U56="si","si",IF('Registro de quejas (2)'!U56="No","No",IF('Registro de quejas (2)'!U56<=Impresión!J$1,"No",IF('Registro de quejas (2)'!U56>Impresión!J$1,"Proceso"," ")))) -> si | I56: 1 | J56: 53
A57: =IF('Registro de quejas (2)'!B57=0,"",'Registro de quejas (2)'!B57) -> 2018-04-29 | B57: =IF('Registro de quejas (2)'!A57=0,"",'Registro de quejas (2)'!A57) -> 478 | C57: =IF('Registro de quejas (2)'!E57=0,"",'Registro de quejas (2)'!E57) -> 302 | D57: =IF('Registro de quejas (2)'!H57=0,"",'Registro de quejas (2)'!H57) -> Un basurero cerrado en el baño, sería bueno | E57: =IF('Registro de quejas (2)'!G57=0,"",'Registro de quejas (2)'!Q57) -> BASUREROS VIENEN EN CAMINO | H57: =IF('Registro de quejas (2)'!U57="si","si",IF('Registro de quejas (2)'!U57="No","No",IF('Registro de quejas (2)'!U57<=Impresión!J$1,"No",IF('Registro de quejas (2)'!U57>Impresión!J$1,"Proceso"," ")))) -> si | I57: 1 | J57: 53
A58: =IF('Registro de quejas (2)'!B58=0,"",'Registro de quejas (2)'!B58) -> 2018-04-30 | B58: =IF('Registro de quejas (2)'!A58=0,"",'Registro de quejas (2)'!A58) -> 479 | C58: =IF('Registro de quejas (2)'!E58=0,"",'Registro de quejas (2)'!E58) -> 708 | D58: =IF('Registro de quejas (2)'!H58=0,"",'Registro de quejas (2)'!H58) -> Las camas son un poco duras | E58: =IF('Registro de quejas (2)'!G58=0,"",'Registro de quejas (2)'!Q58) -> Validar lo informado por el cliente | H58: =IF('Registro de quejas (2)'!U58="si","si",IF('Registro de quejas (2)'!U58="No","No",IF('Registro de quejas (2)'!U58<=Impresión!J$1,"No",IF('Registro de quejas (2)'!U58>Impresión!J$1,"Proceso"," ")))) -> si | I58: 1 | J58: 53
A59: =IF('Registro de quejas (2)'!B59=0,"",'Registro de quejas (2)'!B59) -> 2018-05-01 | B59: =IF('Registro de quejas (2)'!A59=0,"",'Registro de quejas (2)'!A59) -> 480 | C59: =IF('Registro de quejas (2)'!E59=0,"",'Registro de quejas (2)'!E59) -> 208 | D59: =IF('Registro de quejas (2)'!H59=0,"",'Registro de quejas (2)'!H59) -> El chef de la piscina fue muy descortés al no dejar que los niños jueguen en la piscina. | E59: =IF('Registro de quejas (2)'!G59=0,"",'Registro de quejas (2)'!Q59) -> HABLAR CON WILBERTH DE CAMBIAR LA FORMA DE LLAMAR LA ATENCIÓN | H59: =IF('Registro de quejas (2)'!U59="si","si",IF('Registro de quejas (2)'!U59="No","No",IF('Registro de quejas (2)'!U59<=Impresión!J$1,"No",IF('Registro de quejas (2)'!U59>Impresión!J$1,"Proceso"," ")))) -> si | I59: 1 | J59: 53
A60: =IF('Registro de quejas (2)'!B60=0,"",'Registro de quejas (2)'!B60) -> 2018-05-01 | B60: =IF('Registro de quejas (2)'!A60=0,"",'Registro de quejas (2)'!A60) -> 481 | C60: =IF('Registro de quejas (2)'!E60=0,"",'Registro de quejas (2)'!E60) -> 509 | D60: =IF('Registro de quejas (2)'!H60=0,"",'Registro de quejas (2)'!H60) -> La comida es muy cara y regular, la comida de las sodas de afuera es mucho mejor y menos cara | E60: =IF('Registro de quejas (2)'!G60=0,"",'Registro de quejas (2)'!Q60) -> REVISAR PORCIONES | H60: =IF('Registro de quejas (2)'!U60="si","si",IF('Registro de quejas (2)'!U60="No","No",IF('Registro de quejas (2)'!U60<=Impresión!J$1,"No",IF('Registro de quejas (2)'!U60>Impresión!J$1,"Proceso"," ")))) -> si | I60: 1 | J60: 53
A61: =IF('Registro de quejas (2)'!B61=0,"",'Registro de quejas (2)'!B61) -> 2018-05-01 | B61: =IF('Registro de quejas (2)'!A61=0,"",'Registro de quejas (2)'!A61) -> 482 | C61: =IF('Registro de quejas (2)'!E61=0,"",'Registro de quejas (2)'!E61) -> 410 | D61: =IF('Registro de quejas (2)'!H61=0,"",'Registro de quejas (2)'!H61) -> Hacer que uno se sirva el café | E61: =IF('Registro de quejas (2)'!G61=0,"",'Registro de quejas (2)'!Q61) -> CARACTERISTICA DEL HOTEL ES EL SERVICIO Y NO EL AUTOSERVICIO | H61: =IF('Registro de quejas (2)'!U61="si","si",IF('Registro de quejas (2)'!U61="No","No",IF('Registro de quejas (2)'!U61<=Impresión!J$1,"No",IF('Registro de quejas (2)'!U61>Impresión!J$1,"Proceso"," ")))) -> si | I61: 1 | J61: 53
A62: =IF('Registro de quejas (2)'!B62=0,"",'Registro de quejas (2)'!B62) -> 2018-05-01 | B62: =IF('Registro de quejas (2)'!A62=0,"",'Registro de quejas (2)'!A62) -> 483 | C62: =IF('Registro de quejas (2)'!E62=0,"",'Registro de quejas (2)'!E62) -> 604 | D62: =IF('Registro de quejas (2)'!H62=0,"",'Registro de quejas (2)'!H62) -> El té de la habitación de manzanilla tiene sabor a tierra | E62: =IF('Registro de quejas (2)'!G62=0,"",'Registro de quejas (2)'!Q62) -> VER LA FECHA DEL LOTE DE LAS CAJAS DE TE DE MANZANILLA | H62: =IF('Registro de quejas (2)'!U62="si","si",IF('Registro de quejas (2)'!U62="No","No",IF('Registro de quejas (2)'!U62<=Impresión!J$1,"No",IF('Registro de quejas (2)'!U62>Impresión!J$1,"Proceso"," ")))) -> si | I62: 1 | J62: 53
A63: =IF('Registro de quejas (2)'!B63=0,"",'Registro de quejas (2)'!B63) -> 2018-05-02 | B63: =IF('Registro de quejas (2)'!A63=0,"",'Registro de quejas (2)'!A63) -> 484 | C63: =IF('Registro de quejas (2)'!E63=0,"",'Registro de quejas (2)'!E63) -> 411 | D63: =IF('Registro de quejas (2)'!H63=0,"",'Registro de quejas (2)'!H63) -> Huesped se queja debido a que el hotel no cuenta con una acera o camino especial para personas discapacitadas desde las habitaciones hasta las areas comunes, piscinas y restaurantes. Además se queja que en la noche no hay señalización iluminada y que cuando se transita los carritos de golf pasan muy cerca de los peatones. | E63: =IF('Registro de quejas (2)'!G63=0,"",'Registro de quejas (2)'!Q63) -> Considerar acera | H63: =IF('Registro de quejas (2)'!U63="si","si",IF('Registro de quejas (2)'!U63="No","No",IF('Registro de quejas (2)'!U63<=Impresión!J$1,"No",IF('Registro de quejas (2)'!U63>Impresión!J$1,"Proceso"," ")))) -> si | I63: 1 | J63: 53
A64: =IF('Registro de quejas (2)'!B64=0,"",'Registro de quejas (2)'!B64) -> 2018-05-03 | B64: =IF('Registro de quejas (2)'!A64=0,"",'Registro de quejas (2)'!A64) -> 485 | C64: =IF('Registro de quejas (2)'!E64=0,"",'Registro de quejas (2)'!E64) -> 101 | D64: =IF('Registro de quejas (2)'!H64=0,"",'Registro de quejas (2)'!H64) -> Cliente reporta que se metieron a la habitacion y extrajeron dinero en efectivo y un celular, mientras ellos estaban en la cena. | E64: =IF('Registro de quejas (2)'!G64=0,"",'Registro de quejas (2)'!Q64) -> CONSIDERAR CERCA ELÉCTRICA // ASIGNAR QUIEN SUPERVISE RECORRIDO DE GUARDAS | H64: =IF('Registro de quejas (2)'!U64="si","si",IF('Registro de quejas (2)'!U64="No","No",IF('Registro de quejas (2)'!U64<=Impresión!J$1,"No",IF('Registro de quejas (2)'!U64>Impresión!J$1,"Proceso"," ")))) -> si | I64: 1 | J64: 53
A65: =IF('Registro de quejas (2)'!B65=0,"",'Registro de quejas (2)'!B65) -> 2018-05-03 | B65: =IF('Registro de quejas (2)'!A65=0,"",'Registro de quejas (2)'!A65) -> 486 | C65: =IF('Registro de quejas (2)'!E65=0,"",'Registro de quejas (2)'!E65) -> 111 | D65: =IF('Registro de quejas (2)'!H65=0,"",'Registro de quejas (2)'!H65) -> Huespedes se quejan de tratamiento recibido en el SPA, se muestran molestos y decepcionados porque no quedaron satisfechos con el trabajo que se llevó a cabo en un pedicure, se quejaron de la silla que es muy incómoda, de que no les masajearon los pies mas de 4 minutos a pesar de que el tratamiento duraba 60 minutos y además aclaran que no se le tenía agua caliente para colocar los pies y sentirse relajada. | E65: =IF('Registro de quejas (2)'!G65=0,"",'Registro de quejas (2)'!Q65) -> HABLAR CON YEIMY | H65: =IF('Registro de quejas (2)'!U65="si","si",IF('Registro de quejas (2)'!U65="No","No",IF('Registro de quejas (2)'!U65<=Impresión!J$1,"No",IF('Registro de quejas (2)'!U65>Impresión!J$1,"Proceso"," ")))) -> si | I65: 1 | J65: 53
A66: =IF('Registro de quejas (2)'!B66=0,"",'Registro de quejas (2)'!B66) -> 2018-05-04 | B66: =IF('Registro de quejas (2)'!A66=0,"",'Registro de quejas (2)'!A66) -> 487 | C66: =IF('Registro de quejas (2)'!E66=0,"",'Registro de quejas (2)'!E66) -> 701 | D66: =IF('Registro de quejas (2)'!H66=0,"",'Registro de quejas (2)'!H66) -> Pequeñas hormigas en el baño, en el area de la caja de manicure | E66: =IF('Registro de quejas (2)'!G66=0,"",'Registro de quejas (2)'!Q66) -> PLAN DE FUMIGACIÓN | H66: =IF('Registro de quejas (2)'!U66="si","si",IF('Registro de quejas (2)'!U66="No","No",IF('Registro de quejas (2)'!U66<=Impresión!J$1,"No",IF('Registro de quejas (2)'!U66>Impresión!J$1,"Proceso"," ")))) -> si | I66: 1 | J66: 53
A67: =IF('Registro de quejas (2)'!B67=0,"",'Registro de quejas (2)'!B67) -> 2018-05-05 | B67: =IF('Registro de quejas (2)'!A67=0,"",'Registro de quejas (2)'!A67) -> 488 | C67: =IF('Registro de quejas (2)'!E67=0,"",'Registro de quejas (2)'!E67) -> 702 | D67: =IF('Registro de quejas (2)'!H67=0,"",'Registro de quejas (2)'!H67) -> Huesped se queja de que el hotel debería de tener mas opciones de ensaladas. | E67: =IF('Registro de quejas (2)'!G67=0,"",'Registro de quejas (2)'!Q67) -> REVISAR LA CANTIDAD | H67: =IF('Registro de quejas (2)'!U67="si","si",IF('Registro de quejas (2)'!U67="No","No",IF('Registro de quejas (2)'!U67<=Impresión!J$1,"No",IF('Registro de quejas (2)'!U67>Impresión!J$1,"Proceso"," ")))) -> si | I67: =I66 -> 1 | J67: 53
A68: =IF('Registro de quejas (2)'!B68=0,"",'Registro de quejas (2)'!B68) -> 2018-05-05 | B68: =IF('Registro de quejas (2)'!A68=0,"",'Registro de quejas (2)'!A68) -> 489 | C68: =IF('Registro de quejas (2)'!E68=0,"",'Registro de quejas (2)'!E68) -> 702 | D68: =IF('Registro de quejas (2)'!H68=0,"",'Registro de quejas (2)'!H68) -> Huesped indica que talvez un spray´insecticida pequeño sería útil para los insectos que aparezcan durante la estadía. | E68: =IF('Registro de quejas (2)'!G68=0,"",'Registro de quejas (2)'!Q68) -> PLAN DE FUMIGACIÓN | H68: =IF('Registro de quejas (2)'!U68="si","si",IF('Registro de quejas (2)'!U68="No","No",IF('Registro de quejas (2)'!U68<=Impresión!J$1,"No",IF('Registro de quejas (2)'!U68>Impresión!J$1,"Proceso"," ")))) -> si | I68: 1 | J68: 53
A69: =IF('Registro de quejas (2)'!B69=0,"",'Registro de quejas (2)'!B69) -> 2018-05-04 | B69: =IF('Registro de quejas (2)'!A69=0,"",'Registro de quejas (2)'!A69) -> 490 | C69: =IF('Registro de quejas (2)'!E69=0,"",'Registro de quejas (2)'!E69) -> 601 | D69: =IF('Registro de quejas (2)'!H69=0,"",'Registro de quejas (2)'!H69) -> Huespedes se quejan porque el hotel deberia considerar tener menus de los restaurantes en las habitaciones y así facilitar el servicio a la habitación. | E69: =IF('Registro de quejas (2)'!G69=0,"",'Registro de quejas (2)'!Q69) -> AGREGAR MENÚ EN EL DIRECTORIO | H69: =IF('Registro de quejas (2)'!U69="si","si",IF('Registro de quejas (2)'!U69="No","No",IF('Registro de quejas (2)'!U69<=Impresión!J$1,"No",IF('Registro de quejas (2)'!U69>Impresión!J$1,"Proceso"," ")))) -> si | I69: 1 | J69: 53
A70: =IF('Registro de quejas (2)'!B70=0,"",'Registro de quejas (2)'!B70) -> 2018-05-05 | B70: =IF('Registro de quejas (2)'!A70=0,"",'Registro de quejas (2)'!A70) -> 491 | C70: =IF('Registro de quejas (2)'!E70=0,"",'Registro de quejas (2)'!E70) -> 304 | D70: =IF('Registro de quejas (2)'!H70=0,"",'Registro de quejas (2)'!H70) -> Huesped se queja que el detector de humo se encendió a las 12:30am y comenzó a hacer beep, el mismo se queja que tuvo que llamar a la mañana siguiente para que el staff se diera cuenta. | E70: =IF('Registro de quejas (2)'!G70=0,"",'Registro de quejas (2)'!Q70) -> QUITAR TODOS LOS DETECTORES VIEJOS | H70: =IF('Registro de quejas (2)'!U70="si","si",IF('Registro de quejas (2)'!U70="No","No",IF('Registro de quejas (2)'!U70<=Impresión!J$1,"No",IF('Registro de quejas (2)'!U70>Impresión!J$1,"Proceso"," ")))) -> si | I70: 1 | J70: =H$1 -> 53
A71: =IF('Registro de quejas (2)'!B71=0,"",'Registro de quejas (2)'!B71) -> 2018-05-06 | B71: =IF('Registro de quejas (2)'!A71=0,"",'Registro de quejas (2)'!A71) -> 492 | C71: =IF('Registro de quejas (2)'!E71=0,"",'Registro de quejas (2)'!E71) -> 609 | D71: =IF('Registro de quejas (2)'!H71=0,"",'Registro de quejas (2)'!H71) -> Huesped se queja de que el hotel no dispone de un area de juegos para los niños, la señora me indica que quedaron encantados con el lugar pero debido a que su familia tiene varios niños pues consideran que es necesario tener un area con pequeño playground. | E71: =IF('Registro de quejas (2)'!G71=0,"",'Registro de quejas (2)'!Q71) -> DARLE SIGUIMIENTO AL AREA PARA NIÑOS | H71: =IF('Registro de quejas (2)'!U71="si","si",IF('Registro de quejas (2)'!U71="No","No",IF('Registro de quejas (2)'!U71<=Impresión!J$1,"No",IF('Registro de quejas (2)'!U71>Impresión!J$1,"Proceso"," ")))) -> si | I71: 1 | J71: 53
A72: =IF('Registro de quejas (2)'!B72=0,"",'Registro de quejas (2)'!B72) -> 2018-05-04 | B72: =IF('Registro de quejas (2)'!A72=0,"",'Registro de quejas (2)'!A72) -> 493 | C72: =IF('Registro de quejas (2)'!E72=0,"",'Registro de quejas (2)'!E72) -> 107 | D72: =IF('Registro de quejas (2)'!H72=0,"",'Registro de quejas (2)'!H72) -> Huesped se queja de lo limitado del menú con opciones vegetarianas y reclama por mas opciones. | E72: =IF('Registro de quejas (2)'!G72=0,"",'Registro de quejas (2)'!Q72) -> HACER UN SOLO MENÚ DE VEGETARIANOS | H72: =IF('Registro de quejas (2)'!U72="si","si",IF('Registro de quejas (2)'!U72="No","No",IF('Registro de quejas (2)'!U72<=Impresión!J$1,"No",IF('Registro de quejas (2)'!U72>Impresión!J$1,"Proceso"," ")))) -> si | I72: 1 | J72: 53
A73: =IF('Registro de quejas (2)'!B73=0,"",'Registro de quejas (2)'!B73) -> 2018-05-04 | B73: =IF('Registro de quejas (2)'!A73=0,"",'Registro de quejas (2)'!A73) -> 494 | C73: =IF('Registro de quejas (2)'!E73=0,"",'Registro de quejas (2)'!E73) -> 204 | D73: =IF('Registro de quejas (2)'!H73=0,"",'Registro de quejas (2)'!H73) -> Huesped se queja de la iluminación de la habitación, indica que es pobre y no es suficiente. Además se queja de que no hay una silla y que el control del TV solo funciona desde una cama y no de las 2. | E73: =IF('Registro de quejas (2)'!G73=0,"",'Registro de quejas (2)'!Q73) -> REVISAR LAS BATERIAS DEL CONTROL TV | H73: =IF('Registro de quejas (2)'!U73="si","si",IF('Registro de quejas (2)'!U73="No","No",IF('Registro de quejas (2)'!U73<=Impresión!J$1,"No",IF('Registro de quejas (2)'!U73>Impresión!J$1,"Proceso"," ")))) -> si | I73: 1 | J73: 53
A74: =IF('Registro de quejas (2)'!B74=0,"",'Registro de quejas (2)'!B74) -> 2018-05-04 | B74: =IF('Registro de quejas (2)'!A74=0,"",'Registro de quejas (2)'!A74) -> 495 | C74: =IF('Registro de quejas (2)'!E74=0,"",'Registro de quejas (2)'!E74) -> 109 | D74: =IF('Registro de quejas (2)'!H74=0,"",'Registro de quejas (2)'!H74) -> La caja fuerte no funcionó en toda la estadía, huespedes reclaman que se quedó cerrada los 2 días y no permitía ingresar un código. | E74: =IF('Registro de quejas (2)'!G74=0,"",'Registro de quejas (2)'!Q74) -> REVISAR QUE LA CAJA NO TENGA INCONVENIENTE | H74: =IF('Registro de quejas (2)'!U74="si","si",IF('Registro de quejas (2)'!U74="No","No",IF('Registro de quejas (2)'!U74<=Impresión!J$1,"No",IF('Registro de quejas (2)'!U74>Impresión!J$1,"Proceso"," ")))) -> si | I74: 1 | J74: 53
A75: =IF('Registro de quejas (2)'!B75=0,"",'Registro de quejas (2)'!B75) -> 2018-05-06 | B75: =IF('Registro de quejas (2)'!A75=0,"",'Registro de quejas (2)'!A75) -> 496 | C75: =IF('Registro de quejas (2)'!E75=0,"",'Registro de quejas (2)'!E75) -> 612 | D75: =IF('Registro de quejas (2)'!H75=0,"",'Registro de quejas (2)'!H75) -> Un basurero con tapa sería mejor para el baño, especialmente porque este contiene papel higienico usado | E75: =IF('Registro de quejas (2)'!G75=0,"",'Registro de quejas (2)'!Q75) -> BASUREROS VIENEN EN CAMINO | H75: =IF('Registro de quejas (2)'!U75="si","si",IF('Registro de quejas (2)'!U75="No","No",IF('Registro de quejas (2)'!U75<=Impresión!J$1,"No",IF('Registro de quejas (2)'!U75>Impresión!J$1,"Proceso"," ")))) -> si | I75: 1 | J75: 53
A76: =IF('Registro de quejas (2)'!B76=0,"",'Registro de quejas (2)'!B76) -> 2018-05-06 | B76: =IF('Registro de quejas (2)'!A76=0,"",'Registro de quejas (2)'!A76) -> 497 | C76: =IF('Registro de quejas (2)'!E76=0,"",'Registro de quejas (2)'!E76) -> 410 | D76: =IF('Registro de quejas (2)'!H76=0,"",'Registro de quejas (2)'!H76) -> A/C bajo rendimiento, sería recomendable tenerlos encendidos antes que los huéspedes lleguen a la habitación. | E76: =IF('Registro de quejas (2)'!G76=0,"",'Registro de quejas (2)'!Q76) -> REVISAR EL RENDIMIENTO DEL AC | H76: =IF('Registro de quejas (2)'!U76="si","si",IF('Registro de quejas (2)'!U76="No","No",IF('Registro de quejas (2)'!U76<=Impresión!J$1,"No",IF('Registro de quejas (2)'!U76>Impresión!J$1,"Proceso"," ")))) -> si | I76: 1 | J76: 53
A77: =IF('Registro de quejas (2)'!B77=0,"",'Registro de quejas (2)'!B77) -> 2018-05-06 | B77: =IF('Registro de quejas (2)'!A77=0,"",'Registro de quejas (2)'!A77) -> 498 | C77: =IF('Registro de quejas (2)'!E77=0,"",'Registro de quejas (2)'!E77) -> 709 | D77: =IF('Registro de quejas (2)'!H77=0,"",'Registro de quejas (2)'!H77) -> La música del restaurante muy alta, al final del día necesitamos descansar y cenar en una tranquila y silenciosa atmosfera | E77: =IF('Registro de quejas (2)'!G77=0,"",'Registro de quejas (2)'!Q77) -> PREGUNTAR A DON GERA SOBRE ESTO Y HABLAR CON JOSUÉ | H77: =IF('Registro de quejas (2)'!U77="si","si",IF('Registro de quejas (2)'!U77="No","No",IF('Registro de quejas (2)'!U77<=Impresión!J$1,"No",IF('Registro de quejas (2)'!U77>Impresión!J$1,"Proceso"," ")))) -> si | I77: 1 | J77: 53
A78: =IF('Registro de quejas (2)'!B78=0,"",'Registro de quejas (2)'!B78) -> 2018-05-07 | B78: =IF('Registro de quejas (2)'!A78=0,"",'Registro de quejas (2)'!A78) -> 499 | C78: =IF('Registro de quejas (2)'!E78=0,"",'Registro de quejas (2)'!E78) -> 509 | D78: =IF('Registro de quejas (2)'!H78=0,"",'Registro de quejas (2)'!H78) -> Más variedad de frutas y cereales calientes como avena | E78: =IF('Registro de quejas (2)'!G78=0,"",'Registro de quejas (2)'!Q78) -> DIEGO ESTÁ TRABAJANDO EN ESO | H78: =IF('Registro de quejas (2)'!U78="si","si",IF('Registro de quejas (2)'!U78="No","No",IF('Registro de quejas (2)'!U78<=Impresión!J$1,"No",IF('Registro de quejas (2)'!U78>Impresión!J$1,"Proceso"," ")))) -> si | I78: 1 | J78: 53
A79: =IF('Registro de quejas (2)'!B79=0,"",'Registro de quejas (2)'!B79) -> 2018-05-07 | B79: =IF('Registro de quejas (2)'!A79=0,"",'Registro de quejas (2)'!A79) -> 500 | C79: =IF('Registro de quejas (2)'!E79=0,"",'Registro de quejas (2)'!E79) -> 212 | D79: =IF('Registro de quejas (2)'!H79=0,"",'Registro de quejas (2)'!H79) -> Cuando uno esta esperando un huésped, sería genial tener una habitación fria, toma un tiempo para que esta se enfrie | E79: =IF('Registro de quejas (2)'!G79=0,"",'Registro de quejas (2)'!Q79) -> AGREGAR EN EL DIRECTORIO DE LA HABITACION LAS PRACTICAS SOSTENIBLES POR QUE LAS NO SE DEBE TENER EL AC ENCENDIDO | H79: =IF('Registro de quejas (2)'!U79="si","si",IF('Registro de quejas (2)'!U79="No","No",IF('Registro de quejas (2)'!U79<=Impresión!J$1,"No",IF('Registro de quejas (2)'!U79>Impresión!J$1,"Proceso"," ")))) -> si | I79: 1 | J79: 53
A80: =IF('Registro de quejas (2)'!B80=0,"",'Registro de quejas (2)'!B80) -> 2018-05-07 | B80: =IF('Registro de quejas (2)'!A80=0,"",'Registro de quejas (2)'!A80) -> 501 | C80: =IF('Registro de quejas (2)'!E80=0,"",'Registro de quejas (2)'!E80) -> 503 | D80: =IF('Registro de quejas (2)'!H80=0,"",'Registro de quejas (2)'!H80) -> Más vegetales con la carne | E80: =IF('Registro de quejas (2)'!G80=0,"",'Registro de quejas (2)'!Q80) -> COORDINAR LA VISITA DE UN INSPECTOR QUE VALORE LA CANTIDAD DE GUARNICIONES | H80: =IF('Registro de quejas (2)'!U80="si","si",IF('Registro de quejas (2)'!U80="No","No",IF('Registro de quejas (2)'!U80<=Impresión!J$1,"No",IF('Registro de quejas (2)'!U80>Impresión!J$1,"Proceso"," ")))) -> si | I80: 1 | J80: 53
A81: =IF('Registro de quejas (2)'!B81=0,"",'Registro de quejas (2)'!B81) -> 2018-05-08 | B81: =IF('Registro de quejas (2)'!A81=0,"",'Registro de quejas (2)'!A81) -> 502 | C81: =IF('Registro de quejas (2)'!E81=0,"",'Registro de quejas (2)'!E81) -> 510 | D81: =IF('Registro de quejas (2)'!H81=0,"",'Registro de quejas (2)'!H81) -> La tapa de coffee maker esta rota | E81: =IF('Registro de quejas (2)'!G81=0,"",'Registro de quejas (2)'!Q81) -> REVISAR EL COFFE MAKER | H81: =IF('Registro de quejas (2)'!U81="si","si",IF('Registro de quejas (2)'!U81="No","No",IF('Registro de quejas (2)'!U81<=Impresión!J$1,"No",IF('Registro de quejas (2)'!U81>Impresión!J$1,"Proceso"," ")))) -> si | I81: 1 | J81: 53
A82: =IF('Registro de quejas (2)'!B82=0,"",'Registro de quejas (2)'!B82) -> 2018-05-08 | B82: =IF('Registro de quejas (2)'!A82=0,"",'Registro de quejas (2)'!A82) -> 503 | C82: =IF('Registro de quejas (2)'!E82=0,"",'Registro de quejas (2)'!E82) -> 510 | D82: =IF('Registro de quejas (2)'!H82=0,"",'Registro de quejas (2)'!H82) -> El sol de la tarde pega directo a la habitación, deberia haber una pantalla que cubra esto | E82: =IF('Registro de quejas (2)'!G82=0,"",'Registro de quejas (2)'!Q82) -> PONER UN POLARIZADO EN LA PARTE SUPERIOR DE LA VENTANA | H82: =IF('Registro de quejas (2)'!U82="si","si",IF('Registro de quejas (2)'!U82="No","No",IF('Registro de quejas (2)'!U82<=Impresión!J$1,"No",IF('Registro de quejas (2)'!U82>Impresión!J$1,"Proceso"," ")))) -> si | I82: 1 | J82: 53
A83: =IF('Registro de quejas (2)'!B83=0,"",'Registro de quejas (2)'!B83) -> 2018-05-07 | B83: =IF('Registro de quejas (2)'!A83=0,"",'Registro de quejas (2)'!A83) -> 504 | C83: =IF('Registro de quejas (2)'!E83=0,"",'Registro de quejas (2)'!E83) -> 706 | D83: =IF('Registro de quejas (2)'!H83=0,"",'Registro de quejas (2)'!H83) -> Huesped se queja de la poca variedad en comidas y pide mayor variedad en las opciones. | E83: =IF('Registro de quejas (2)'!G83=0,"",'Registro de quejas (2)'!Q83) -> DIEGO VA A INVESTIGAR SI QUE COMIÓ EL CLIENTE // UNIR TODOS LOS MENÚS DE CENA INCLUIDA | H83: =IF('Registro de quejas (2)'!U83="si","si",IF('Registro de quejas (2)'!U83="No","No",IF('Registro de quejas (2)'!U83<=Impresión!J$1,"No",IF('Registro de quejas (2)'!U83>Impresión!J$1,"Proceso"," ")))) -> si | I83: 1 | J83: 53
A84: =IF('Registro de quejas (2)'!B84=0,"",'Registro de quejas (2)'!B84) -> 2018-05-09 | B84: =IF('Registro de quejas (2)'!A84=0,"",'Registro de quejas (2)'!A84) -> 505 | C84: =IF('Registro de quejas (2)'!E84=0,"",'Registro de quejas (2)'!E84) -> 606 | D84: =IF('Registro de quejas (2)'!H84=0,"",'Registro de quejas (2)'!H84) -> Ayer solicité un masaje en el Spa, más alla de haber sido una experiencia relajante, quede toda adolorida e inflamada del mal uso de la tecnica , recomiendo para futuros clientes que supervisen el entrenamiento del personal. | E84: =IF('Registro de quejas (2)'!G84=0,"",'Registro de quejas (2)'!Q84) -> HABLAR CON YEIMY | H84: =IF('Registro de quejas (2)'!U84="si","si",IF('Registro de quejas (2)'!U84="No","No",IF('Registro de quejas (2)'!U84<=Impresión!J$1,"No",IF('Registro de quejas (2)'!U84>Impresión!J$1,"Proceso"," ")))) -> si | I84: 1 | J84: 53
A85: =IF('Registro de quejas (2)'!B85=0,"",'Registro de quejas (2)'!B85) -> 2018-05-09 | B85: =IF('Registro de quejas (2)'!A85=0,"",'Registro de quejas (2)'!A85) -> 506 | C85: =IF('Registro de quejas (2)'!E85=0,"",'Registro de quejas (2)'!E85) -> 305 | D85: =IF('Registro de quejas (2)'!H85=0,"",'Registro de quejas (2)'!H85) -> Habia comida vieja en la refri de las personas que estuvieron antes que nosotros | E85: =IF('Registro de quejas (2)'!G85=0,"",'Registro de quejas (2)'!Q85) -> QUE LAS SUPERVISORAS DE HABITACIONES TENGAN MAS CUIDADO | H85: =IF('Registro de quejas (2)'!U85="si","si",IF('Registro de quejas (2)'!U85="No","No",IF('Registro de quejas (2)'!U85<=Impresión!J$1,"No",IF('Registro de quejas (2)'!U85>Impresión!J$1,"Proceso"," ")))) -> si | I85: 1 | J85: 53
A86: =IF('Registro de quejas (2)'!B86=0,"",'Registro de quejas (2)'!B86) -> 2018-05-09 | B86: =IF('Registro de quejas (2)'!A86=0,"",'Registro de quejas (2)'!A86) -> 507 | C86: =IF('Registro de quejas (2)'!E86=0,"",'Registro de quejas (2)'!E86) ->  | D86: =IF('Registro de quejas (2)'!H86=0,"",'Registro de quejas (2)'!H86) -> A veces los empleados no entienden lo que uno pregunta,pura barrera del lenguaje | E86: =IF('Registro de quejas (2)'!G86=0,"",'Registro de quejas (2)'!Q86) ->  | H86: =IF('Registro de quejas (2)'!U86="si","si",IF('Registro de quejas (2)'!U86="No","No",IF('Registro de quejas (2)'!U86<=Impresión!J$1,"No",IF('Registro de quejas (2)'!U86>Impresión!J$1,"Proceso"," ")))) -> si | I86: 1 | J86: 53
A87: =IF('Registro de quejas (2)'!B87=0,"",'Registro de quejas (2)'!B87) -> 2018-05-09 | B87: =IF('Registro de quejas (2)'!A87=0,"",'Registro de quejas (2)'!A87) -> 508 | C87: =IF('Registro de quejas (2)'!E87=0,"",'Registro de quejas (2)'!E87) -> 405 | D87: =IF('Registro de quejas (2)'!H87=0,"",'Registro de quejas (2)'!H87) -> A veces los empleados no entienden lo que uno pregunta,pura barrera del lenguaje | E87: =IF('Registro de quejas (2)'!G87=0,"",'Registro de quejas (2)'!Q87) -> REVALORAR EL NIVEL DE INGLÉS QUE TIENEN LAS PRINCIPALES ÁREAS DE SERVICIO Y BUSCAR UN MECANISMO DE MEJORA | H87: =IF('Registro de quejas (2)'!U87="si","si",IF('Registro de quejas (2)'!U87="No","No",IF('Registro de quejas (2)'!U87<=Impresión!J$1,"No",IF('Registro de quejas (2)'!U87>Impresión!J$1,"Proceso"," ")))) -> si | I87: 1 | J87: 53
A88: =IF('Registro de quejas (2)'!B88=0,"",'Registro de quejas (2)'!B88) -> 2018-05-09 | B88: =IF('Registro de quejas (2)'!A88=0,"",'Registro de quejas (2)'!A88) -> 509 | C88: =IF('Registro de quejas (2)'!E88=0,"",'Registro de quejas (2)'!E88) -> 304 | D88: =IF('Registro de quejas (2)'!H88=0,"",'Registro de quejas (2)'!H88) -> Camas muy altas | E88: =IF('Registro de quejas (2)'!G88=0,"",'Registro de quejas (2)'!Q88) -> PEDIR LAS GRADAS A GILBERT | H88: =IF('Registro de quejas (2)'!U88="si","si",IF('Registro de quejas (2)'!U88="No","No",IF('Registro de quejas (2)'!U88<=Impresión!J$1,"No",IF('Registro de quejas (2)'!U88>Impresión!J$1,"Proceso"," ")))) -> si | I88: 1 | J88: 53
A89: =IF('Registro de quejas (2)'!B89=0,"",'Registro de quejas (2)'!B89) -> 2018-05-09 | B89: =IF('Registro de quejas (2)'!A89=0,"",'Registro de quejas (2)'!A89) -> 510 | C89: =IF('Registro de quejas (2)'!E89=0,"",'Registro de quejas (2)'!E89) -> 107 | D89: =IF('Registro de quejas (2)'!H89=0,"",'Registro de quejas (2)'!H89) -> Poner una silla en la habitacion sería util | E89: =IF('Registro de quejas (2)'!G89=0,"",'Registro de quejas (2)'!Q89) -> SILLAS VIENEN EN CAMINO | H89: =IF('Registro de quejas (2)'!U89="si","si",IF('Registro de quejas (2)'!U89="No","No",IF('Registro de quejas (2)'!U89<=Impresión!J$1,"No",IF('Registro de quejas (2)'!U89>Impresión!J$1,"Proceso"," ")))) -> si | I89: 1 | J89: 53
A90: =IF('Registro de quejas (2)'!B90=0,"",'Registro de quejas (2)'!B90) -> 2018-05-09 | B90: =IF('Registro de quejas (2)'!A90=0,"",'Registro de quejas (2)'!A90) -> 511 | C90: =IF('Registro de quejas (2)'!E90=0,"",'Registro de quejas (2)'!E90) ->  | D90: =IF('Registro de quejas (2)'!H90=0,"",'Registro de quejas (2)'!H90) -> El servicio está dañado, el tanque no se llena y el agua queda directa. Tiene muchisimo tiempo de estar así y se le ha dicho infinitas veces a mantemiento | E90: =IF('Registro de quejas (2)'!G90=0,"",'Registro de quejas (2)'!Q90) -> ARREGLARLO | H90: =IF('Registro de quejas (2)'!U90="si","si",IF('Registro de quejas (2)'!U90="No","No",IF('Registro de quejas (2)'!U90<=Impresión!J$1,"No",IF('Registro de quejas (2)'!U90>Impresión!J$1,"Proceso"," ")))) -> si | I90: 1 | J90: 53
A91: =IF('Registro de quejas (2)'!B91=0,"",'Registro de quejas (2)'!B91) -> 2018-05-08 | B91: =IF('Registro de quejas (2)'!A91=0,"",'Registro de quejas (2)'!A91) -> 512 | C91: =IF('Registro de quejas (2)'!E91=0,"",'Registro de quejas (2)'!E91) -> 109 (Inspector de agencia) | D91: =IF('Registro de quejas (2)'!H91=0,"",'Registro de quejas (2)'!H91) -> La única crítica constructiva seria el cambiar las láminas de el techo de luz, ya que estan bastante tostadas por el sol y con un poco de moho, esto al menos en la habitación en la cual estuve. | E91: =IF('Registro de quejas (2)'!G91=0,"",'Registro de quejas (2)'!Q91) -> REVISAR LA CONDICION DE ESA LÁMINA | H91: =IF('Registro de quejas (2)'!U91="si","si",IF('Registro de quejas (2)'!U91="No","No",IF('Registro de quejas (2)'!U91<=Impresión!J$1,"No",IF('Registro de quejas (2)'!U91>Impresión!J$1,"Proceso"," ")))) -> si | I91: 1 | J91: 53
A92: =IF('Registro de quejas (2)'!B92=0,"",'Registro de quejas (2)'!B92) -> 2018-05-10 | B92: =IF('Registro de quejas (2)'!A92=0,"",'Registro de quejas (2)'!A92) -> 513 | C92: =IF('Registro de quejas (2)'!E92=0,"",'Registro de quejas (2)'!E92) -> 603 | D92: =IF('Registro de quejas (2)'!H92=0,"",'Registro de quejas (2)'!H92) -> Huespedes se quejan que solamente en el desayuno se ofrecen frutas, los señores me explican que en Europa ellos acostumbran a comer frutas tambíen al almuerzo y a la cena por lo que indican tengamos en cuenta este aspecto para un futuro tener mas huéspedes satisfechos. | E92: =IF('Registro de quejas (2)'!G92=0,"",'Registro de quejas (2)'!Q92) -> INCLUIR EN LOS MENUS PARA EL ALMUERZO LA OPCIÓN DE PLATO DE FRUTAS | H92: =IF('Registro de quejas (2)'!U92="si","si",IF('Registro de quejas (2)'!U92="No","No",IF('Registro de quejas (2)'!U92<=Impresión!J$1,"No",IF('Registro de quejas (2)'!U92>Impresión!J$1,"Proceso"," ")))) -> si | I92: 1 | J92: 53
A93: =IF('Registro de quejas (2)'!B93=0,"",'Registro de quejas (2)'!B93) -> 2018-05-10 | B93: =IF('Registro de quejas (2)'!A93=0,"",'Registro de quejas (2)'!A93) -> 514 | C93: =IF('Registro de quejas (2)'!E93=0,"",'Registro de quejas (2)'!E93) -> 603 | D93: =IF('Registro de quejas (2)'!H93=0,"",'Registro de quejas (2)'!H93) -> Huéspedes se quejan de las clases de yoga, los mismos indican que debería ser solo para adultos, que el niño que se encontraba haciendo yoga con ellos de otra habitación solo los interrumpía y no permitía que las clases fueran tranquilas. | E93: =IF('Registro de quejas (2)'!G93=0,"",'Registro de quejas (2)'!Q93) -> RECEPCIÓN DEBE DE FUNCIONAR COMO FILTRO / OPORTUNIDAD DE SERVICIO DE GUARDERIA | H93: =IF('Registro de quejas (2)'!U93="si","si",IF('Registro de quejas (2)'!U93="No","No",IF('Registro de quejas (2)'!U93<=Impresión!J$1,"No",IF('Registro de quejas (2)'!U93>Impresión!J$1,"Proceso"," ")))) -> si | I93: 1 | J93: 53
A94: =IF('Registro de quejas (2)'!B94=0,"",'Registro de quejas (2)'!B94) -> 2018-05-12 | B94: =IF('Registro de quejas (2)'!A94=0,"",'Registro de quejas (2)'!A94) -> 515 | C94: =IF('Registro de quejas (2)'!E94=0,"",'Registro de quejas (2)'!E94) -> 801 | D94: =IF('Registro de quejas (2)'!H94=0,"",'Registro de quejas (2)'!H94) -> El desayuno esta bien, pero podría beneficiarse con frutas y jugos mas frescos | E94: =IF('Registro de quejas (2)'!G94=0,"",'Registro de quejas (2)'!Q94) -> EXISTEN LAS OPCIONES | H94: =IF('Registro de quejas (2)'!U94="si","si",IF('Registro de quejas (2)'!U94="No","No",IF('Registro de quejas (2)'!U94<=Impresión!J$1,"No",IF('Registro de quejas (2)'!U94>Impresión!J$1,"Proceso"," ")))) -> si | I94: 1 | J94: 53
A95: =IF('Registro de quejas (2)'!B95=0,"",'Registro de quejas (2)'!B95) -> 2018-05-10 | B95: =IF('Registro de quejas (2)'!A95=0,"",'Registro de quejas (2)'!A95) -> 516 | C95: =IF('Registro de quejas (2)'!E95=0,"",'Registro de quejas (2)'!E95) -> 702 | D95: =IF('Registro de quejas (2)'!H95=0,"",'Registro de quejas (2)'!H95) -> La ducha tiene una fuga que cae fuera del baño | E95: =IF('Registro de quejas (2)'!G95=0,"",'Registro de quejas (2)'!Q95) -> VALIDAR LO QUE DICE EL CLIENTE | H95: =IF('Registro de quejas (2)'!U95="si","si",IF('Registro de quejas (2)'!U95="No","No",IF('Registro de quejas (2)'!U95<=Impresión!J$1,"No",IF('Registro de quejas (2)'!U95>Impresión!J$1,"Proceso"," ")))) -> si | I95: 1 | J95: 53
A96: =IF('Registro de quejas (2)'!B96=0,"",'Registro de quejas (2)'!B96) -> 2018-05-03 | B96: =IF('Registro de quejas (2)'!A96=0,"",'Registro de quejas (2)'!A96) -> 517 | C96: =IF('Registro de quejas (2)'!E96=0,"",'Registro de quejas (2)'!E96) -> 801 | D96: =IF('Registro de quejas (2)'!H96=0,"",'Registro de quejas (2)'!H96) -> Se quejan de que hace falta un basurero en la habitación para residuos NO reciclables, ya que únicamente hay para reciclaje aunque no se indica que tipo de desechos reciclables se pueden depositar. | E96: =IF('Registro de quejas (2)'!G96=0,"",'Registro de quejas (2)'!Q96) -> AVERIGUAR LA INFORMACIÓN EXISTENTE | H96: =IF('Registro de quejas (2)'!U96="si","si",IF('Registro de quejas (2)'!U96="No","No",IF('Registro de quejas (2)'!U96<=Impresión!J$1,"No",IF('Registro de quejas (2)'!U96>Impresión!J$1,"Proceso"," ")))) -> si | I96: 1 | J96: 53
A97: =IF('Registro de quejas (2)'!B97=0,"",'Registro de quejas (2)'!B97) -> 2018-05-13 | B97: =IF('Registro de quejas (2)'!A97=0,"",'Registro de quejas (2)'!A97) -> 518 | C97: =IF('Registro de quejas (2)'!E97=0,"",'Registro de quejas (2)'!E97) -> 201 | D97: =IF('Registro de quejas (2)'!H97=0,"",'Registro de quejas (2)'!H97) -> Los paneles solares para calentar agua parece que estan flojos en el techo y causan mucho ruido especialmente en las noches. | E97: =IF('Registro de quejas (2)'!G97=0,"",'Registro de quejas (2)'!Q97) -> PARECE SER QUE EL TUBO ESTÁ FLOJO | H97: =IF('Registro de quejas (2)'!U97="si","si",IF('Registro de quejas (2)'!U97="No","No",IF('Registro de quejas (2)'!U97<=Impresión!J$1,"No",IF('Registro de quejas (2)'!U97>Impresión!J$1,"Proceso"," ")))) -> si | I97: 1 | J97: 53
A98: =IF('Registro de quejas (2)'!B98=0,"",'Registro de quejas (2)'!B98) -> 2018-05-14 | B98: =IF('Registro de quejas (2)'!A98=0,"",'Registro de quejas (2)'!A98) -> 519 | C98: =IF('Registro de quejas (2)'!E98=0,"",'Registro de quejas (2)'!E98) -> 904 | D98: =IF('Registro de quejas (2)'!H98=0,"",'Registro de quejas (2)'!H98) -> Huéspedes se quejan de gritos y ruidos fuertes en hab 903, al parecer discutiendo | E98: =IF('Registro de quejas (2)'!G98=0,"",'Registro de quejas (2)'!Q98) -> SOLUCIONADO | H98: =IF('Registro de quejas (2)'!U98="si","si",IF('Registro de quejas (2)'!U98="No","No",IF('Registro de quejas (2)'!U98<=Impresión!J$1,"No",IF('Registro de quejas (2)'!U98>Impresión!J$1,"Proceso"," ")))) -> si | I98: 1 | J98: 53
A99: =IF('Registro de quejas (2)'!B99=0,"",'Registro de quejas (2)'!B99) -> 2018-05-14 | B99: =IF('Registro de quejas (2)'!A99=0,"",'Registro de quejas (2)'!A99) -> 520 | C99: =IF('Registro de quejas (2)'!E99=0,"",'Registro de quejas (2)'!E99) -> 303 | D99: =IF('Registro de quejas (2)'!H99=0,"",'Registro de quejas (2)'!H99) -> El pescado que sirvieron en el sushi no estaba fresco y no fue una buena experiencia. | E99: =IF('Registro de quejas (2)'!G99=0,"",'Registro de quejas (2)'!Q99) -> COMUNICAR A DIEGO CAMBRONERO | H99: =IF('Registro de quejas (2)'!U99="si","si",IF('Registro de quejas (2)'!U99="No","No",IF('Registro de quejas (2)'!U99<=Impresión!J$1,"No",IF('Registro de quejas (2)'!U99>Impresión!J$1,"Proceso"," ")))) -> si | I99: 1 | J99: 53
A100: =IF('Registro de quejas (2)'!B100=0,"",'Registro de quejas (2)'!B100) -> 2018-05-15 | B100: =IF('Registro de quejas (2)'!A100=0,"",'Registro de quejas (2)'!A100) -> 521 | C100: =IF('Registro de quejas (2)'!E100=0,"",'Registro de quejas (2)'!E100) ->  | D100: =IF('Registro de quejas (2)'!H100=0,"",'Registro de quejas (2)'!H100) -> La noche del 14/05/18 mientras varios huéspedes se encontraban cenando se presentaron varias goteras con una cantidad importante de agua ingresando la cual no pudo ser controlada sin que los huéspedes se enteraran ante el aguacero tan fuerte. El agua mojó un poco unos sillones y unas mesas cerca. | E100: =IF('Registro de quejas (2)'!G100=0,"",'Registro de quejas (2)'!Q100) -> SOLUCIONADO - SE DESATERRARON LOS TUBOS | H100: =IF('Registro de quejas (2)'!U100="si","si",IF('Registro de quejas (2)'!U100="No","No",IF('Registro de quejas (2)'!U100<=Impresión!J$1,"No",IF('Registro de quejas (2)'!U100>Impresión!J$1,"Proceso"," ")))) -> si | I100: 1 | J100: 53
A101: =IF('Registro de quejas (2)'!B101=0,"",'Registro de quejas (2)'!B101) -> 2018-05-15 | B101: =IF('Registro de quejas (2)'!A101=0,"",'Registro de quejas (2)'!A101) -> 522 | C101: =IF('Registro de quejas (2)'!E101=0,"",'Registro de quejas (2)'!E101) -> 201-304 | D101: =IF('Registro de quejas (2)'!H101=0,"",'Registro de quejas (2)'!H101) -> Huéspedes llaman indicando que no hay agua en las habitaciones. | E101: =IF('Registro de quejas (2)'!G101=0,"",'Registro de quejas (2)'!Q101) -> SOLUCIONADO - KEYLOR ACCIDENTALMENTE CERRO LA LLAVE | H101: =IF('Registro de quejas (2)'!U101="si","si",IF('Registro de quejas (2)'!U101="No","No",IF('Registro de quejas (2)'!U101<=Impresión!J$1,"No",IF('Registro de quejas (2)'!U101>Impresión!J$1,"Proceso"," ")))) -> si | I101: 1 | J101: 53
A102: =IF('Registro de quejas (2)'!B102=0,"",'Registro de quejas (2)'!B102) -> 2018-05-15 | B102: =IF('Registro de quejas (2)'!A102=0,"",'Registro de quejas (2)'!A102) -> 523 | C102: =IF('Registro de quejas (2)'!E102=0,"",'Registro de quejas (2)'!E102) -> 108 | D102: =IF('Registro de quejas (2)'!H102=0,"",'Registro de quejas (2)'!H102) -> Relación precio-calidad muy costoso por lo que es. | E102: =IF('Registro de quejas (2)'!G102=0,"",'Registro de quejas (2)'!Q102) -> COMENTAR CON DIEGO | H102: =IF('Registro de quejas (2)'!U102="si","si",IF('Registro de quejas (2)'!U102="No","No",IF('Registro de quejas (2)'!U102<=Impresión!J$1,"No",IF('Registro de quejas (2)'!U102>Impresión!J$1,"Proceso"," ")))) -> si | I102: 1 | J102: 53
A103: =IF('Registro de quejas (2)'!B103=0,"",'Registro de quejas (2)'!B103) -> 2018-05-15 | B103: =IF('Registro de quejas (2)'!A103=0,"",'Registro de quejas (2)'!A103) -> 524 | C103: =IF('Registro de quejas (2)'!E103=0,"",'Registro de quejas (2)'!E103) -> 108 | D103: =IF('Registro de quejas (2)'!H103=0,"",'Registro de quejas (2)'!H103) -> Falta una cafeteria para el almuerzo ligero, por ejemplo ensaladas sandwiches | E103: =IF('Registro de quejas (2)'!G103=0,"",'Registro de quejas (2)'!Q103) -> EXISTEN LAS OPCIONES | H103: =IF('Registro de quejas (2)'!U103="si","si",IF('Registro de quejas (2)'!U103="No","No",IF('Registro de quejas (2)'!U103<=Impresión!J$1,"No",IF('Registro de quejas (2)'!U103>Impresión!J$1,"Proceso"," ")))) -> si | I103: 1 | J103: 53
A104: =IF('Registro de quejas (2)'!B104=0,"",'Registro de quejas (2)'!B104) -> 2018-05-15 | B104: =IF('Registro de quejas (2)'!A104=0,"",'Registro de quejas (2)'!A104) -> 525 | C104: =IF('Registro de quejas (2)'!E104=0,"",'Registro de quejas (2)'!E104) -> 403 | D104: =IF('Registro de quejas (2)'!H104=0,"",'Registro de quejas (2)'!H104) -> Se podría tener una maquina de hielo más cerca a la habitacion | E104: =IF('Registro de quejas (2)'!G104=0,"",'Registro de quejas (2)'!Q104) -> VALORAR LA POSIBILIDAD DE PONER UNA MÁQUINA DE HIELO | H104: =IF('Registro de quejas (2)'!U104="si","si",IF('Registro de quejas (2)'!U104="No","No",IF('Registro de quejas (2)'!U104<=Impresión!J$1,"No",IF('Registro de quejas (2)'!U104>Impresión!J$1,"Proceso"," ")))) -> si | I104: 1 | J104: 53
A105: =IF('Registro de quejas (2)'!B105=0,"",'Registro de quejas (2)'!B105) -> 2018-05-17 | B105: =IF('Registro de quejas (2)'!A105=0,"",'Registro de quejas (2)'!A105) -> 526 | C105: =IF('Registro de quejas (2)'!E105=0,"",'Registro de quejas (2)'!E105) -> 201 | D105: =IF('Registro de quejas (2)'!H105=0,"",'Registro de quejas (2)'!H105) -> Huespedes se quejan de ruidos en el techo durante toda la noche, indican que son animales y que provocan mucho ruido. | E105: =IF('Registro de quejas (2)'!G105=0,"",'Registro de quejas (2)'!Q105) -> VALIDAR LO QUE DICE EL CLIENTE | H105: =IF('Registro de quejas (2)'!U105="si","si",IF('Registro de quejas (2)'!U105="No","No",IF('Registro de quejas (2)'!U105<=Impresión!J$1,"No",IF('Registro de quejas (2)'!U105>Impresión!J$1,"Proceso"," ")))) -> si | I105: 1 | J105: 53
A106: =IF('Registro de quejas (2)'!B106=0,"",'Registro de quejas (2)'!B106) -> 2018-05-17 | B106: =IF('Registro de quejas (2)'!A106=0,"",'Registro de quejas (2)'!A106) -> 527 | C106: =IF('Registro de quejas (2)'!E106=0,"",'Registro de quejas (2)'!E106) -> 212 | D106: =IF('Registro de quejas (2)'!H106=0,"",'Registro de quejas (2)'!H106) -> Huesped se queja de la presencia de hormigas en la habitación, se encuentra disgustada y quiere que le eliminen los insectos. | E106: =IF('Registro de quejas (2)'!G106=0,"",'Registro de quejas (2)'!Q106) -> PROGRAMAR PLAN DE FUMIGACIÓN | H106: =IF('Registro de quejas (2)'!U106="si","si",IF('Registro de quejas (2)'!U106="No","No",IF('Registro de quejas (2)'!U106<=Impresión!J$1,"No",IF('Registro de quejas (2)'!U106>Impresión!J$1,"Proceso"," ")))) -> si | I106: 1 | J106: 53
A107: =IF('Registro de quejas (2)'!B107=0,"",'Registro de quejas (2)'!B107) ->  | B107: =IF('Registro de quejas (2)'!A107=0,"",'Registro de quejas (2)'!A107) -> 528 | C107: =IF('Registro de quejas (2)'!E107=0,"",'Registro de quejas (2)'!E107) ->  | D107: =IF('Registro de quejas (2)'!H107=0,"",'Registro de quejas (2)'!H107) ->  | E107: =IF('Registro de quejas (2)'!G107=0,"",'Registro de quejas (2)'!Q107) ->  | H107: =IF('Registro de quejas (2)'!U107="si","si",IF('Registro de quejas (2)'!U107="No","No",IF('Registro de quejas (2)'!U107<=Impresión!J$1,"No",IF('Registro de quejas (2)'!U107>Impresión!J$1,"Proceso"," ")))) -> si | I107: 1 | J107: 53
A108: =IF('Registro de quejas (2)'!B108=0,"",'Registro de quejas (2)'!B108) -> 2018-05-04 | B108: =IF('Registro de quejas (2)'!A108=0,"",'Registro de quejas (2)'!A108) -> 529 | C108: =IF('Registro de quejas (2)'!E108=0,"",'Registro de quejas (2)'!E108) -> 606 | D108: =IF('Registro de quejas (2)'!H108=0,"",'Registro de quejas (2)'!H108) -> Se quejan del estaurante italiano e indican que debería cambiarse y tener un restaurante de mariscos. | E108: =IF('Registro de quejas (2)'!G108=0,"",'Registro de quejas (2)'!Q108) -> NO HAY POSIBILIDAD DE OTRO REST | H108: =IF('Registro de quejas (2)'!U108="si","si",IF('Registro de quejas (2)'!U108="No","No",IF('Registro de quejas (2)'!U108<=Impresión!J$1,"No",IF('Registro de quejas (2)'!U108>Impresión!J$1,"Proceso"," ")))) -> si | I108: 1 | J108: 53
A109: =IF('Registro de quejas (2)'!B109=0,"",'Registro de quejas (2)'!B109) -> 2018-05-05 | B109: =IF('Registro de quejas (2)'!A109=0,"",'Registro de quejas (2)'!A109) -> 530 | C109: =IF('Registro de quejas (2)'!E109=0,"",'Registro de quejas (2)'!E109) -> 304 | D109: =IF('Registro de quejas (2)'!H109=0,"",'Registro de quejas (2)'!H109) -> Huespedes se quejan de la falta de gavetas para la ropa. | E109: =IF('Registro de quejas (2)'!G109=0,"",'Registro de quejas (2)'!Q109) -> NO ESOOACIO PARA MAS GAVETAS | H109: =IF('Registro de quejas (2)'!U109="si","si",IF('Registro de quejas (2)'!U109="No","No",IF('Registro de quejas (2)'!U109<=Impresión!J$1,"No",IF('Registro de quejas (2)'!U109>Impresión!J$1,"Proceso"," ")))) -> si | I109: 1 | J109: 53
A110: =IF('Registro de quejas (2)'!B110=0,"",'Registro de quejas (2)'!B110) -> 2018-05-09 | B110: =IF('Registro de quejas (2)'!A110=0,"",'Registro de quejas (2)'!A110) -> 531 | C110: =IF('Registro de quejas (2)'!E110=0,"",'Registro de quejas (2)'!E110) -> 304 | D110: =IF('Registro de quejas (2)'!H110=0,"",'Registro de quejas (2)'!H110) -> No habia lugar en el armario, solo los percheros | E110: =IF('Registro de quejas (2)'!G110=0,"",'Registro de quejas (2)'!Q110) -> NO HAY ESPACIO PARA AMPLIAR ROPEROS | H110: =IF('Registro de quejas (2)'!U110="si","si",IF('Registro de quejas (2)'!U110="No","No",IF('Registro de quejas (2)'!U110<=Impresión!J$1,"No",IF('Registro de quejas (2)'!U110>Impresión!J$1,"Proceso"," ")))) -> si | I110: 1 | J110: 53
A111: =IF('Registro de quejas (2)'!B111=0,"",'Registro de quejas (2)'!B111) -> 2018-05-17 | B111: =IF('Registro de quejas (2)'!A111=0,"",'Registro de quejas (2)'!A111) -> 532 | C111: =IF('Registro de quejas (2)'!E111=0,"",'Registro de quejas (2)'!E111) -> 202 | D111: =IF('Registro de quejas (2)'!H111=0,"",'Registro de quejas (2)'!H111) -> Sería delicioso poder tener aguacate en el desayuno | E111: =IF('Registro de quejas (2)'!G111=0,"",'Registro de quejas (2)'!Q111) -> SUBE COSTOS | H111: =IF('Registro de quejas (2)'!U111="si","si",IF('Registro de quejas (2)'!U111="No","No",IF('Registro de quejas (2)'!U111<=Impresión!J$1,"No",IF('Registro de quejas (2)'!U111>Impresión!J$1,"Proceso"," ")))) -> si | I111: 1 | J111: 53
A112: =IF('Registro de quejas (2)'!B112=0,"",'Registro de quejas (2)'!B112) -> 2018-05-18 | B112: =IF('Registro de quejas (2)'!A112=0,"",'Registro de quejas (2)'!A112) -> 533 | C112: =IF('Registro de quejas (2)'!E112=0,"",'Registro de quejas (2)'!E112) -> 203 | D112: =IF('Registro de quejas (2)'!H112=0,"",'Registro de quejas (2)'!H112) -> En el bar las bebidas no siempre son servidas de igual forma, una vez nos dieron el coctel tipo frozen y otra a las rocas | E112: =IF('Registro de quejas (2)'!G112=0,"",'Registro de quejas (2)'!Q112) -> DIEGO VA A INVESTIGAR | H112: =IF('Registro de quejas (2)'!U112="si","si",IF('Registro de quejas (2)'!U112="No","No",IF('Registro de quejas (2)'!U112<=Impresión!J$1,"No",IF('Registro de quejas (2)'!U112>Impresión!J$1,"Proceso"," ")))) -> si | I112: 1 | J112: 53
A113: =IF('Registro de quejas (2)'!B113=0,"",'Registro de quejas (2)'!B113) -> 2018-05-17 | B113: =IF('Registro de quejas (2)'!A113=0,"",'Registro de quejas (2)'!A113) -> 534 | C113: =IF('Registro de quejas (2)'!E113=0,"",'Registro de quejas (2)'!E113) -> 308 | D113: =IF('Registro de quejas (2)'!H113=0,"",'Registro de quejas (2)'!H113) -> Paraguas en la habitación | E113: =IF('Registro de quejas (2)'!G113=0,"",'Registro de quejas (2)'!Q113) -> SUBE COSTOS | H113: =IF('Registro de quejas (2)'!U113="si","si",IF('Registro de quejas (2)'!U113="No","No",IF('Registro de quejas (2)'!U113<=Impresión!J$1,"No",IF('Registro de quejas (2)'!U113>Impresión!J$1,"Proceso"," ")))) -> si | I113: 1 | J113: 53
A114: =IF('Registro de quejas (2)'!B114=0,"",'Registro de quejas (2)'!B114) -> 2018-05-18 | B114: =IF('Registro de quejas (2)'!A114=0,"",'Registro de quejas (2)'!A114) -> 535 | C114: =IF('Registro de quejas (2)'!E114=0,"",'Registro de quejas (2)'!E114) -> 405 | D114: =IF('Registro de quejas (2)'!H114=0,"",'Registro de quejas (2)'!H114) -> Vino muy caro en comparación con otros hoteles en los que hemos estado en costa rica | E114: =IF('Registro de quejas (2)'!G114=0,"",'Registro de quejas (2)'!Q114) -> DIEGO VA A INVESTIGAR | H114: =IF('Registro de quejas (2)'!U114="si","si",IF('Registro de quejas (2)'!U114="No","No",IF('Registro de quejas (2)'!U114<=Impresión!J$1,"No",IF('Registro de quejas (2)'!U114>Impresión!J$1,"Proceso"," ")))) -> si | I114: 1 | J114: 53
A115: =IF('Registro de quejas (2)'!B115=0,"",'Registro de quejas (2)'!B115) -> 2018-05-18 | B115: =IF('Registro de quejas (2)'!A115=0,"",'Registro de quejas (2)'!A115) -> 536 | C115: =IF('Registro de quejas (2)'!E115=0,"",'Registro de quejas (2)'!E115) -> 408 | D115: =IF('Registro de quejas (2)'!H115=0,"",'Registro de quejas (2)'!H115) -> Necesidad de mas sombras en el area de piscinas | E115: =IF('Registro de quejas (2)'!G115=0,"",'Registro de quejas (2)'!Q115) -> COMENTAR LA NECESIDAD LA NECESIDAD CON DON Minor | H115: =IF('Registro de quejas (2)'!U115="si","si",IF('Registro de quejas (2)'!U115="No","No",IF('Registro de quejas (2)'!U115<=Impresión!J$1,"No",IF('Registro de quejas (2)'!U115>Impresión!J$1,"Proceso"," ")))) -> si | I115: 1 | J115: 53
A116: =IF('Registro de quejas (2)'!B116=0,"",'Registro de quejas (2)'!B116) -> 2018-05-19 | B116: =IF('Registro de quejas (2)'!A116=0,"",'Registro de quejas (2)'!A116) -> 537 | C116: =IF('Registro de quejas (2)'!E116=0,"",'Registro de quejas (2)'!E116) -> 207 | D116: =IF('Registro de quejas (2)'!H116=0,"",'Registro de quejas (2)'!H116) -> Cliente está molesta por que quiere traer amigos a cenar con ella y las políticas del hotel no lo permiten y tampoco hay información sobre esto en ningún lado | E116: =IF('Registro de quejas (2)'!G116=0,"",'Registro de quejas (2)'!Q116) -> Elaborar rotulos informando la restricción | H116: =IF('Registro de quejas (2)'!U116="si","si",IF('Registro de quejas (2)'!U116="No","No",IF('Registro de quejas (2)'!U116<=Impresión!J$1,"No",IF('Registro de quejas (2)'!U116>Impresión!J$1,"Proceso"," ")))) -> si | I116: 1 | J116: 53
A117: =IF('Registro de quejas (2)'!B117=0,"",'Registro de quejas (2)'!B117) -> 2018-05-20 | B117: =IF('Registro de quejas (2)'!A117=0,"",'Registro de quejas (2)'!A117) -> 538 | C117: =IF('Registro de quejas (2)'!E117=0,"",'Registro de quejas (2)'!E117) -> 604 | D117: =IF('Registro de quejas (2)'!H117=0,"",'Registro de quejas (2)'!H117) -> Huésped reporta que durante el desayuno una cucaracha apareción en su mesa. | E117: =IF('Registro de quejas (2)'!G117=0,"",'Registro de quejas (2)'!Q117) -> FUMIGAR | H117: =IF('Registro de quejas (2)'!U117="si","si",IF('Registro de quejas (2)'!U117="No","No",IF('Registro de quejas (2)'!U117<=Impresión!J$1,"No",IF('Registro de quejas (2)'!U117>Impresión!J$1,"Proceso"," ")))) -> si | I117: 1 | J117: 53
A118: =IF('Registro de quejas (2)'!B118=0,"",'Registro de quejas (2)'!B118) -> 2018-05-20 | B118: =IF('Registro de quejas (2)'!A118=0,"",'Registro de quejas (2)'!A118) -> 539 | C118: =IF('Registro de quejas (2)'!E118=0,"",'Registro de quejas (2)'!E118) -> 604 | D118: =IF('Registro de quejas (2)'!H118=0,"",'Registro de quejas (2)'!H118) -> Huésped reporta que encontró un raton muerto en la parte alta de las termales. | E118: =IF('Registro de quejas (2)'!G118=0,"",'Registro de quejas (2)'!Q118) -> MUY DIFICIL CONTROLAR UN AREA ABIERTA | H118: =IF('Registro de quejas (2)'!U118="si","si",IF('Registro de quejas (2)'!U118="No","No",IF('Registro de quejas (2)'!U118<=Impresión!J$1,"No",IF('Registro de quejas (2)'!U118>Impresión!J$1,"Proceso"," ")))) -> si | I118: 1 | J118: 53
A119: =IF('Registro de quejas (2)'!B119=0,"",'Registro de quejas (2)'!B119) -> 2018-05-20 | B119: =IF('Registro de quejas (2)'!A119=0,"",'Registro de quejas (2)'!A119) -> 540 | C119: =IF('Registro de quejas (2)'!E119=0,"",'Registro de quejas (2)'!E119) -> 903 | D119: =IF('Registro de quejas (2)'!H119=0,"",'Registro de quejas (2)'!H119) -> Huéspedes se quejan porque no hay ventiladores en los restaurantes y porque no hay gran variedad de opciones. | E119: =IF('Registro de quejas (2)'!G119=0,"",'Registro de quejas (2)'!Q119) -> DIEGO VA A INVESTIGAR | H119: =IF('Registro de quejas (2)'!U119="si","si",IF('Registro de quejas (2)'!U119="No","No",IF('Registro de quejas (2)'!U119<=Impresión!J$1,"No",IF('Registro de quejas (2)'!U119>Impresión!J$1,"Proceso"," ")))) -> si | I119: 1 | J119: 53
A120: =IF('Registro de quejas (2)'!B120=0,"",'Registro de quejas (2)'!B120) -> 2018-05-20 | B120: =IF('Registro de quejas (2)'!A120=0,"",'Registro de quejas (2)'!A120) -> 541 | C120: =IF('Registro de quejas (2)'!E120=0,"",'Registro de quejas (2)'!E120) -> 509 | D120: =IF('Registro de quejas (2)'!H120=0,"",'Registro de quejas (2)'!H120) -> Cuando el botones está entregando la habitación al check in, encuantra en la refri un a botella grade metálica de los clientes que estuvieron anteriormente ahí | E120: =IF('Registro de quejas (2)'!G120=0,"",'Registro de quejas (2)'!Q120) -> IMPLEMENTACIÓN DE CHECK LIST HABITACIONES | H120: =IF('Registro de quejas (2)'!U120="si","si",IF('Registro de quejas (2)'!U120="No","No",IF('Registro de quejas (2)'!U120<=Impresión!J$1,"No",IF('Registro de quejas (2)'!U120>Impresión!J$1,"Proceso"," ")))) -> si | I120: 1 | J120: 53
A121: =IF('Registro de quejas (2)'!B121=0,"",'Registro de quejas (2)'!B121) -> 2018-05-21 | B121: =IF('Registro de quejas (2)'!A121=0,"",'Registro de quejas (2)'!A121) -> 542 | C121: =IF('Registro de quejas (2)'!E121=0,"",'Registro de quejas (2)'!E121) -> 204 | D121: =IF('Registro de quejas (2)'!H121=0,"",'Registro de quejas (2)'!H121) -> Cuando el botones está entregando la hab al check-in, encuentra en el mini bar una botellita pequeña de vino rosa a la mitad posiblemente de los huéspedes anteriores. | E121: =IF('Registro de quejas (2)'!G121=0,"",'Registro de quejas (2)'!Q121) -> IMPLEMENTACIÓN DE CHECK LIST HABITACIONES | H121: =IF('Registro de quejas (2)'!U121="si","si",IF('Registro de quejas (2)'!U121="No","No",IF('Registro de quejas (2)'!U121<=Impresión!J$1,"No",IF('Registro de quejas (2)'!U121>Impresión!J$1,"Proceso"," ")))) -> si | I121: 1 | J121: 53
A122: =IF('Registro de quejas (2)'!B122=0,"",'Registro de quejas (2)'!B122) -> 2018-05-21 | B122: =IF('Registro de quejas (2)'!A122=0,"",'Registro de quejas (2)'!A122) -> 543 | C122: =IF('Registro de quejas (2)'!E122=0,"",'Registro de quejas (2)'!E122) -> 601 | D122: =IF('Registro de quejas (2)'!H122=0,"",'Registro de quejas (2)'!H122) -> Huéspedes se quejan de que el baño huele a cigarro como si hubieran fumado, además se queja que el agua caliente es muy caliente y es peligrosa. | E122: =IF('Registro de quejas (2)'!G122=0,"",'Registro de quejas (2)'!Q122) -> PONER LAS SEÑALIZACIÓN EN LA DUCHA | H122: =IF('Registro de quejas (2)'!U122="si","si",IF('Registro de quejas (2)'!U122="No","No",IF('Registro de quejas (2)'!U122<=Impresión!J$1,"No",IF('Registro de quejas (2)'!U122>Impresión!J$1,"Proceso"," ")))) -> si | I122: 1 | J122: 53
A123: =IF('Registro de quejas (2)'!B123=0,"",'Registro de quejas (2)'!B123) -> 2018-05-21 | B123: =IF('Registro de quejas (2)'!A123=0,"",'Registro de quejas (2)'!A123) -> 544 | C123: =IF('Registro de quejas (2)'!E123=0,"",'Registro de quejas (2)'!E123) -> 207 | D123: =IF('Registro de quejas (2)'!H123=0,"",'Registro de quejas (2)'!H123) -> Se quejan de que no hay espejo en la habitación. | E123: =IF('Registro de quejas (2)'!G123=0,"",'Registro de quejas (2)'!Q123) -> MELISSA VA A REVISAR / SI EXISTE EL ESPEJO | H123: =IF('Registro de quejas (2)'!U123="si","si",IF('Registro de quejas (2)'!U123="No","No",IF('Registro de quejas (2)'!U123<=Impresión!J$1,"No",IF('Registro de quejas (2)'!U123>Impresión!J$1,"Proceso"," ")))) -> si | I123: 1 | J123: 53
A124: =IF('Registro de quejas (2)'!B124=0,"",'Registro de quejas (2)'!B124) -> 2018-05-21 | B124: =IF('Registro de quejas (2)'!A124=0,"",'Registro de quejas (2)'!A124) -> 545 | C124: =IF('Registro de quejas (2)'!E124=0,"",'Registro de quejas (2)'!E124) -> 207 | D124: =IF('Registro de quejas (2)'!H124=0,"",'Registro de quejas (2)'!H124) -> Mejores camas de bronceado y más sombra en el area de piscinas. | E124: =IF('Registro de quejas (2)'!G124=0,"",'Registro de quejas (2)'!Q124) -> COMENTAR LA NECESIDAD LA NECESIDAD CON DON Minor | H124: =IF('Registro de quejas (2)'!U124="si","si",IF('Registro de quejas (2)'!U124="No","No",IF('Registro de quejas (2)'!U124<=Impresión!J$1,"No",IF('Registro de quejas (2)'!U124>Impresión!J$1,"Proceso"," ")))) -> si | I124: 1 | J124: 53
A125: =IF('Registro de quejas (2)'!B125=0,"",'Registro de quejas (2)'!B125) -> 2018-05-21 | B125: =IF('Registro de quejas (2)'!A125=0,"",'Registro de quejas (2)'!A125) -> 546 | C125: =IF('Registro de quejas (2)'!E125=0,"",'Registro de quejas (2)'!E125) -> 207 | D125: =IF('Registro de quejas (2)'!H125=0,"",'Registro de quejas (2)'!H125) -> Huéspedes se quejan de los brazaletes, solicitan que se eliminen ya que eso es barato y se ve mal. | E125: =IF('Registro de quejas (2)'!G125=0,"",'Registro de quejas (2)'!Q125) -> BUSCAR LA POSIBILIDAD | H125: =IF('Registro de quejas (2)'!U125="si","si",IF('Registro de quejas (2)'!U125="No","No",IF('Registro de quejas (2)'!U125<=Impresión!J$1,"No",IF('Registro de quejas (2)'!U125>Impresión!J$1,"Proceso"," ")))) -> si | I125: 1 | J125: 53
A126: =IF('Registro de quejas (2)'!B126=0,"",'Registro de quejas (2)'!B126) -> 2018-05-21 | B126: =IF('Registro de quejas (2)'!A126=0,"",'Registro de quejas (2)'!A126) -> 547 | C126: =IF('Registro de quejas (2)'!E126=0,"",'Registro de quejas (2)'!E126) -> 207 | D126: =IF('Registro de quejas (2)'!H126=0,"",'Registro de quejas (2)'!H126) -> Huéspedes se quejan porque no es permitido ingresar invitados o amigos de otros hoteles, indican que parece un hospital o una carcel. | E126: =IF('Registro de quejas (2)'!G126=0,"",'Registro de quejas (2)'!Q126) -> Elaborar rotulos informando la restricción | H126: =IF('Registro de quejas (2)'!U126="si","si",IF('Registro de quejas (2)'!U126="No","No",IF('Registro de quejas (2)'!U126<=Impresión!J$1,"No",IF('Registro de quejas (2)'!U126>Impresión!J$1,"Proceso"," ")))) -> si | I126: 1 | J126: 53
A127: =IF('Registro de quejas (2)'!B127=0,"",'Registro de quejas (2)'!B127) -> 2018-05-21 | B127: =IF('Registro de quejas (2)'!A127=0,"",'Registro de quejas (2)'!A127) -> 548 | C127: =IF('Registro de quejas (2)'!E127=0,"",'Registro de quejas (2)'!E127) -> 609 | D127: =IF('Registro de quejas (2)'!H127=0,"",'Registro de quejas (2)'!H127) -> Huéspedes de Caravan les salió una cucaracha de la mesa mientras se encontraban comiendo. | E127: =IF('Registro de quejas (2)'!G127=0,"",'Registro de quejas (2)'!Q127) -> YA SE FUMIGÓ | H127: =IF('Registro de quejas (2)'!U127="si","si",IF('Registro de quejas (2)'!U127="No","No",IF('Registro de quejas (2)'!U127<=Impresión!J$1,"No",IF('Registro de quejas (2)'!U127>Impresión!J$1,"Proceso"," ")))) -> si | I127: 1 | J127: 53
A128: =IF('Registro de quejas (2)'!B128=0,"",'Registro de quejas (2)'!B128) -> 2018-05-22 | B128: =IF('Registro de quejas (2)'!A128=0,"",'Registro de quejas (2)'!A128) -> 549 | C128: =IF('Registro de quejas (2)'!E128=0,"",'Registro de quejas (2)'!E128) -> 507 | D128: =IF('Registro de quejas (2)'!H128=0,"",'Registro de quejas (2)'!H128) -> La huésped se mostró muy molesta poe que no tenia un maletero extra , el cual había solicitado varias veces. | E128: =IF('Registro de quejas (2)'!G128=0,"",'Registro de quejas (2)'!Q128) -> REVISAR QUIEN ERA EL ANFITRIÓN / NO SE ENCONTRÓ EVIDENCIA QUE SUSTENTARA ESTA AFIRMACIÓN | H128: =IF('Registro de quejas (2)'!U128="si","si",IF('Registro de quejas (2)'!U128="No","No",IF('Registro de quejas (2)'!U128<=Impresión!J$1,"No",IF('Registro de quejas (2)'!U128>Impresión!J$1,"Proceso"," ")))) -> si | I128: 1 | J128: 53
A129: =IF('Registro de quejas (2)'!B129=0,"",'Registro de quejas (2)'!B129) -> 2018-05-22 | B129: =IF('Registro de quejas (2)'!A129=0,"",'Registro de quejas (2)'!A129) -> 550 | C129: =IF('Registro de quejas (2)'!E129=0,"",'Registro de quejas (2)'!E129) -> 112 | D129: =IF('Registro de quejas (2)'!H129=0,"",'Registro de quejas (2)'!H129) -> "El único problema fue que habían pequeños ciempies en el baño" | E129: =IF('Registro de quejas (2)'!G129=0,"",'Registro de quejas (2)'!Q129) -> FUMIGAR | H129: =IF('Registro de quejas (2)'!U129="si","si",IF('Registro de quejas (2)'!U129="No","No",IF('Registro de quejas (2)'!U129<=Impresión!J$1,"No",IF('Registro de quejas (2)'!U129>Impresión!J$1,"Proceso"," ")))) -> si | I129: 1 | J129: 53
A130: =IF('Registro de quejas (2)'!B130=0,"",'Registro de quejas (2)'!B130) -> 2018-05-24 | B130: =IF('Registro de quejas (2)'!A130=0,"",'Registro de quejas (2)'!A130) -> 551 | C130: =IF('Registro de quejas (2)'!E130=0,"",'Registro de quejas (2)'!E130) -> 411 | D130: =IF('Registro de quejas (2)'!H130=0,"",'Registro de quejas (2)'!H130) -> Huesped indica que el hotel debería tener un poco de baile por la tarde o noche, como un salón de baile con algún entretenimiento. | E130: =IF('Registro de quejas (2)'!G130=0,"",'Registro de quejas (2)'!Q130) -> VA EN CONTRA DEL CONCEPTO FAMILIAR DEL HOTEL | H130: =IF('Registro de quejas (2)'!U130="si","si",IF('Registro de quejas (2)'!U130="No","No",IF('Registro de quejas (2)'!U130<=Impresión!J$1,"No",IF('Registro de quejas (2)'!U130>Impresión!J$1,"Proceso"," ")))) -> si | I130: 1 | J130: 53
A131: =IF('Registro de quejas (2)'!B131=0,"",'Registro de quejas (2)'!B131) -> 2018-05-25 | B131: =IF('Registro de quejas (2)'!A131=0,"",'Registro de quejas (2)'!A131) -> 552 | C131: =IF('Registro de quejas (2)'!E131=0,"",'Registro de quejas (2)'!E131) -> 304 | D131: =IF('Registro de quejas (2)'!H131=0,"",'Registro de quejas (2)'!H131) -> Huéspedes se quejan del tamaño de la habitación e indican que es muy ajustada para 3 o 4 personas, además dicen que se ocupan 2 sanitarios y 2 lavatorios especialmente cuando hay 4 personas en la misma habitación. | E131: =IF('Registro de quejas (2)'!G131=0,"",'Registro de quejas (2)'!Q131) -> EXISTEN CATEGORIAS DE HABITACIONES QUE SUPLEN ESTA NECESIDAD | H131: =IF('Registro de quejas (2)'!U131="si","si",IF('Registro de quejas (2)'!U131="No","No",IF('Registro de quejas (2)'!U131<=Impresión!J$1,"No",IF('Registro de quejas (2)'!U131>Impresión!J$1,"Proceso"," ")))) -> si | I131: =I130 -> 1 | J131: 53
A132: =IF('Registro de quejas (2)'!B132=0,"",'Registro de quejas (2)'!B132) -> 2018-05-25 | B132: =IF('Registro de quejas (2)'!A132=0,"",'Registro de quejas (2)'!A132) -> 553 | C132: =IF('Registro de quejas (2)'!E132=0,"",'Registro de quejas (2)'!E132) ->  | D132: =IF('Registro de quejas (2)'!H132=0,"",'Registro de quejas (2)'!H132) -> aL ser las 11:30am el encargado de lockers Javier reporta que el area del gimnasio, lockers y hamacas presenta un acceso complicado debido a que los compañeros de restaurantes estaban lavando el piso del Ti Cain, la caída de jabón y agua era constante impidiendo el acceso de una cosiderable cantidad de huespedes presentes en las piscinas, era complicado entrar por el área principal de lockers. El jabón estaba en las aceras lo cuál pudo provocar que algun huesped sufriera una caída. | E132: =IF('Registro de quejas (2)'!G132=0,"",'Registro de quejas (2)'!Q132) -> SE DEBE DE COMUNICA CUALQUIER ACCION QUE ALTERE LA OPERACIÓN DE OTRAS ÁREAS | H132: =IF('Registro de quejas (2)'!U132="si","si",IF('Registro de quejas (2)'!U132="No","No",IF('Registro de quejas (2)'!U132<=Impresión!J$1,"No",IF('Registro de quejas (2)'!U132>Impresión!J$1,"Proceso"," ")))) -> si | I132: 1 | J132: 53
A133: =IF('Registro de quejas (2)'!B133=0,"",'Registro de quejas (2)'!B133) -> 2018-05-25 | B133: =IF('Registro de quejas (2)'!A133=0,"",'Registro de quejas (2)'!A133) -> 554 | C133: =IF('Registro de quejas (2)'!E133=0,"",'Registro de quejas (2)'!E133) -> 210 | D133: =IF('Registro de quejas (2)'!H133=0,"",'Registro de quejas (2)'!H133) -> Restaurantes muy caros, mejor si hubiera mas comida tipica y con precios mas bajos. | E133: =IF('Registro de quejas (2)'!G133=0,"",'Registro de quejas (2)'!Q133) -> SE CONTRATARÁ A UNA ASESORA EXTERNA PARA TRATAR DE SOLUCIONAR ESTE PROBLEMA DE LOS RESTAURANTES | H133: =IF('Registro de quejas (2)'!U133="si","si",IF('Registro de quejas (2)'!U133="No","No",IF('Registro de quejas (2)'!U133<=Impresión!J$1,"No",IF('Registro de quejas (2)'!U133>Impresión!J$1,"Proceso"," ")))) -> si | I133: 1 | J133: 53
A134: =IF('Registro de quejas (2)'!B134=0,"",'Registro de quejas (2)'!B134) -> 2018-05-25 | B134: =IF('Registro de quejas (2)'!A134=0,"",'Registro de quejas (2)'!A134) -> 555 | C134: =IF('Registro de quejas (2)'!E134=0,"",'Registro de quejas (2)'!E134) -> 901 | D134: =IF('Registro de quejas (2)'!H134=0,"",'Registro de quejas (2)'!H134) -> Huésped reporta que encontró muchos insectos incluyendo 2 cucarachas . | E134: =IF('Registro de quejas (2)'!G134=0,"",'Registro de quejas (2)'!Q134) -> HABITACIONES YA FUERON FUMIGADAS | H134: =IF('Registro de quejas (2)'!U134="si","si",IF('Registro de quejas (2)'!U134="No","No",IF('Registro de quejas (2)'!U134<=Impresión!J$1,"No",IF('Registro de quejas (2)'!U134>Impresión!J$1,"Proceso"," ")))) -> si | I134: 1 | J134: =H$1 -> 53
A135: =IF('Registro de quejas (2)'!B135=0,"",'Registro de quejas (2)'!B135) -> 2018-05-25 | B135: =IF('Registro de quejas (2)'!A135=0,"",'Registro de quejas (2)'!A135) -> 556 | C135: =IF('Registro de quejas (2)'!E135=0,"",'Registro de quejas (2)'!E135) ->  | D135: =IF('Registro de quejas (2)'!H135=0,"",'Registro de quejas (2)'!H135) -> Huésped recomienda que se deberia cambiar el nombre de las habitaciones, ya que según su opinión el nombre Junior Suite no va con las características que tienen nuestras habitaciones, de hecho comenta que la habitación le pareció estupenda y da como ejemplo de nombre Premium | E135: =IF('Registro de quejas (2)'!G135=0,"",'Registro de quejas (2)'!Q135) -> 00:00:00 | H135: =IF('Registro de quejas (2)'!U135="si","si",IF('Registro de quejas (2)'!U135="No","No",IF('Registro de quejas (2)'!U135<=Impresión!J$1,"No",IF('Registro de quejas (2)'!U135>Impresión!J$1,"Proceso"," ")))) -> si | I135: 1 | J135: 53
A136: =IF('Registro de quejas (2)'!B136=0,"",'Registro de quejas (2)'!B136) -> 2018-05-25 | B136: =IF('Registro de quejas (2)'!A136=0,"",'Registro de quejas (2)'!A136) -> 557 | C136: =IF('Registro de quejas (2)'!E136=0,"",'Registro de quejas (2)'!E136) ->  | D136: =IF('Registro de quejas (2)'!H136=0,"",'Registro de quejas (2)'!H136) -> La relación precio calidad de los restaurantes es mala, como ejemplo dice que la ultima noche pidió comida en el sushi bar y esto fue según ella una desgracia. | E136: =IF('Registro de quejas (2)'!G136=0,"",'Registro de quejas (2)'!Q136) -> COMENTAR CON DIEGO | H136: =IF('Registro de quejas (2)'!U136="si","si",IF('Registro de quejas (2)'!U136="No","No",IF('Registro de quejas (2)'!U136<=Impresión!J$1,"No",IF('Registro de quejas (2)'!U136>Impresión!J$1,"Proceso"," ")))) -> si | I136: 1 | J136: 53
A137: =IF('Registro de quejas (2)'!B137=0,"",'Registro de quejas (2)'!B137) -> 2018-05-25 | B137: =IF('Registro de quejas (2)'!A137=0,"",'Registro de quejas (2)'!A137) -> 558 | C137: =IF('Registro de quejas (2)'!E137=0,"",'Registro de quejas (2)'!E137) ->  | D137: =IF('Registro de quejas (2)'!H137=0,"",'Registro de quejas (2)'!H137) -> La huésped comenta que al haber pedido algo en el sushi cuando se lo entregaron el botones no fue amable. | E137: =IF('Registro de quejas (2)'!G137=0,"",'Registro de quejas (2)'!Q137) -> COMENTAR CON LIZ | H137: =IF('Registro de quejas (2)'!U137="si","si",IF('Registro de quejas (2)'!U137="No","No",IF('Registro de quejas (2)'!U137<=Impresión!J$1,"No",IF('Registro de quejas (2)'!U137>Impresión!J$1,"Proceso"," ")))) -> si | I137: 1 | J137: 53
A138: =IF('Registro de quejas (2)'!B138=0,"",'Registro de quejas (2)'!B138) -> 2018-05-26 | B138: =IF('Registro de quejas (2)'!A138=0,"",'Registro de quejas (2)'!A138) -> 559 | C138: =IF('Registro de quejas (2)'!E138=0,"",'Registro de quejas (2)'!E138) -> 206 | D138: =IF('Registro de quejas (2)'!H138=0,"",'Registro de quejas (2)'!H138) -> huespedes se apersonaron muy molestos al area de recepción para quejarse por que no pudieron dormir debido a que la alarma de incendios se activó la noche anterior, se activó a las 2am y de nuevo 5am, no dieron chance a ninguna solución mas que hablar con el gerente. | E138: =IF('Registro de quejas (2)'!G138=0,"",'Registro de quejas (2)'!Q138) -> El 28/05 LAS PERSONAS DE INSOTEK REALIZARON CAMBIOS EN LA CONFIGURACIÓN | H138: =IF('Registro de quejas (2)'!U138="si","si",IF('Registro de quejas (2)'!U138="No","No",IF('Registro de quejas (2)'!U138<=Impresión!J$1,"No",IF('Registro de quejas (2)'!U138>Impresión!J$1,"Proceso"," ")))) -> si | I138: 1 | J138: 53
A139: =IF('Registro de quejas (2)'!B139=0,"",'Registro de quejas (2)'!B139) -> 2018-05-26 | B139: =IF('Registro de quejas (2)'!A139=0,"",'Registro de quejas (2)'!A139) -> 560 | C139: =IF('Registro de quejas (2)'!E139=0,"",'Registro de quejas (2)'!E139) -> 207-208 | D139: =IF('Registro de quejas (2)'!H139=0,"",'Registro de quejas (2)'!H139) -> huespedes se apersonaron muy molestos al area de recepción para quejarse por que no pudieron dormir debido a que la alarma de incendios se activó la noche anterior, se activó a las 2am y de nuevo 5am, no dieron chance a ninguna solución mas que hablar con el gerente. | E139: =IF('Registro de quejas (2)'!G139=0,"",'Registro de quejas (2)'!Q139) -> El 28/05 LAS PERSONAS DE INSOTEK REALIZARON CAMBIOS EN LA CONFIGURACIÓN | H139: =IF('Registro de quejas (2)'!U139="si","si",IF('Registro de quejas (2)'!U139="No","No",IF('Registro de quejas (2)'!U139<=Impresión!J$1,"No",IF('Registro de quejas (2)'!U139>Impresión!J$1,"Proceso"," ")))) -> si | I139: 1 | J139: 53
A140: =IF('Registro de quejas (2)'!B140=0,"",'Registro de quejas (2)'!B140) -> 2018-05-26 | B140: =IF('Registro de quejas (2)'!A140=0,"",'Registro de quejas (2)'!A140) -> 561 | C140: =IF('Registro de quejas (2)'!E140=0,"",'Registro de quejas (2)'!E140) -> 306 | D140: =IF('Registro de quejas (2)'!H140=0,"",'Registro de quejas (2)'!H140) -> huespedes nos informan de foma traquila que la alarma los despertó la noche anterior mas no se encontraban molestos al respecto | E140: =IF('Registro de quejas (2)'!G140=0,"",'Registro de quejas (2)'!Q140) -> El 28/05 LAS PERSONAS DE INSOTEK REALIZARON CAMBIOS EN LA CONFIGURACIÓN | H140: =IF('Registro de quejas (2)'!U140="si","si",IF('Registro de quejas (2)'!U140="No","No",IF('Registro de quejas (2)'!U140<=Impresión!J$1,"No",IF('Registro de quejas (2)'!U140>Impresión!J$1,"Proceso"," ")))) -> si | I140: 1 | J140: 53
A141: =IF('Registro de quejas (2)'!B141=0,"",'Registro de quejas (2)'!B141) -> 2018-05-26 | B141: =IF('Registro de quejas (2)'!A141=0,"",'Registro de quejas (2)'!A141) -> 562 | C141: =IF('Registro de quejas (2)'!E141=0,"",'Registro de quejas (2)'!E141) -> 404 | D141: =IF('Registro de quejas (2)'!H141=0,"",'Registro de quejas (2)'!H141) -> Él botones llega a la habitación a dejar el check in y encuentran una cerveza por la mitad en la refri | E141: =IF('Registro de quejas (2)'!G141=0,"",'Registro de quejas (2)'!Q141) -> COMENTAR CON EL EQUIPO DE AMA DE LLAVES | H141: =IF('Registro de quejas (2)'!U141="si","si",IF('Registro de quejas (2)'!U141="No","No",IF('Registro de quejas (2)'!U141<=Impresión!J$1,"No",IF('Registro de quejas (2)'!U141>Impresión!J$1,"Proceso"," ")))) -> si | I141: 1 | J141: 53
A142: =IF('Registro de quejas (2)'!B142=0,"",'Registro de quejas (2)'!B142) -> 2018-05-26 | B142: =IF('Registro de quejas (2)'!A142=0,"",'Registro de quejas (2)'!A142) -> 563 | C142: =IF('Registro de quejas (2)'!E142=0,"",'Registro de quejas (2)'!E142) -> 205 | D142: =IF('Registro de quejas (2)'!H142=0,"",'Registro de quejas (2)'!H142) -> Huespedes se quejan de la poca variedad en las comidas | E142: =IF('Registro de quejas (2)'!G142=0,"",'Registro de quejas (2)'!Q142) -> SE CONTRATARÁ A UNA ASESORA EXTERNA PARA TRATAR DE SOLUCIONAR ESTE PROBLEMA DE LOS RESTAURANTES | H142: =IF('Registro de quejas (2)'!U142="si","si",IF('Registro de quejas (2)'!U142="No","No",IF('Registro de quejas (2)'!U142<=Impresión!J$1,"No",IF('Registro de quejas (2)'!U142>Impresión!J$1,"Proceso"," ")))) -> si | I142: 1 | J142: 53
A143: =IF('Registro de quejas (2)'!B143=0,"",'Registro de quejas (2)'!B143) -> 2018-05-27 | B143: =IF('Registro de quejas (2)'!A143=0,"",'Registro de quejas (2)'!A143) -> 564 | C143: =IF('Registro de quejas (2)'!E143=0,"",'Registro de quejas (2)'!E143) -> 903 | D143: =IF('Registro de quejas (2)'!H143=0,"",'Registro de quejas (2)'!H143) -> necesitamos mejor comida en los restaurantes | E143: =IF('Registro de quejas (2)'!G143=0,"",'Registro de quejas (2)'!Q143) -> SE CONTRATARÁ A UNA ASESORA EXTERNA PARA TRATAR DE SOLUCIONAR ESTE PROBLEMA DE LOS RESTAURANTES | H143: =IF('Registro de quejas (2)'!U143="si","si",IF('Registro de quejas (2)'!U143="No","No",IF('Registro de quejas (2)'!U143<=Impresión!J$1,"No",IF('Registro de quejas (2)'!U143>Impresión!J$1,"Proceso"," ")))) -> si | I143: 1 | J143: 53
A144: =IF('Registro de quejas (2)'!B144=0,"",'Registro de quejas (2)'!B144) -> 2018-05-27 | B144: =IF('Registro de quejas (2)'!A144=0,"",'Registro de quejas (2)'!A144) -> 565 | C144: =IF('Registro de quejas (2)'!E144=0,"",'Registro de quejas (2)'!E144) -> 512 | D144: =IF('Registro de quejas (2)'!H144=0,"",'Registro de quejas (2)'!H144) -> No hay carne en el desayuno, la variedad de la comida es limitada, y el tamaño de las sopas no es el ideal | E144: =IF('Registro de quejas (2)'!G144=0,"",'Registro de quejas (2)'!Q144) -> SE CONTRATARÁ A UNA ASESORA EXTERNA PARA TRATAR DE SOLUCIONAR ESTE PROBLEMA DE LOS RESTAURANTES | H144: =IF('Registro de quejas (2)'!U144="si","si",IF('Registro de quejas (2)'!U144="No","No",IF('Registro de quejas (2)'!U144<=Impresión!J$1,"No",IF('Registro de quejas (2)'!U144>Impresión!J$1,"Proceso"," ")))) -> si | I144: 1 | J144: 53
A145: =IF('Registro de quejas (2)'!B145=0,"",'Registro de quejas (2)'!B145) -> 2018-05-26 | B145: =IF('Registro de quejas (2)'!A145=0,"",'Registro de quejas (2)'!A145) -> 566 | C145: =IF('Registro de quejas (2)'!E145=0,"",'Registro de quejas (2)'!E145) -> 504 | D145: =IF('Registro de quejas (2)'!H145=0,"",'Registro de quejas (2)'!H145) -> Muy mala experiencia en el restaurante con un salonero, el cual no fue atento, con un mal servicio. | E145: =IF('Registro de quejas (2)'!G145=0,"",'Registro de quejas (2)'!Q145) -> COMENTAR CON DIEGO | H145: =IF('Registro de quejas (2)'!U145="si","si",IF('Registro de quejas (2)'!U145="No","No",IF('Registro de quejas (2)'!U145<=Impresión!J$1,"No",IF('Registro de quejas (2)'!U145>Impresión!J$1,"Proceso"," ")))) -> si | I145: 1 | J145: 53
A146: =IF('Registro de quejas (2)'!B146=0,"",'Registro de quejas (2)'!B146) -> 2018-05-26 | B146: =IF('Registro de quejas (2)'!A146=0,"",'Registro de quejas (2)'!A146) -> 567 | C146: =IF('Registro de quejas (2)'!E146=0,"",'Registro de quejas (2)'!E146) -> 504 | D146: =IF('Registro de quejas (2)'!H146=0,"",'Registro de quejas (2)'!H146) -> Hab necesita mejor luz | E146: =IF('Registro de quejas (2)'!G146=0,"",'Registro de quejas (2)'!Q146) -> YA VIENEN LAS LÁMPARAS | H146: =IF('Registro de quejas (2)'!U146="si","si",IF('Registro de quejas (2)'!U146="No","No",IF('Registro de quejas (2)'!U146<=Impresión!J$1,"No",IF('Registro de quejas (2)'!U146>Impresión!J$1,"Proceso"," ")))) -> si | I146: 1 | J146: 53
A147: =IF('Registro de quejas (2)'!B147=0,"",'Registro de quejas (2)'!B147) -> 2018-05-03 | B147: =IF('Registro de quejas (2)'!A147=0,"",'Registro de quejas (2)'!A147) -> 568 | C147: =IF('Registro de quejas (2)'!E147=0,"",'Registro de quejas (2)'!E147) ->  | D147: =IF('Registro de quejas (2)'!H147=0,"",'Registro de quejas (2)'!H147) -> Opciones de almuerzo y cena muy limitadas | E147: =IF('Registro de quejas (2)'!G147=0,"",'Registro de quejas (2)'!Q147) -> SE CONTRATARÁ A UNA ASESORA EXTERNA PARA TRATAR DE SOLUCIONAR ESTE PROBLEMA DE LOS RESTAURANTES | H147: =IF('Registro de quejas (2)'!U147="si","si",IF('Registro de quejas (2)'!U147="No","No",IF('Registro de quejas (2)'!U147<=Impresión!J$1,"No",IF('Registro de quejas (2)'!U147>Impresión!J$1,"Proceso"," ")))) -> si | I147: 1 | J147: 53
A148: =IF('Registro de quejas (2)'!B148=0,"",'Registro de quejas (2)'!B148) -> 2018-05-07 | B148: =IF('Registro de quejas (2)'!A148=0,"",'Registro de quejas (2)'!A148) -> 569 | C148: =IF('Registro de quejas (2)'!E148=0,"",'Registro de quejas (2)'!E148) ->  | D148: =IF('Registro de quejas (2)'!H148=0,"",'Registro de quejas (2)'!H148) -> Los alimentos no son de buena calidad y muy básicos, el desayuno es muy rutinario y es necesario tener mas variedad de opciones. Además el precio no se compara con el servicio y calidad. | E148: =IF('Registro de quejas (2)'!G148=0,"",'Registro de quejas (2)'!Q148) -> SE CONTRATARÁ A UNA ASESORA EXTERNA PARA TRATAR DE SOLUCIONAR ESTE PROBLEMA DE LOS RESTAURANTES | H148: =IF('Registro de quejas (2)'!U148="si","si",IF('Registro de quejas (2)'!U148="No","No",IF('Registro de quejas (2)'!U148<=Impresión!J$1,"No",IF('Registro de quejas (2)'!U148>Impresión!J$1,"Proceso"," ")))) -> si | I148: 1 | J148: 53
A149: =IF('Registro de quejas (2)'!B149=0,"",'Registro de quejas (2)'!B149) -> 2018-05-07 | B149: =IF('Registro de quejas (2)'!A149=0,"",'Registro de quejas (2)'!A149) -> 570 | C149: =IF('Registro de quejas (2)'!E149=0,"",'Registro de quejas (2)'!E149) ->  | D149: =IF('Registro de quejas (2)'!H149=0,"",'Registro de quejas (2)'!H149) -> Limitadas y pequeñas areas de piscina | E149: =IF('Registro de quejas (2)'!G149=0,"",'Registro de quejas (2)'!Q149) -> NO ES UN CONCEPTO DE BALNEARIO | H149: =IF('Registro de quejas (2)'!U149="si","si",IF('Registro de quejas (2)'!U149="No","No",IF('Registro de quejas (2)'!U149<=Impresión!J$1,"No",IF('Registro de quejas (2)'!U149>Impresión!J$1,"Proceso"," ")))) -> si | I149: 1 | J149: 53
A150: =IF('Registro de quejas (2)'!B150=0,"",'Registro de quejas (2)'!B150) -> 2018-05-07 | B150: =IF('Registro de quejas (2)'!A150=0,"",'Registro de quejas (2)'!A150) -> 571 | C150: =IF('Registro de quejas (2)'!E150=0,"",'Registro de quejas (2)'!E150) ->  | D150: =IF('Registro de quejas (2)'!H150=0,"",'Registro de quejas (2)'!H150) -> Opciones en las comidas de los restaurantes son muy limitadas. | E150: =IF('Registro de quejas (2)'!G150=0,"",'Registro de quejas (2)'!Q150) -> SE CONTRATARÁ A UNA ASESORA EXTERNA PARA TRATAR DE SOLUCIONAR ESTE PROBLEMA DE LOS RESTAURANTES | H150: =IF('Registro de quejas (2)'!U150="si","si",IF('Registro de quejas (2)'!U150="No","No",IF('Registro de quejas (2)'!U150<=Impresión!J$1,"No",IF('Registro de quejas (2)'!U150>Impresión!J$1,"Proceso"," ")))) -> si | I150: 1 | J150: 53
A151: =IF('Registro de quejas (2)'!B151=0,"",'Registro de quejas (2)'!B151) -> 2018-05-08 | B151: =IF('Registro de quejas (2)'!A151=0,"",'Registro de quejas (2)'!A151) -> 572 | C151: =IF('Registro de quejas (2)'!E151=0,"",'Registro de quejas (2)'!E151) ->  | D151: =IF('Registro de quejas (2)'!H151=0,"",'Registro de quejas (2)'!H151) -> Comida y servicios no se comparan con precio, esperaba más para el dinero que cuesta el hospedaje. | E151: =IF('Registro de quejas (2)'!G151=0,"",'Registro de quejas (2)'!Q151) -> SE CONTRATARÁ A UNA ASESORA EXTERNA PARA TRATAR DE SOLUCIONAR ESTE PROBLEMA DE LOS RESTAURANTES | H151: =IF('Registro de quejas (2)'!U151="si","si",IF('Registro de quejas (2)'!U151="No","No",IF('Registro de quejas (2)'!U151<=Impresión!J$1,"No",IF('Registro de quejas (2)'!U151>Impresión!J$1,"Proceso"," ")))) -> si | I151: 1 | J151: 53
A152: =IF('Registro de quejas (2)'!B152=0,"",'Registro de quejas (2)'!B152) -> 2018-05-08 | B152: =IF('Registro de quejas (2)'!A152=0,"",'Registro de quejas (2)'!A152) -> 573 | C152: =IF('Registro de quejas (2)'!E152=0,"",'Registro de quejas (2)'!E152) ->  | D152: =IF('Registro de quejas (2)'!H152=0,"",'Registro de quejas (2)'!H152) -> El hotel es bueno excepto por la comida (de regular a mediocre) y algunos empleados, como por ejemplo la persona en recepción que no quiso cambiar dólares. | E152: =IF('Registro de quejas (2)'!G152=0,"",'Registro de quejas (2)'!Q152) -> SE CONTRATARÁ A UNA ASESORA EXTERNA PARA TRATAR DE SOLUCIONAR ESTE PROBLEMA DE LOS RESTAURANTES | H152: =IF('Registro de quejas (2)'!U152="si","si",IF('Registro de quejas (2)'!U152="No","No",IF('Registro de quejas (2)'!U152<=Impresión!J$1,"No",IF('Registro de quejas (2)'!U152>Impresión!J$1,"Proceso"," ")))) -> si | I152: 1 | J152: 53
A153: =IF('Registro de quejas (2)'!B153=0,"",'Registro de quejas (2)'!B153) -> 2018-05-08 | B153: =IF('Registro de quejas (2)'!A153=0,"",'Registro de quejas (2)'!A153) -> 574 | C153: =IF('Registro de quejas (2)'!E153=0,"",'Registro de quejas (2)'!E153) ->  | D153: =IF('Registro de quejas (2)'!H153=0,"",'Registro de quejas (2)'!H153) -> El ventilador no se puede apagar a menos que se desactive la electricidad de toda la habitación. | E153: =IF('Registro de quejas (2)'!G153=0,"",'Registro de quejas (2)'!Q153) -> ETIQUETAR LOS APAGADORES | H153: =IF('Registro de quejas (2)'!U153="si","si",IF('Registro de quejas (2)'!U153="No","No",IF('Registro de quejas (2)'!U153<=Impresión!J$1,"No",IF('Registro de quejas (2)'!U153>Impresión!J$1,"Proceso"," ")))) -> si | I153: 1 | J153: 53
A154: =IF('Registro de quejas (2)'!B154=0,"",'Registro de quejas (2)'!B154) -> 2018-05-08 | B154: =IF('Registro de quejas (2)'!A154=0,"",'Registro de quejas (2)'!A154) -> 575 | C154: =IF('Registro de quejas (2)'!E154=0,"",'Registro de quejas (2)'!E154) ->  | D154: =IF('Registro de quejas (2)'!H154=0,"",'Registro de quejas (2)'!H154) -> Los precios de los restaurantes son un poco caros. | E154: =IF('Registro de quejas (2)'!G154=0,"",'Registro de quejas (2)'!Q154) -> SE CONTRATARÁ A UNA ASESORA EXTERNA PARA TRATAR DE SOLUCIONAR ESTE PROBLEMA DE LOS RESTAURANTES | H154: =IF('Registro de quejas (2)'!U154="si","si",IF('Registro de quejas (2)'!U154="No","No",IF('Registro de quejas (2)'!U154<=Impresión!J$1,"No",IF('Registro de quejas (2)'!U154>Impresión!J$1,"Proceso"," ")))) -> si | I154: 1 | J154: 53
A155: =IF('Registro de quejas (2)'!B155=0,"",'Registro de quejas (2)'!B155) -> 2018-05-09 | B155: =IF('Registro de quejas (2)'!A155=0,"",'Registro de quejas (2)'!A155) -> 576 | C155: =IF('Registro de quejas (2)'!E155=0,"",'Registro de quejas (2)'!E155) ->  | D155: =IF('Registro de quejas (2)'!H155=0,"",'Registro de quejas (2)'!H155) -> El costo de las bebidas de los bares y las cmoidas en restaurantes es elevado. | E155: =IF('Registro de quejas (2)'!G155=0,"",'Registro de quejas (2)'!Q155) -> SE CONTRATARÁ A UNA ASESORA EXTERNA PARA TRATAR DE SOLUCIONAR ESTE PROBLEMA DE LOS RESTAURANTES | H155: =IF('Registro de quejas (2)'!U155="si","si",IF('Registro de quejas (2)'!U155="No","No",IF('Registro de quejas (2)'!U155<=Impresión!J$1,"No",IF('Registro de quejas (2)'!U155>Impresión!J$1,"Proceso"," ")))) -> si | I155: 1 | J155: 53
A156: =IF('Registro de quejas (2)'!B156=0,"",'Registro de quejas (2)'!B156) -> 2018-05-12 | B156: =IF('Registro de quejas (2)'!A156=0,"",'Registro de quejas (2)'!A156) -> 577 | C156: =IF('Registro de quejas (2)'!E156=0,"",'Registro de quejas (2)'!E156) ->  | D156: =IF('Registro de quejas (2)'!H156=0,"",'Registro de quejas (2)'!H156) -> Variedad de opciones en el desayuno no es muy amplia. | E156: =IF('Registro de quejas (2)'!G156=0,"",'Registro de quejas (2)'!Q156) -> SE CONTRATARÁ A UNA ASESORA EXTERNA PARA TRATAR DE SOLUCIONAR ESTE PROBLEMA DE LOS RESTAURANTES | H156: =IF('Registro de quejas (2)'!U156="si","si",IF('Registro de quejas (2)'!U156="No","No",IF('Registro de quejas (2)'!U156<=Impresión!J$1,"No",IF('Registro de quejas (2)'!U156>Impresión!J$1,"Proceso"," ")))) -> si | I156: 1 | J156: 53
A157: =IF('Registro de quejas (2)'!B157=0,"",'Registro de quejas (2)'!B157) -> 2018-05-14 | B157: =IF('Registro de quejas (2)'!A157=0,"",'Registro de quejas (2)'!A157) -> 578 | C157: =IF('Registro de quejas (2)'!E157=0,"",'Registro de quejas (2)'!E157) ->  | D157: =IF('Registro de quejas (2)'!H157=0,"",'Registro de quejas (2)'!H157) -> El desayuno puede mejorar, Costa Rica tiene muchas frutas y deberían incluirse en el desayuno ya que solamente había piña y banano como únicas opciones. | E157: =IF('Registro de quejas (2)'!G157=0,"",'Registro de quejas (2)'!Q157) -> SE CONTRATARÁ A UNA ASESORA EXTERNA PARA TRATAR DE SOLUCIONAR ESTE PROBLEMA DE LOS RESTAURANTES | H157: =IF('Registro de quejas (2)'!U157="si","si",IF('Registro de quejas (2)'!U157="No","No",IF('Registro de quejas (2)'!U157<=Impresión!J$1,"No",IF('Registro de quejas (2)'!U157>Impresión!J$1,"Proceso"," ")))) -> si | I157: 1 | J157: 53
A158: =IF('Registro de quejas (2)'!B158=0,"",'Registro de quejas (2)'!B158) -> 2018-05-14 | B158: =IF('Registro de quejas (2)'!A158=0,"",'Registro de quejas (2)'!A158) -> 579 | C158: =IF('Registro de quejas (2)'!E158=0,"",'Registro de quejas (2)'!E158) ->  | D158: =IF('Registro de quejas (2)'!H158=0,"",'Registro de quejas (2)'!H158) -> Precio elevado de los restaurantes | E158: =IF('Registro de quejas (2)'!G158=0,"",'Registro de quejas (2)'!Q158) -> SE CONTRATARÁ A UNA ASESORA EXTERNA PARA TRATAR DE SOLUCIONAR ESTE PROBLEMA DE LOS RESTAURANTES | H158: =IF('Registro de quejas (2)'!U158="si","si",IF('Registro de quejas (2)'!U158="No","No",IF('Registro de quejas (2)'!U158<=Impresión!J$1,"No",IF('Registro de quejas (2)'!U158>Impresión!J$1,"Proceso"," ")))) -> si | I158: 1 | J158: 53
A159: =IF('Registro de quejas (2)'!B159=0,"",'Registro de quejas (2)'!B159) -> 2018-05-22 | B159: =IF('Registro de quejas (2)'!A159=0,"",'Registro de quejas (2)'!A159) -> 580 | C159: =IF('Registro de quejas (2)'!E159=0,"",'Registro de quejas (2)'!E159) ->  | D159: =IF('Registro de quejas (2)'!H159=0,"",'Registro de quejas (2)'!H159) -> Precios increiblemente elevados | E159: =IF('Registro de quejas (2)'!G159=0,"",'Registro de quejas (2)'!Q159) -> SE CONTRATARÁ A UNA ASESORA EXTERNA PARA TRATAR DE SOLUCIONAR ESTE PROBLEMA DE LOS RESTAURANTES | H159: =IF('Registro de quejas (2)'!U159="si","si",IF('Registro de quejas (2)'!U159="No","No",IF('Registro de quejas (2)'!U159<=Impresión!J$1,"No",IF('Registro de quejas (2)'!U159>Impresión!J$1,"Proceso"," ")))) -> si | I159: 1 | J159: 53
A160: =IF('Registro de quejas (2)'!B160=0,"",'Registro de quejas (2)'!B160) -> 2018-05-22 | B160: =IF('Registro de quejas (2)'!A160=0,"",'Registro de quejas (2)'!A160) -> 581 | C160: =IF('Registro de quejas (2)'!E160=0,"",'Registro de quejas (2)'!E160) ->  | D160: =IF('Registro de quejas (2)'!H160=0,"",'Registro de quejas (2)'!H160) -> Habitación pequeña y con pequeños insectos , las paredes son delgadas y se escucha todo además durante la noche había un ruido extraño en el techo que interrumpía el sueño. | E160: =IF('Registro de quejas (2)'!G160=0,"",'Registro de quejas (2)'!Q160) -> VALIDAR CON MELISSA Y JAIRO QUÉ HABITACIONES TIENEN RUIDO | H160: =IF('Registro de quejas (2)'!U160="si","si",IF('Registro de quejas (2)'!U160="No","No",IF('Registro de quejas (2)'!U160<=Impresión!J$1,"No",IF('Registro de quejas (2)'!U160>Impresión!J$1,"Proceso"," ")))) -> si | I160: 1 | J160: 53
A161: =IF('Registro de quejas (2)'!B161=0,"",'Registro de quejas (2)'!B161) -> 2018-05-23 | B161: =IF('Registro de quejas (2)'!A161=0,"",'Registro de quejas (2)'!A161) -> 582 | C161: =IF('Registro de quejas (2)'!E161=0,"",'Registro de quejas (2)'!E161) ->  | D161: =IF('Registro de quejas (2)'!H161=0,"",'Registro de quejas (2)'!H161) -> Comidas limitadas y menú de ensaladas no es amplio. | E161: =IF('Registro de quejas (2)'!G161=0,"",'Registro de quejas (2)'!Q161) -> SE CONTRATARÁ A UNA ASESORA EXTERNA PARA TRATAR DE SOLUCIONAR ESTE PROBLEMA DE LOS RESTAURANTES | H161: =IF('Registro de quejas (2)'!U161="si","si",IF('Registro de quejas (2)'!U161="No","No",IF('Registro de quejas (2)'!U161<=Impresión!J$1,"No",IF('Registro de quejas (2)'!U161>Impresión!J$1,"Proceso"," ")))) -> si | I161: 1 | J161: 53
A162: =IF('Registro de quejas (2)'!B162=0,"",'Registro de quejas (2)'!B162) -> 2018-05-23 | B162: =IF('Registro de quejas (2)'!A162=0,"",'Registro de quejas (2)'!A162) -> 583 | C162: =IF('Registro de quejas (2)'!E162=0,"",'Registro de quejas (2)'!E162) ->  | D162: =IF('Registro de quejas (2)'!H162=0,"",'Registro de quejas (2)'!H162) -> Opciones limitadas en los restaurantes. | E162: =IF('Registro de quejas (2)'!G162=0,"",'Registro de quejas (2)'!Q162) -> SE CONTRATARÁ A UNA ASESORA EXTERNA PARA TRATAR DE SOLUCIONAR ESTE PROBLEMA DE LOS RESTAURANTES | H162: =IF('Registro de quejas (2)'!U162="si","si",IF('Registro de quejas (2)'!U162="No","No",IF('Registro de quejas (2)'!U162<=Impresión!J$1,"No",IF('Registro de quejas (2)'!U162>Impresión!J$1,"Proceso"," ")))) -> si | I162: 1 | J162: 53
A163: =IF('Registro de quejas (2)'!B163=0,"",'Registro de quejas (2)'!B163) -> 2018-05-26 | B163: =IF('Registro de quejas (2)'!A163=0,"",'Registro de quejas (2)'!A163) -> 584 | C163: =IF('Registro de quejas (2)'!E163=0,"",'Registro de quejas (2)'!E163) ->  | D163: =IF('Registro de quejas (2)'!H163=0,"",'Registro de quejas (2)'!H163) -> Menu limitado especialmente si el restaurante principal está cerrado, no hay variedad de comida costarricense. | E163: =IF('Registro de quejas (2)'!G163=0,"",'Registro de quejas (2)'!Q163) -> SE CONTRATARÁ A UNA ASESORA EXTERNA PARA TRATAR DE SOLUCIONAR ESTE PROBLEMA DE LOS RESTAURANTES | H163: =IF('Registro de quejas (2)'!U163="si","si",IF('Registro de quejas (2)'!U163="No","No",IF('Registro de quejas (2)'!U163<=Impresión!J$1,"No",IF('Registro de quejas (2)'!U163>Impresión!J$1,"Proceso"," ")))) -> si | I163: 1 | J163: 53
A164: =IF('Registro de quejas (2)'!B164=0,"",'Registro de quejas (2)'!B164) -> 2018-05-28 | B164: =IF('Registro de quejas (2)'!A164=0,"",'Registro de quejas (2)'!A164) -> 585 | C164: =IF('Registro de quejas (2)'!E164=0,"",'Registro de quejas (2)'!E164) -> 410 | D164: =IF('Registro de quejas (2)'!H164=0,"",'Registro de quejas (2)'!H164) -> Yoga sería mejor si las clases fueran avanzadas | E164: =IF('Registro de quejas (2)'!G164=0,"",'Registro de quejas (2)'!Q164) -> SE ESTABLECIÓ CLASES BÁSICAS PARA QUE TODOS LOS CLIENTES PUEDAN APROVECHAR LAS SESIONES | H164: =IF('Registro de quejas (2)'!U164="si","si",IF('Registro de quejas (2)'!U164="No","No",IF('Registro de quejas (2)'!U164<=Impresión!J$1,"No",IF('Registro de quejas (2)'!U164>Impresión!J$1,"Proceso"," ")))) -> si | I164: 1 | J164: 53
A165: =IF('Registro de quejas (2)'!B165=0,"",'Registro de quejas (2)'!B165) -> 2018-05-28 | B165: =IF('Registro de quejas (2)'!A165=0,"",'Registro de quejas (2)'!A165) -> 586 | C165: =IF('Registro de quejas (2)'!E165=0,"",'Registro de quejas (2)'!E165) -> 410 | D165: =IF('Registro de quejas (2)'!H165=0,"",'Registro de quejas (2)'!H165) -> Sería bueno tener una banca en el gimnasio para poder hacer las pesas | E165: =IF('Registro de quejas (2)'!G165=0,"",'Registro de quejas (2)'!Q165) -> LAS MAQUINAS OFRECEN UNA ESTACIÓN PARA ALZAR PESAS | H165: =IF('Registro de quejas (2)'!U165="si","si",IF('Registro de quejas (2)'!U165="No","No",IF('Registro de quejas (2)'!U165<=Impresión!J$1,"No",IF('Registro de quejas (2)'!U165>Impresión!J$1,"Proceso"," ")))) -> si | I165: 1 | J165: 53
A166: =IF('Registro de quejas (2)'!B166=0,"",'Registro de quejas (2)'!B166) -> 2018-05-29 | B166: =IF('Registro de quejas (2)'!A166=0,"",'Registro de quejas (2)'!A166) -> 587 | C166: =IF('Registro de quejas (2)'!E166=0,"",'Registro de quejas (2)'!E166) -> 515 | D166: =IF('Registro de quejas (2)'!H166=0,"",'Registro de quejas (2)'!H166) -> Huésped comenta que dos veces han solicitado room service y al entregarlo no les llevan platos ni cubertería. | E166: =IF('Registro de quejas (2)'!G166=0,"",'Registro de quejas (2)'!Q166) -> COMENTAR CON DIEGO | H166: =IF('Registro de quejas (2)'!U166="si","si",IF('Registro de quejas (2)'!U166="No","No",IF('Registro de quejas (2)'!U166<=Impresión!J$1,"No",IF('Registro de quejas (2)'!U166>Impresión!J$1,"Proceso"," ")))) -> si | I166: 1 | J166: 53
A167: =IF('Registro de quejas (2)'!B167=0,"",'Registro de quejas (2)'!B167) -> 2018-05-30 | B167: =IF('Registro de quejas (2)'!A167=0,"",'Registro de quejas (2)'!A167) -> 588 | C167: =IF('Registro de quejas (2)'!E167=0,"",'Registro de quejas (2)'!E167) -> 709 | D167: =IF('Registro de quejas (2)'!H167=0,"",'Registro de quejas (2)'!H167) -> Una silla en la habitación para ponerse zapatos y pantalon, la cama es muy alta. | E167: =IF('Registro de quejas (2)'!G167=0,"",'Registro de quejas (2)'!Q167) -> SILLAS VIENEN EN CAMINO | H167: =IF('Registro de quejas (2)'!U167="si","si",IF('Registro de quejas (2)'!U167="No","No",IF('Registro de quejas (2)'!U167<=Impresión!J$1,"No",IF('Registro de quejas (2)'!U167>Impresión!J$1,"Proceso"," ")))) -> si | I167: 1 | J167: 53
A168: =IF('Registro de quejas (2)'!B168=0,"",'Registro de quejas (2)'!B168) -> 2018-05-30 | B168: =IF('Registro de quejas (2)'!A168=0,"",'Registro de quejas (2)'!A168) -> 589 | C168: =IF('Registro de quejas (2)'!E168=0,"",'Registro de quejas (2)'!E168) -> 104 | D168: =IF('Registro de quejas (2)'!H168=0,"",'Registro de quejas (2)'!H168) -> Reduzcan los precios de los los bares y restaurantes porque son muy elevados. | E168: =IF('Registro de quejas (2)'!G168=0,"",'Registro de quejas (2)'!Q168) -> SE CONTRATARÁ A UNA ASESORA EXTERNA PARA TRATAR DE SOLUCIONAR ESTE PROBLEMA DE LOS RESTAURANTES | H168: =IF('Registro de quejas (2)'!U168="si","si",IF('Registro de quejas (2)'!U168="No","No",IF('Registro de quejas (2)'!U168<=Impresión!J$1,"No",IF('Registro de quejas (2)'!U168>Impresión!J$1,"Proceso"," ")))) -> si | I168: 1 | J168: 53
A169: =IF('Registro de quejas (2)'!B169=0,"",'Registro de quejas (2)'!B169) -> 2018-05-30 | B169: =IF('Registro de quejas (2)'!A169=0,"",'Registro de quejas (2)'!A169) -> 590 | C169: =IF('Registro de quejas (2)'!E169=0,"",'Registro de quejas (2)'!E169) -> 309 | D169: =IF('Registro de quejas (2)'!H169=0,"",'Registro de quejas (2)'!H169) -> Hormigas e insectos en la habitción. | E169: =IF('Registro de quejas (2)'!G169=0,"",'Registro de quejas (2)'!Q169) -> COMENTAR CON JAIRO | H169: =IF('Registro de quejas (2)'!U169="si","si",IF('Registro de quejas (2)'!U169="No","No",IF('Registro de quejas (2)'!U169<=Impresión!J$1,"No",IF('Registro de quejas (2)'!U169>Impresión!J$1,"Proceso"," ")))) -> si | I169: 1 | J169: 53
A170: =IF('Registro de quejas (2)'!B170=0,"",'Registro de quejas (2)'!B170) -> 2018-05-30 | B170: =IF('Registro de quejas (2)'!A170=0,"",'Registro de quejas (2)'!A170) -> 591 | C170: =IF('Registro de quejas (2)'!E170=0,"",'Registro de quejas (2)'!E170) -> 303 | D170: =IF('Registro de quejas (2)'!H170=0,"",'Registro de quejas (2)'!H170) -> Huespedes se quejan que ante el mal clima y que desde las 2:30pm comenzó a llover el hotel debería tener alguna opcion de entretenimiento como sala de peliculas, bingo, karaoke, juegos de trivia ya que es aburrido estar en la habitación encerrados. | E170: =IF('Registro de quejas (2)'!G170=0,"",'Registro de quejas (2)'!Q170) -> COMENTAR CON GERENCIA | H170: =IF('Registro de quejas (2)'!U170="si","si",IF('Registro de quejas (2)'!U170="No","No",IF('Registro de quejas (2)'!U170<=Impresión!J$1,"No",IF('Registro de quejas (2)'!U170>Impresión!J$1,"Proceso"," ")))) -> si | I170: 1 | J170: 53
A171: =IF('Registro de quejas (2)'!B171=0,"",'Registro de quejas (2)'!B171) -> 2018-05-30 | B171: =IF('Registro de quejas (2)'!A171=0,"",'Registro de quejas (2)'!A171) -> 592 | C171: =IF('Registro de quejas (2)'!E171=0,"",'Registro de quejas (2)'!E171) ->  | D171: =IF('Registro de quejas (2)'!H171=0,"",'Registro de quejas (2)'!H171) -> Menú limitado en el Italiano | E171: =IF('Registro de quejas (2)'!G171=0,"",'Registro de quejas (2)'!Q171) -> SE CONTRATARÁ A UNA ASESORA EXTERNA PARA TRATAR DE SOLUCIONAR ESTE PROBLEMA DE LOS RESTAURANTES | H171: =IF('Registro de quejas (2)'!U171="si","si",IF('Registro de quejas (2)'!U171="No","No",IF('Registro de quejas (2)'!U171<=Impresión!J$1,"No",IF('Registro de quejas (2)'!U171>Impresión!J$1,"Proceso"," ")))) -> si | I171: 1 | J171: 53
A172: =IF('Registro de quejas (2)'!B172=0,"",'Registro de quejas (2)'!B172) -> 2018-05-31 | B172: =IF('Registro de quejas (2)'!A172=0,"",'Registro de quejas (2)'!A172) -> 593 | C172: =IF('Registro de quejas (2)'!E172=0,"",'Registro de quejas (2)'!E172) -> 506 | D172: =IF('Registro de quejas (2)'!H172=0,"",'Registro de quejas (2)'!H172) -> Pan fresco todas las mañanas. | E172: =IF('Registro de quejas (2)'!G172=0,"",'Registro de quejas (2)'!Q172) -> 00:00:00 | H172: =IF('Registro de quejas (2)'!U172="si","si",IF('Registro de quejas (2)'!U172="No","No",IF('Registro de quejas (2)'!U172<=Impresión!J$1,"No",IF('Registro de quejas (2)'!U172>Impresión!J$1,"Proceso"," ")))) -> si | I172: 1 | J172: 53
A173: =IF('Registro de quejas (2)'!B173=0,"",'Registro de quejas (2)'!B173) -> 2018-05-31 | B173: =IF('Registro de quejas (2)'!A173=0,"",'Registro de quejas (2)'!A173) -> 594 | C173: =IF('Registro de quejas (2)'!E173=0,"",'Registro de quejas (2)'!E173) -> 506 | D173: =IF('Registro de quejas (2)'!H173=0,"",'Registro de quejas (2)'!H173) -> Una silla en la habitación es necesaria | E173: =IF('Registro de quejas (2)'!G173=0,"",'Registro de quejas (2)'!Q173) -> SILLAS VIENEN EN CAMINO | H173: =IF('Registro de quejas (2)'!U173="si","si",IF('Registro de quejas (2)'!U173="No","No",IF('Registro de quejas (2)'!U173<=Impresión!J$1,"No",IF('Registro de quejas (2)'!U173>Impresión!J$1,"Proceso"," ")))) -> si | I173: 1 | J173: 53
A174: =IF('Registro de quejas (2)'!B174=0,"",'Registro de quejas (2)'!B174) -> 2018-05-31 | B174: =IF('Registro de quejas (2)'!A174=0,"",'Registro de quejas (2)'!A174) -> 595 | C174: =IF('Registro de quejas (2)'!E174=0,"",'Registro de quejas (2)'!E174) -> 305 | D174: =IF('Registro de quejas (2)'!H174=0,"",'Registro de quejas (2)'!H174) -> No hay opciones en el desayuno libres de glutten y el restaurante Italiano muy bajo en servicio. | E174: =IF('Registro de quejas (2)'!G174=0,"",'Registro de quejas (2)'!Q174) -> NO SE VA A ASUMIR RESPONSABILIDAD DE CELIACOS | H174: =IF('Registro de quejas (2)'!U174="si","si",IF('Registro de quejas (2)'!U174="No","No",IF('Registro de quejas (2)'!U174<=Impresión!J$1,"No",IF('Registro de quejas (2)'!U174>Impresión!J$1,"Proceso"," ")))) -> si | I174: 1 | J174: 53
A175: =IF('Registro de quejas (2)'!B175=0,"",'Registro de quejas (2)'!B175) -> 2018-05-31 | B175: =IF('Registro de quejas (2)'!A175=0,"",'Registro de quejas (2)'!A175) -> 596 | C175: =IF('Registro de quejas (2)'!E175=0,"",'Registro de quejas (2)'!E175) -> 111 | D175: =IF('Registro de quejas (2)'!H175=0,"",'Registro de quejas (2)'!H175) -> No hay paraguas en la habitación. | E175: =IF('Registro de quejas (2)'!G175=0,"",'Registro de quejas (2)'!Q175) -> ELEVA COSTOS | H175: =IF('Registro de quejas (2)'!U175="si","si",IF('Registro de quejas (2)'!U175="No","No",IF('Registro de quejas (2)'!U175<=Impresión!J$1,"No",IF('Registro de quejas (2)'!U175>Impresión!J$1,"Proceso"," ")))) -> si | I175: 1 | J175: 53
A176: =IF('Registro de quejas (2)'!B176=0,"",'Registro de quejas (2)'!B176) -> 2018-05-31 | B176: =IF('Registro de quejas (2)'!A176=0,"",'Registro de quejas (2)'!A176) -> 597 | C176: =IF('Registro de quejas (2)'!E176=0,"",'Registro de quejas (2)'!E176) -> 310 | D176: =IF('Registro de quejas (2)'!H176=0,"",'Registro de quejas (2)'!H176) -> En la noche debería haber alguna actividad nocturna de entretenimiento. | E176: =IF('Registro de quejas (2)'!G176=0,"",'Registro de quejas (2)'!Q176) -> VA EN CONTRA DEL CONCEPTO FAMILIAR DEL HOTEL | H176: =IF('Registro de quejas (2)'!U176="si","si",IF('Registro de quejas (2)'!U176="No","No",IF('Registro de quejas (2)'!U176<=Impresión!J$1,"No",IF('Registro de quejas (2)'!U176>Impresión!J$1,"Proceso"," ")))) -> si | I176: 1 | J176: 53
A177: =IF('Registro de quejas (2)'!B177=0,"",'Registro de quejas (2)'!B177) -> 2018-05-30 | B177: =IF('Registro de quejas (2)'!A177=0,"",'Registro de quejas (2)'!A177) -> 598 | C177: =IF('Registro de quejas (2)'!E177=0,"",'Registro de quejas (2)'!E177) -> 505 | D177: =IF('Registro de quejas (2)'!H177=0,"",'Registro de quejas (2)'!H177) -> La señal de Internet es mala y débil especialmente en las habitaciones. | E177: =IF('Registro de quejas (2)'!G177=0,"",'Registro de quejas (2)'!Q177) -> COMENTAR A ARNALDO | H177: =IF('Registro de quejas (2)'!U177="si","si",IF('Registro de quejas (2)'!U177="No","No",IF('Registro de quejas (2)'!U177<=Impresión!J$1,"No",IF('Registro de quejas (2)'!U177>Impresión!J$1,"Proceso"," ")))) -> si | I177: 1 | J177: 53
A178: =IF('Registro de quejas (2)'!B178=0,"",'Registro de quejas (2)'!B178) -> 2018-05-31 | B178: =IF('Registro de quejas (2)'!A178=0,"",'Registro de quejas (2)'!A178) -> 599 | C178: =IF('Registro de quejas (2)'!E178=0,"",'Registro de quejas (2)'!E178) -> 601 | D178: =IF('Registro de quejas (2)'!H178=0,"",'Registro de quejas (2)'!H178) -> El hotel debería de tener un area designada para juegos de mesa con sillas y mesas para juegos mientras llueve. | E178: =IF('Registro de quejas (2)'!G178=0,"",'Registro de quejas (2)'!Q178) -> COMENTAR CON GERENCIA | H178: =IF('Registro de quejas (2)'!U178="si","si",IF('Registro de quejas (2)'!U178="No","No",IF('Registro de quejas (2)'!U178<=Impresión!J$1,"No",IF('Registro de quejas (2)'!U178>Impresión!J$1,"Proceso"," ")))) -> si | I178: 1 | J178: 53
A179: =IF('Registro de quejas (2)'!B179=0,"",'Registro de quejas (2)'!B179) -> 2018-06-02 | B179: =IF('Registro de quejas (2)'!A179=0,"",'Registro de quejas (2)'!A179) -> 600 | C179: =IF('Registro de quejas (2)'!E179=0,"",'Registro de quejas (2)'!E179) -> 205 | D179: =IF('Registro de quejas (2)'!H179=0,"",'Registro de quejas (2)'!H179) -> Huésped reporta que tenía una pizza en la habitación, y que la compañera mucama al realizar la limpieza la tiró a la basura. | E179: =IF('Registro de quejas (2)'!G179=0,"",'Registro de quejas (2)'!Q179) -> MANTENER COMIDA DENTRO DE LA HABITACIÓN PROPICIA TENER INSECTOS, LA MUCAMA TRATA DE MANTENER ESTE OBJETIVO | H179: =IF('Registro de quejas (2)'!U179="si","si",IF('Registro de quejas (2)'!U179="No","No",IF('Registro de quejas (2)'!U179<=Impresión!J$1,"No",IF('Registro de quejas (2)'!U179>Impresión!J$1,"Proceso"," ")))) -> si | I179: 1 | J179: 53
A180: =IF('Registro de quejas (2)'!B180=0,"",'Registro de quejas (2)'!B180) -> 2018-06-03 | B180: =IF('Registro de quejas (2)'!A180=0,"",'Registro de quejas (2)'!A180) -> 601 | C180: =IF('Registro de quejas (2)'!E180=0,"",'Registro de quejas (2)'!E180) -> 107 | D180: =IF('Registro de quejas (2)'!H180=0,"",'Registro de quejas (2)'!H180) -> Huesped reporta hormigas en la habitación. | E180: =IF('Registro de quejas (2)'!G180=0,"",'Registro de quejas (2)'!Q180) -> 00:00:00 | H180: =IF('Registro de quejas (2)'!U180="si","si",IF('Registro de quejas (2)'!U180="No","No",IF('Registro de quejas (2)'!U180<=Impresión!J$1,"No",IF('Registro de quejas (2)'!U180>Impresión!J$1,"Proceso"," ")))) -> si | I180: 1 | J180: 53
A181: =IF('Registro de quejas (2)'!B181=0,"",'Registro de quejas (2)'!B181) -> 2018-06-03 | B181: =IF('Registro de quejas (2)'!A181=0,"",'Registro de quejas (2)'!A181) -> 602 | C181: =IF('Registro de quejas (2)'!E181=0,"",'Registro de quejas (2)'!E181) -> 103 | D181: =IF('Registro de quejas (2)'!H181=0,"",'Registro de quejas (2)'!H181) -> Huesped reporta que tiene cucarachas en la habitación en la noche. | E181: =IF('Registro de quejas (2)'!G181=0,"",'Registro de quejas (2)'!Q181) -> 00:00:00 | H181: =IF('Registro de quejas (2)'!U181="si","si",IF('Registro de quejas (2)'!U181="No","No",IF('Registro de quejas (2)'!U181<=Impresión!J$1,"No",IF('Registro de quejas (2)'!U181>Impresión!J$1,"Proceso"," ")))) -> si | I181: 1 | J181: 53
A182: =IF('Registro de quejas (2)'!B182=0,"",'Registro de quejas (2)'!B182) -> 2018-06-03 | B182: =IF('Registro de quejas (2)'!A182=0,"",'Registro de quejas (2)'!A182) -> 603 | C182: =IF('Registro de quejas (2)'!E182=0,"",'Registro de quejas (2)'!E182) -> 510 | D182: =IF('Registro de quejas (2)'!H182=0,"",'Registro de quejas (2)'!H182) -> Huésped comenta a modo de recomendación que los compañeros de los bares en la piscina, deberían utilizar siempre guantes al realizar las distintas labores que realizan ahí, dado que muchas veces se limpian las manos en sus camisas y por el tipo de camisas y el calor que se produce ahí, pasan sudando por lo que es anti higienico | E182: =IF('Registro de quejas (2)'!G182=0,"",'Registro de quejas (2)'!Q182) -> COMENTAR CON DIEGO | H182: =IF('Registro de quejas (2)'!U182="si","si",IF('Registro de quejas (2)'!U182="No","No",IF('Registro de quejas (2)'!U182<=Impresión!J$1,"No",IF('Registro de quejas (2)'!U182>Impresión!J$1,"Proceso"," ")))) -> si | I182: 1 | J182: 53
A183: =IF('Registro de quejas (2)'!B183=0,"",'Registro de quejas (2)'!B183) -> 2018-06-02 | B183: =IF('Registro de quejas (2)'!A183=0,"",'Registro de quejas (2)'!A183) -> 604 | C183: =IF('Registro de quejas (2)'!E183=0,"",'Registro de quejas (2)'!E183) -> 108 | D183: =IF('Registro de quejas (2)'!H183=0,"",'Registro de quejas (2)'!H183) -> Hormigas en la habitación, hormigas en el coffee maker, hormigas en la cama. | E183: =IF('Registro de quejas (2)'!G183=0,"",'Registro de quejas (2)'!Q183) -> 00:00:00 | H183: =IF('Registro de quejas (2)'!U183="si","si",IF('Registro de quejas (2)'!U183="No","No",IF('Registro de quejas (2)'!U183<=Impresión!J$1,"No",IF('Registro de quejas (2)'!U183>Impresión!J$1,"Proceso"," ")))) -> si | I183: 1 | J183: 53
A184: =IF('Registro de quejas (2)'!B184=0,"",'Registro de quejas (2)'!B184) -> 2018-06-03 | B184: =IF('Registro de quejas (2)'!A184=0,"",'Registro de quejas (2)'!A184) -> 605 | C184: =IF('Registro de quejas (2)'!E184=0,"",'Registro de quejas (2)'!E184) -> 406 | D184: =IF('Registro de quejas (2)'!H184=0,"",'Registro de quejas (2)'!H184) -> Huésped indica que sería muy bueno tener sombrillas en la habitación. | E184: =IF('Registro de quejas (2)'!G184=0,"",'Registro de quejas (2)'!Q184) -> ELEVA COSTOS | H184: =IF('Registro de quejas (2)'!U184="si","si",IF('Registro de quejas (2)'!U184="No","No",IF('Registro de quejas (2)'!U184<=Impresión!J$1,"No",IF('Registro de quejas (2)'!U184>Impresión!J$1,"Proceso"," ")))) -> si | I184: 1 | J184: 53
A185: =IF('Registro de quejas (2)'!B185=0,"",'Registro de quejas (2)'!B185) -> 2018-05-31 | B185: =IF('Registro de quejas (2)'!A185=0,"",'Registro de quejas (2)'!A185) -> 606 | C185: =IF('Registro de quejas (2)'!E185=0,"",'Registro de quejas (2)'!E185) -> 104 | D185: =IF('Registro de quejas (2)'!H185=0,"",'Registro de quejas (2)'!H185) -> Muchas hormigas pequeñas en el baño y el teléfono no funcionaba. | E185: =IF('Registro de quejas (2)'!G185=0,"",'Registro de quejas (2)'!Q185) -> 00:00:00 | H185: =IF('Registro de quejas (2)'!U185="si","si",IF('Registro de quejas (2)'!U185="No","No",IF('Registro de quejas (2)'!U185<=Impresión!J$1,"No",IF('Registro de quejas (2)'!U185>Impresión!J$1,"Proceso"," ")))) -> si | I185: 1 | J185: 53
A186: =IF('Registro de quejas (2)'!B186=0,"",'Registro de quejas (2)'!B186) -> 2018-06-03 | B186: =IF('Registro de quejas (2)'!A186=0,"",'Registro de quejas (2)'!A186) -> 607 | C186: =IF('Registro de quejas (2)'!E186=0,"",'Registro de quejas (2)'!E186) -> 211 | D186: =IF('Registro de quejas (2)'!H186=0,"",'Registro de quejas (2)'!H186) -> Probamos dos rollos de sushi y un sashimi y la calidad fue muy mala, el pescado no estaba fresco y la combinación de sabores no era la mejor, además la presentación de los rollos deficiente y la calidad del arroz no estaba al nivel de un restaurante aceptable de sushi. Y precios sumamente elevados en relación a la calidad. | E186: =IF('Registro de quejas (2)'!G186=0,"",'Registro de quejas (2)'!Q186) -> SE CONTRATARÁ A UNA ASESORA EXTERNA PARA TRATAR DE SOLUCIONAR ESTE PROBLEMA DE LOS RESTAURANTES | H186: =IF('Registro de quejas (2)'!U186="si","si",IF('Registro de quejas (2)'!U186="No","No",IF('Registro de quejas (2)'!U186<=Impresión!J$1,"No",IF('Registro de quejas (2)'!U186>Impresión!J$1,"Proceso"," ")))) -> si | I186: 1 | J186: 53
A187: =IF('Registro de quejas (2)'!B187=0,"",'Registro de quejas (2)'!B187) -> 2018-06-02 | B187: =IF('Registro de quejas (2)'!A187=0,"",'Registro de quejas (2)'!A187) -> 608 | C187: =IF('Registro de quejas (2)'!E187=0,"",'Registro de quejas (2)'!E187) -> 309 | D187: =IF('Registro de quejas (2)'!H187=0,"",'Registro de quejas (2)'!H187) -> Huésped se queja del restaurante Italiano el cual en ese momento se encontraba trabajando como el restaurante principal debido al cierre del Ti-Cain, se queja de que no hay en realidad opciones de comida costarricense, los precios muy altos en comparación con la cantidad y calidad de la comida. | E187: =IF('Registro de quejas (2)'!G187=0,"",'Registro de quejas (2)'!Q187) -> SE CONTRATARÁ A UNA ASESORA EXTERNA PARA TRATAR DE SOLUCIONAR ESTE PROBLEMA DE LOS RESTAURANTES | H187: =IF('Registro de quejas (2)'!U187="si","si",IF('Registro de quejas (2)'!U187="No","No",IF('Registro de quejas (2)'!U187<=Impresión!J$1,"No",IF('Registro de quejas (2)'!U187>Impresión!J$1,"Proceso"," ")))) -> si | I187: 1 | J187: 53
A188: =IF('Registro de quejas (2)'!B188=0,"",'Registro de quejas (2)'!B188) -> 2018-06-04 | B188: =IF('Registro de quejas (2)'!A188=0,"",'Registro de quejas (2)'!A188) -> 609 | C188: =IF('Registro de quejas (2)'!E188=0,"",'Registro de quejas (2)'!E188) -> 605 | D188: =IF('Registro de quejas (2)'!H188=0,"",'Registro de quejas (2)'!H188) -> Se quejan porque no hay coca cola zero ni tampoco menú para celiacos. | E188: =IF('Registro de quejas (2)'!G188=0,"",'Registro de quejas (2)'!Q188) -> SE CONTRATARÁ A UNA ASESORA EXTERNA PARA TRATAR DE SOLUCIONAR ESTE PROBLEMA DE LOS RESTAURANTES | H188: =IF('Registro de quejas (2)'!U188="si","si",IF('Registro de quejas (2)'!U188="No","No",IF('Registro de quejas (2)'!U188<=Impresión!J$1,"No",IF('Registro de quejas (2)'!U188>Impresión!J$1,"Proceso"," ")))) -> si | I188: 1 | J188: 53
A189: =IF('Registro de quejas (2)'!B189=0,"",'Registro de quejas (2)'!B189) -> 2018-06-04 | B189: =IF('Registro de quejas (2)'!A189=0,"",'Registro de quejas (2)'!A189) -> 610 | C189: =IF('Registro de quejas (2)'!E189=0,"",'Registro de quejas (2)'!E189) -> 608 | D189: =IF('Registro de quejas (2)'!H189=0,"",'Registro de quejas (2)'!H189) -> NO hay silla en la habitación y es necesaria | E189: =IF('Registro de quejas (2)'!G189=0,"",'Registro de quejas (2)'!Q189) -> SILLAS VIENEN EN CAMINO | H189: =IF('Registro de quejas (2)'!U189="si","si",IF('Registro de quejas (2)'!U189="No","No",IF('Registro de quejas (2)'!U189<=Impresión!J$1,"No",IF('Registro de quejas (2)'!U189>Impresión!J$1,"Proceso"," ")))) -> si | I189: 1 | J189: 53
A190: =IF('Registro de quejas (2)'!B190=0,"",'Registro de quejas (2)'!B190) -> 2018-06-04 | B190: =IF('Registro de quejas (2)'!A190=0,"",'Registro de quejas (2)'!A190) -> 611 | C190: =IF('Registro de quejas (2)'!E190=0,"",'Registro de quejas (2)'!E190) -> 111 | D190: =IF('Registro de quejas (2)'!H190=0,"",'Registro de quejas (2)'!H190) -> Huesped se queja de hormigas dentro de la habitación y fuera. | E190: =IF('Registro de quejas (2)'!G190=0,"",'Registro de quejas (2)'!Q190) -> 00:00:00 | H190: =IF('Registro de quejas (2)'!U190="si","si",IF('Registro de quejas (2)'!U190="No","No",IF('Registro de quejas (2)'!U190<=Impresión!J$1,"No",IF('Registro de quejas (2)'!U190>Impresión!J$1,"Proceso"," ")))) -> si | I190: 1 | J190: 53
A191: =IF('Registro de quejas (2)'!B191=0,"",'Registro de quejas (2)'!B191) -> 2018-06-05 | B191: =IF('Registro de quejas (2)'!A191=0,"",'Registro de quejas (2)'!A191) -> 612 | C191: =IF('Registro de quejas (2)'!E191=0,"",'Registro de quejas (2)'!E191) -> 504 | D191: =IF('Registro de quejas (2)'!H191=0,"",'Registro de quejas (2)'!H191) -> Huesped se queja de hormigas en el area del baño. | E191: =IF('Registro de quejas (2)'!G191=0,"",'Registro de quejas (2)'!Q191) -> 00:00:00 | H191: =IF('Registro de quejas (2)'!U191="si","si",IF('Registro de quejas (2)'!U191="No","No",IF('Registro de quejas (2)'!U191<=Impresión!J$1,"No",IF('Registro de quejas (2)'!U191>Impresión!J$1,"Proceso"," ")))) -> si | I191: 1 | J191: 53
A192: =IF('Registro de quejas (2)'!B192=0,"",'Registro de quejas (2)'!B192) -> 2018-06-05 | B192: =IF('Registro de quejas (2)'!A192=0,"",'Registro de quejas (2)'!A192) -> 613 | C192: =IF('Registro de quejas (2)'!E192=0,"",'Registro de quejas (2)'!E192) -> 504 | D192: =IF('Registro de quejas (2)'!H192=0,"",'Registro de quejas (2)'!H192) -> Hubieramos podido usar los vasos, si estos estuviesen limpios. | E192: =IF('Registro de quejas (2)'!G192=0,"",'Registro de quejas (2)'!Q192) -> COMENTAR CON MELISSA | H192: =IF('Registro de quejas (2)'!U192="si","si",IF('Registro de quejas (2)'!U192="No","No",IF('Registro de quejas (2)'!U192<=Impresión!J$1,"No",IF('Registro de quejas (2)'!U192>Impresión!J$1,"Proceso"," ")))) -> si | I192: 1 | J192: 53
A193: =IF('Registro de quejas (2)'!B193=0,"",'Registro de quejas (2)'!B193) -> 2018-06-02 | B193: =IF('Registro de quejas (2)'!A193=0,"",'Registro de quejas (2)'!A193) -> 614 | C193: =IF('Registro de quejas (2)'!E193=0,"",'Registro de quejas (2)'!E193) -> 206 | D193: =IF('Registro de quejas (2)'!H193=0,"",'Registro de quejas (2)'!H193) -> Huésped se queja de las limitadas opciones en las comidas del bar de la piscina, le gustaria como hamburguesas. Además se queja del mal servicio recibido especialmente en el Italiano. | E193: =IF('Registro de quejas (2)'!G193=0,"",'Registro de quejas (2)'!Q193) -> SE CONTRATARÁ A UNA ASESORA EXTERNA PARA TRATAR DE SOLUCIONAR ESTE PROBLEMA DE LOS RESTAURANTES | H193: =IF('Registro de quejas (2)'!U193="si","si",IF('Registro de quejas (2)'!U193="No","No",IF('Registro de quejas (2)'!U193<=Impresión!J$1,"No",IF('Registro de quejas (2)'!U193>Impresión!J$1,"Proceso"," ")))) -> si | I193: 1 | J193: 53
A194: =IF('Registro de quejas (2)'!B194=0,"",'Registro de quejas (2)'!B194) -> 2018-06-05 | B194: =IF('Registro de quejas (2)'!A194=0,"",'Registro de quejas (2)'!A194) -> 615 | C194: =IF('Registro de quejas (2)'!E194=0,"",'Registro de quejas (2)'!E194) -> 305 | D194: =IF('Registro de quejas (2)'!H194=0,"",'Registro de quejas (2)'!H194) -> Huésped se queja que reservó 22 días antes y solicitó una hab para adulta mayor y cerca a todas las areas comunes, sin embargo no tuvo respuesta. | E194: =IF('Registro de quejas (2)'!G194=0,"",'Registro de quejas (2)'!Q194) -> INDAGAR CON MIGUEL SOBRE ESTE CASO | H194: =IF('Registro de quejas (2)'!U194="si","si",IF('Registro de quejas (2)'!U194="No","No",IF('Registro de quejas (2)'!U194<=Impresión!J$1,"No",IF('Registro de quejas (2)'!U194>Impresión!J$1,"Proceso"," ")))) -> si | I194: 1 | J194: 53
A195: =IF('Registro de quejas (2)'!B195=0,"",'Registro de quejas (2)'!B195) -> 2018-06-05 | B195: =IF('Registro de quejas (2)'!A195=0,"",'Registro de quejas (2)'!A195) -> 616 | C195: =IF('Registro de quejas (2)'!E195=0,"",'Registro de quejas (2)'!E195) -> 305 | D195: =IF('Registro de quejas (2)'!H195=0,"",'Registro de quejas (2)'!H195) -> Huésped se queja de los precios de los restaurantes, muy altos | E195: =IF('Registro de quejas (2)'!G195=0,"",'Registro de quejas (2)'!Q195) -> SE CONTRATARÁ A UNA ASESORA EXTERNA PARA TRATAR DE SOLUCIONAR ESTE PROBLEMA DE LOS RESTAURANTES | H195: =IF('Registro de quejas (2)'!U195="si","si",IF('Registro de quejas (2)'!U195="No","No",IF('Registro de quejas (2)'!U195<=Impresión!J$1,"No",IF('Registro de quejas (2)'!U195>Impresión!J$1,"Proceso"," ")))) -> si | I195: =I194 -> 1 | J195: 53
A196: =IF('Registro de quejas (2)'!B196=0,"",'Registro de quejas (2)'!B196) -> 2018-06-07 | B196: =IF('Registro de quejas (2)'!A196=0,"",'Registro de quejas (2)'!A196) -> 617 | C196: =IF('Registro de quejas (2)'!E196=0,"",'Registro de quejas (2)'!E196) -> 414-415 | D196: =IF('Registro de quejas (2)'!H196=0,"",'Registro de quejas (2)'!H196) -> Cliente indica que no puede conectarse al Wifi, y luego cuando logró la conexion, la misma es muy debil y no le permite accesar correctamente. | E196: =IF('Registro de quejas (2)'!G196=0,"",'Registro de quejas (2)'!Q196) -> Asignar Arnaldo Moreira | H196: =IF('Registro de quejas (2)'!U196="si","si",IF('Registro de quejas (2)'!U196="No","No",IF('Registro de quejas (2)'!U196<=Impresión!J$1,"No",IF('Registro de quejas (2)'!U196>Impresión!J$1,"Proceso"," ")))) -> si | I196: 1 | J196: 53
A197: =IF('Registro de quejas (2)'!B197=0,"",'Registro de quejas (2)'!B197) -> 2018-06-08 | B197: =IF('Registro de quejas (2)'!A197=0,"",'Registro de quejas (2)'!A197) -> 618 | C197: =IF('Registro de quejas (2)'!E197=0,"",'Registro de quejas (2)'!E197) -> 712 | D197: =IF('Registro de quejas (2)'!H197=0,"",'Registro de quejas (2)'!H197) -> El refrigerador produce demasiado ruido | E197: =IF('Registro de quejas (2)'!G197=0,"",'Registro de quejas (2)'!Q197) -> Asignar Dariel Miranda | H197: =IF('Registro de quejas (2)'!U197="si","si",IF('Registro de quejas (2)'!U197="No","No",IF('Registro de quejas (2)'!U197<=Impresión!J$1,"No",IF('Registro de quejas (2)'!U197>Impresión!J$1,"Proceso"," ")))) -> No | I197: 1 | J197: 53
A198: =IF('Registro de quejas (2)'!B198=0,"",'Registro de quejas (2)'!B198) -> 2018-06-08 | B198: =IF('Registro de quejas (2)'!A198=0,"",'Registro de quejas (2)'!A198) -> 619 | C198: =IF('Registro de quejas (2)'!E198=0,"",'Registro de quejas (2)'!E198) -> 712 | D198: =IF('Registro de quejas (2)'!H198=0,"",'Registro de quejas (2)'!H198) -> El internet no funcionó bien, muy lento cuando pudimos recibir algo de señal. | E198: =IF('Registro de quejas (2)'!G198=0,"",'Registro de quejas (2)'!Q198) -> Asignar Arnaldo Moreira | H198: =IF('Registro de quejas (2)'!U198="si","si",IF('Registro de quejas (2)'!U198="No","No",IF('Registro de quejas (2)'!U198<=Impresión!J$1,"No",IF('Registro de quejas (2)'!U198>Impresión!J$1,"Proceso"," ")))) -> si | I198: 1 | J198: =H$1 -> 53
A199: =IF('Registro de quejas (2)'!B199=0,"",'Registro de quejas (2)'!B199) -> 2018-06-07 | B199: =IF('Registro de quejas (2)'!A199=0,"",'Registro de quejas (2)'!A199) -> 620 | C199: =IF('Registro de quejas (2)'!E199=0,"",'Registro de quejas (2)'!E199) -> 705 | D199: =IF('Registro de quejas (2)'!H199=0,"",'Registro de quejas (2)'!H199) -> Más opciones de comida vegetariana en el restaurante principal. | E199: =IF('Registro de quejas (2)'!G199=0,"",'Registro de quejas (2)'!Q199) -> Asignar Diego Cambronero | H199: =IF('Registro de quejas (2)'!U199="si","si",IF('Registro de quejas (2)'!U199="No","No",IF('Registro de quejas (2)'!U199<=Impresión!J$1,"No",IF('Registro de quejas (2)'!U199>Impresión!J$1,"Proceso"," ")))) -> No | I199: 1 | J199: 53
A200: =IF('Registro de quejas (2)'!B200=0,"",'Registro de quejas (2)'!B200) -> 2018-06-07 | B200: =IF('Registro de quejas (2)'!A200=0,"",'Registro de quejas (2)'!A200) -> 621 | C200: =IF('Registro de quejas (2)'!E200=0,"",'Registro de quejas (2)'!E200) -> 610 | D200: =IF('Registro de quejas (2)'!H200=0,"",'Registro de quejas (2)'!H200) -> Las porciones de comida no están acorde con el precio | E200: =IF('Registro de quejas (2)'!G200=0,"",'Registro de quejas (2)'!Q200) -> Asignar Diego Cambronero | H200: =IF('Registro de quejas (2)'!U200="si","si",IF('Registro de quejas (2)'!U200="No","No",IF('Registro de quejas (2)'!U200<=Impresión!J$1,"No",IF('Registro de quejas (2)'!U200>Impresión!J$1,"Proceso"," ")))) -> No | I200: 1 | J200: 53
... 3816 more rows

Sheet Historico
A1: Fecha | B1: N° Queja | C1: Hab | D1: Descripción de la Queja | E1: Departamento Responsable | F1: Acciones Correctivas | G1: Propuesta Solución Queja | H1: Resultado | I1: Folio
A2: 2018-06-07 | B2: 620 | C2: 705 | D2: Más opciones de comida vegetariana en el restaurante principal. | E2: Asignar Diego Cambronero | H2: No | I2: 52
A3: 2018-06-07 | B3: 621 | C3: 610 | D3: Las porciones de comida no están acorde con el precio | E3: Asignar Diego Cambronero | H3: No | I3: 52
A4: 2018-06-11 | B4: 630 | D4: Más comida tradicional de Costa Rica en los menú, ya que cuando estuvimos hospedados solo estaba abierto el restaurante italiano y japones. | E4: Asignar Diego Cambronero | H4: No | I4: 52
A5: 2018-06-17 | B5: 646 | C5: 403 | D5: Huésped se queja de que a la hora de reservar en el hotel acordó una cena romántica especial cual le vendieron y prometieron y no se cumplió, el señor estaba bastante molesto porque pagó más de 100 dólares por la cena y el menú que le brindaron era el mismo menú que se le ofrece a todos los clientes, el señor argumenta que no hay nada especial en lo que se le ofreció y lo que le molesta es que le hayan mentido, el mismo prefirió que se le reintegrara el dinero y que iba a pagar lo que consumiera como otro huésped más común y corriente. | E5: Asignar Diego Cambronero | H5: No | I5: 52
A6: 2018-06-27 | B6: 665 | C6: 301 | D6: Menú para niños | E6: Asignar Diego Cambronero | H6: No | I6: 52
A7: 2018-06-28 | B7: 670 | C7: 105 | D7: Precios sumamente caros en las comidas, deberían poner un transporte a la fortuna donde se pueda ir y comer y que ofrezcan precios razonables | E7: Asignar Diego Cambronero | H7: No | I7: 52
A8: 2018-06-16 | B8: 675 | D8: Cenas y bar de la piscina con precios muy elevados. | E8: Asignar Diego Cambronero | H8: No | I8: 52
A9: 2018-06-19 | B9: 676 | D9: El costo de las comidas es muy caro y es mejor ir a alguna soda en el pueblo. | E9: Asignar Diego Cambronero | H9: No | I9: 52
A10: 2018-07-01 | B10: 677 | D10: Muy decepcionados con la cena, precios muy caros y calidad de la comida no es equivalente a los que cobran en comparación con otros hoteles de la zona. | E10: Asignar Diego Cambronero | H10: No | I10: 52
A11: 2018-07-02 | B11: 679 | D11: Cena muy limitada y con precio elevado. | E11: Asignar Diego Cambronero | H11: No | I11: 52
A12: 2018-06-29 | B12: 681 | C12: 411 | D12: Mejor selección en calidad de las comidas. | E12: Asignar Diego Cambronero | H12: No | I12: 52
A13: 2018-07-03 | B13: 688 | D13: Precios de la cena muy elevados | E13: Asignar Diego Cambronero | H13: No | I13: 52
A14: 2018-07-13 | B14: 725 | C14: 406 | D14: NO hay variedad en menú para niños. | E14: Asignar Diego Cambronero | H14: No | I14: 52
A15: 2018-07-27 | B15: 758 | C15: 801 | D15: Poner precios mas bajos en los restaurantes ya que son muy caros. | E15: Asignar Diego Cambronero | H15: No | I15: 52
A16: 2018-07-01 | B16: 764 | D16: Como otros comentarios de otros huéspedes también terminamos decepcionados de la cena, los precios son demasiado elevados y la calidad de la comida en relación a otros hoteles quedó debiendo | E16: Asignar Diego Cambronero | H16: No | I16: 52
A17: 2018-07-02 | B17: 765 | D17: la selección de los alimentos en el desayuno es pobre, mi esposo quería salchicha o tocino y no fue posible. Además las cenas son muy caras y las porciones muy pequeñas. | E17: Asignar Diego Cambronero | H17: No | I17: 52
A18: 2018-07-17 | B18: 770 | D18: El restaurante principal de la cena en sí es bastante caro y nada especial. No había nada de malo en ello, pero nos habíamos acostumbrado a grandes porciones de Costa Rica, y nuestra cena aquí era mucho más pequeña y no estuvo a la altura de la comida que tuvimos en otro lugar en nuestro viaje. | E18: Asignar Diego Cambronero | H18: No | I18: 52
A19: 2018-07-26 | B19: 771 | D19: La comida del restaurante italiano fue deficiente | E19: Asignar Diego Cambronero | H19: No | I19: 52
A20: 2018-07-30 | B20: 773 | C20: 303 | D20: Precios muy elevados en las comidas. | E20: Asignar Diego Cambronero | H20: No | I20: 52
A21: 2018-08-02 | B21: 781 | C21: 204 | D21: Huéspedes se quejan de los precios, reclaman mejores precios. | E21: Asignar Diego Cambronero | H21: No | I21: 52
A22: 2018-08-02 | B22: 782 | C22: 801 | D22: Huéspedes se quejan que las porciones del restaurante italiano son pequeñas y muy caras. | E22: Asignar Diego Cambronero | H22: No | I22: 52
A23: 2018-08-04 | B23: 784 | C23: 401 | D23: La comida en el Italiano muy cara. | E23: Asignar Diego Cambronero | H23: No | I23: 52
A24: 2018-08-04 | B24: 785 | C24: 512 | D24: Más opciones libres de glutten son muy necesarias | E24: Asignar Diego Cambronero | H24: No | I24: 52
A25: 2018-08-04 | B25: 786 | C25: 511 | D25: Variedad limitada en opciones de glutten, problemas con inocuidad. | E25: Asignar Diego Cambronero | H25: No | I25: 52
A26: 2018-08-02 | B26: 789 | C26: 609-610 | D26: Bastante caro el Italiano. | E26: Asignar Diego Cambronero | H26: No | I26: 52
A27: 2018-08-02 | B27: 792 | D27: Precios del restaurante y de los bares muy elevados | E27: Asignar Diego Cambronero | H27: No | I27: 52
A28: 2018-08-04 | B28: 794 | D28: Se queja de la comida de los restaurantes los cuales fueron una estafa, muy baja calidad en las comidas. La pizza fue la peor que ha comido, muy mala. Además precios sumamente caros por nada especial a cambio. | E28: Asignar Diego Cambronero | H28: No | I28: 52
A29: 2018-08-03 | B29: 805 | C29: 210 | D29: Precios elevados. | E29: Asignar Diego Cambronero | H29: No | I29: 52
A30: 2018-08-03 | B30: 806 | C30: 210 | D30: Sería muy bueno tener menus en la habitación. | E30: Asignar Diego Cambronero | H30: No | I30: 52
A31: 2018-08-07 | B31: 809 | C31: 508 | D31: Cambien los menus en ambos restaurantes | E31: Asignar Diego Cambronero | H31: No | I31: 52
A32: 2018-08-19 | B32: 836 | C32: 301 | D32: Servicio muy lento | E32: Asignar Diego Cambronero | H32: No | I32: 52
A33: 2018-08-20 | B33: 837 | C33: 504 | D33: Se puede mejorar el desayuno | E33: Asignar Diego Cambronero | H33: No | I33: 52
A34: 2018-08-13 | B34: 845 | C34: 101 | D34: Los restaurantes son muy caros y la comida mas o menos. | E34: Asignar Diego Cambronero | H34: No | I34: 52
A35: 2018-08-17 | B35: 846 | D35: La comida italiana esta sobrevalorada y sin buen sabor, además las porciones son muy pequeñas. | E35: Asignar Diego Cambronero | H35: No | I35: 52
A36: 2018-08-17 | B36: 848 | D36: Las bebidas y comida en la piscina son muy caras. | E36: Asignar Diego Cambronero | H36: No | I36: 52
A37: 2018-08-21 | B37: 852 | C37: 604 | D37: Deberian tener mejores opciones vegetarianas y harinas integrales | E37: Asignar Diego Cambronero | H37: No | I37: 52
A38: 2018-08-21 | B38: 853 | C38: 711 | D38: El desayuno es bueno pero estaba muy lleno por lo que sería bueno tener algunas cosas precocinadas como los huevos revueltos. | E38: Asignar Diego Cambronero | H38: No | I38: 52
A39: 2018-08-22 | B39: 854 | C39: 408 | D39: Mas variedad en restaurantes. | E39: Asignar Diego Cambronero | H39: No | I39: 52
A40: 2018-08-23 | B40: 858 | C40: 305 | D40: Falta ofrecer pan libre de glutten como opción. | E40: Asignar Diego Cambronero | H40: No | I40: 52
A41: 2018-08-23 | B41: 860 | C41: 506 | D41: Tener más opciones de comida nacional | E41: Asignar Diego Cambronero | H41: No | I41: 52
A42: 2018-08-25 | B42: 862 | C42: 505 | D42: Huésped indica que debemos mejorar en el tema de alimentos y calidad. | E42: Asignar Diego Cambronero | H42: No | I42: 52
A43: 2018-08-24 | B43: 865 | C43: 208 | D43: Huésped molesto porque se le sirvió un pollo crudo y él indica que eso es de mucho cuidado porque puede enfermar a una persona, esto provocó que se fueran muy temprano del hotel al check-out porque querían visitar otro restaurante. | E43: Asignar Diego Cambronero | H43: No | I43: 52
A44: 2018-08-26 | B44: 866 | C44: 508 | D44: La comida en el buffet es escasa y muy repetitiva. | E44: Asignar Diego Cambronero | H44: No | I44: 52
A45: 2018-08-26 | B45: 867 | C45: 508 | D45: Huésped se queja de los precios que son muy elevados. | E45: Asignar Diego Cambronero | H45: No | I45: 52
A46: 2018-08-30 | B46: 869 | C46: 904 | D46: Los pancakes se secan mucho al estar expuestos al aire libre | E46: Asignar Diego Cambronero | H46: No | I46: 52
A47: 2018-08-31 | B47: 874 | C47: 307 | D47: El vino es muy caro en los restaurantes | E47: Asignar Diego Cambronero | H47: No | I47: 52
A48: 2018-09-01 | B48: 875 | C48: 901 | D48: Mejores alternativas de alimentación, excepto el desayuno el cual es muy bueno | E48: Asignar Diego Cambronero | H48: No | I48: 52
A49: 2018-08-31 | B49: 878 | C49: 308 | D49: El chicken gyoza en el bar húmedo es muy malo y los precios son muy caros | E49: Asignar Diego Cambronero | H49: No | I49: 52
A50: 2018-08-31 | B50: 881 | C50: 308 | D50: Los precios de los restaurantes son muy caros y la comida muy mediocre | E50: Asignar Diego Cambronero | H50: No | I50: 52
A51: 2018-08-31 | B51: 882 | C51: 308 | D51: El precio que se debe pagar por todo el hotel hace pensar que es de muy alta calidad, sin embargo esto no es así | E51: Asignar Diego Cambronero | H51: No | I51: 52
A52: 2018-06-07 | B52: 612 | C52: 610 | D52: Las porciones de comida no están acorde con el precio | E52: Asignar Diego Cambronero | H52: No | I52: 50
A53: 2018-06-11 | B53: 621 | D53: Más comida tradicional de Costa Rica en los menú, ya que cuando estuvimos hospedados solo estaba abierto el restaurante italiano y japones. | E53: Asignar Diego Cambronero | H53: No | I53: 50
A54: 2018-06-17 | B54: 637 | C54: 403 | D54: Huésped se queja de que a la hora de reservar en el hotel acordó una cena romántica especial cual le vendieron y prometieron y no se cumplió, el señor estaba bastante molesto porque pagó más de 100 dólares por la cena y el menú que le brindaron era el mismo menú que se le ofrece a todos los clientes, el señor argumenta que no hay nada especial en lo que se le ofreció y lo que le molesta es que le hayan mentido, el mismo prefirió que se le reintegrara el dinero y que iba a pagar lo que consumiera como otro huésped más común y corriente. | E54: Asignar Diego Cambronero | H54: No | I54: 50
A55: 2018-06-27 | B55: 656 | C55: 301 | D55: Menú para niños | E55: Asignar Diego Cambronero | H55: No | I55: 50
A56: 2018-06-28 | B56: 661 | C56: 105 | D56: Precios sumamente caros en las comidas, deberían poner un transporte a la fortuna donde se pueda ir y comer y que ofrezcan precios razonables | E56: Asignar Diego Cambronero | H56: No | I56: 50
A57: 2018-06-16 | B57: 666 | D57: Cenas y bar de la piscina con precios muy elevados. | E57: Asignar Diego Cambronero | H57: No | I57: 50
A58: 2018-06-19 | B58: 667 | D58: El costo de las comidas es muy caro y es mejor ir a alguna soda en el pueblo. | E58: Asignar Diego Cambronero | H58: No | I58: 50
A59: 2018-07-01 | B59: 668 | D59: Muy decepcionados con la cena, precios muy caros y calidad de la comida no es equivalente a los que cobran en comparación con otros hoteles de la zona. | E59: Asignar Diego Cambronero | H59: No | I59: 50
A60: 2018-07-02 | B60: 670 | D60: Cena muy limitada y con precio elevado. | E60: Asignar Diego Cambronero | H60: No | I60: 50
A61: 2018-06-29 | B61: 672 | C61: 411 | D61: Mejor selección en calidad de las comidas. | E61: Asignar Diego Cambronero | H61: No | I61: 50
A62: 2018-07-03 | B62: 679 | D62: Precios de la cena muy elevados | E62: Asignar Diego Cambronero | H62: No | I62: 50
A63: 2018-07-13 | B63: 716 | C63: 406 | D63: NO hay variedad en menú para niños. | E63: Asignar Diego Cambronero | H63: No | I63: 50
A64: 2018-07-27 | B64: 748 | C64: 801 | D64: Poner precios mas bajos en los restaurantes ya que son muy caros. | E64: Asignar Diego Cambronero | H64: No | I64: 50
A65: 2018-07-01 | B65: 754 | D65: Como otros comentarios de otros huéspedes también terminamos decepcionados de la cena, los precios son demasiado elevados y la calidad de la comida en relación a otros hoteles quedó debiendo | E65: Asignar Diego Cambronero | H65: No | I65: 50
A66: 2018-07-02 | B66: 755 | D66: la selección de los alimentos en el desayuno es pobre, mi esposo quería salchicha o tocino y no fue posible. Además las cenas son muy caras y las porciones muy pequeñas. | E66: Asignar Diego Cambronero | H66: No | I66: 50
A67: 2018-07-17 | B67: 759 | D67: El restaurante principal de la cena en sí es bastante caro y nada especial. No había nada de malo en ello, pero nos habíamos acostumbrado a grandes porciones de Costa Rica, y nuestra cena aquí era mucho más pequeña y no estuvo a la altura de la comida que tuvimos en otro lugar en nuestro viaje. | E67: Asignar Diego Cambronero | H67: No | I67: 50
A68: 2018-07-26 | B68: 760 | D68: La comida del restaurante italiano fue deficiente | E68: Asignar Diego Cambronero | H68: No | I68: 50
A69: 2018-07-30 | B69: 762 | C69: 303 | D69: Precios muy elevados en las comidas. | E69: Asignar Diego Cambronero | H69: No | I69: 50
A70: 2018-08-02 | B70: 770 | C70: 204 | D70: Huéspedes se quejan de los precios, reclaman mejores precios. | E70: Asignar Diego Cambronero | H70: No | I70: 50
A71: 2018-08-02 | B71: 771 | C71: 801 | D71: Huéspedes se quejan que las porciones del restaurante italiano son pequeñas y muy caras. | E71: Asignar Diego Cambronero | H71: No | I71: 50
A72: 2018-08-04 | B72: 773 | C72: 401 | D72: La comida en el Italiano muy cara. | E72: Asignar Diego Cambronero | H72: No | I72: 50
A73: 2018-08-04 | B73: 774 | C73: 512 | D73: Más opciones libres de glutten son muy necesarias | E73: Asignar Diego Cambronero | H73: No | I73: 50
A74: 2018-08-04 | B74: 775 | C74: 511 | D74: Variedad limitada en opciones de glutten, problemas con inocuidad. | E74: Asignar Diego Cambronero | H74: No | I74: 50
A75: 2018-08-02 | B75: 779 | C75: 609-610 | D75: Bastante caro el Italiano. | E75: Asignar Diego Cambronero | H75: No | I75: 50
A76: 2018-08-02 | B76: 782 | D76: Precios del restaurante y de los bares muy elevados | E76: Asignar Diego Cambronero | H76: No | I76: 50
A77: 2018-08-04 | B77: 784 | D77: Se queja de la comida de los restaurantes los cuales fueron una estafa, muy baja calidad en las comidas. La pizza fue la peor que ha comido, muy mala. Además precios sumamente caros por nada especial a cambio. | E77: Asignar Diego Cambronero | H77: No | I77: 50
A78: 2018-08-03 | B78: 796 | C78: 210 | D78: Precios elevados. | E78: Asignar Diego Cambronero | H78: No | I78: 50
A79: 2018-08-03 | B79: 797 | C79: 210 | D79: Sería muy bueno tener menus en la habitación. | E79: Asignar Diego Cambronero | H79: No | I79: 50
A80: 2018-08-07 | B80: 800 | C80: 508 | D80: Cambien los menus en ambos restaurantes | E80: Asignar Diego Cambronero | H80: No | I80: 50
A81: 2018-08-19 | B81: 826 | C81: 301 | D81: Servicio muy lento | E81: Asignar Diego Cambronero | H81: No | I81: 50
A82: 2018-08-20 | B82: 827 | C82: 504 | D82: Se puede mejorar el desayuno | E82: Asignar Diego Cambronero | H82: No | I82: 50
A83: 2018-08-13 | B83: 836 | C83: 101 | D83: Los restaurantes son muy caros y la comida mas o menos. | E83: Asignar Diego Cambronero | H83: No | I83: 50
A84: 2018-08-17 | B84: 837 | D84: La comida italiana esta sobrevalorada y sin buen sabor, además las porciones son muy pequeñas. | E84: Asignar Diego Cambronero | H84: No | I84: 50
A85: 2018-08-17 | B85: 839 | D85: Las bebidas y comida en la piscina son muy caras. | E85: Asignar Diego Cambronero | H85: No | I85: 50
A86: 2018-08-21 | B86: 843 | C86: 604 | D86: Deberian tener mejores opciones vegetarianas y harinas integrales | E86: Asignar Diego Cambronero | H86: No | I86: 50
A88: 2018-06-11 | B88: 622 | C88: 202 | D88: El shampoo podría ser mejor | E88: Asignar Dariel Miranda | H88: No | I88: 49
A89: 2018-06-30 | B89: 671 | C89: 203 | D89: La refrigeradora hace mucho ruido | E89: Asignar Dariel Miranda | H89: No | I89: 49
A90: 2018-08-17 | B90: 840 | D90: Los precios de lavandería son una broma. Preferí llevar mi ropa a lavar a la Fortuna. | E90: Asignar Dariel Miranda | H90: No | I90: 49
A91: 2018-08-21 | B91: 841 | C91: 506 | D91: EL hotel está pensado solo para adultos. NO hay areas infantiles ni salas de juego donde ellos puedan despejarse y divertirse. | E91: Asignar Dariel Miranda | H91: No | I91: 49
A93: 2018-06-09 | B93: 615 | C93: 509 | D93: El wifi no funciona bien | E93: Asignar Arnaldo Moreira | H93: No | I93: 48
A94: 2018-06-09 | B94: 617 | C94: 510 | D94: El wifi o es muy lento o no funciona en la habitación | E94: Asignar Arnaldo Moreira | H94: No | I94: 48
A95: 2018-06-14 | B95: 626 | C95: 303 | D95: Huésped se queja que su teléfono no conecta a internet de ninguna manera. | E95: Asignar Arnaldo Moreira | H95: No | I95: 48
A96: 2018-06-17 | B96: 636 | C96: 503 | D96: Huésped se queja que el internet le funciona en la hab 503 pero en la de la par no le sirve del todo lo cual le parece bastante extraño. | E96: Asignar Arnaldo Moreira | H96: No | I96: 48
A97: 2018-06-20 | B97: 644 | C97: 502 | D97: Huésped muy decepcionado del servicio de Internet que le ofrecemos, el mismo no puede utilizar un celular que usa para negocios ya que a pesar de que le sale conectado no es posible hacer uso del internet. | E97: Asignar Arnaldo Moreira | H97: No | I97: 48
A98: 2018-07-05 | B98: 687 | C98: 902 | D98: Mejorar el internet | E98: Asignar Arnaldo Moreira | H98: No | I98: 48
A99: 2018-07-11 | B99: 707 | C99: 309 | D99: Huéspedes se quejan de las computadoras del lobby las cuales no les funciona la unidad de CD-Room y no fue posible leer un disco de fotos que necesitaban compartir entre ellos. | E99: Asignar Arnaldo Moreira | H99: No | I99: 48
A100: 2018-07-28 | B100: 749 | C100: 307 | D100: Internet no funcionó bien en la habitación. | E100: Asignar Arnaldo Moreira | H100: No | I100: 48
A101: 2018-07-28 | B101: 750 | C101: 308 | D101: La conexión a Internet debería ser mejor y más estable. Conexión buena es lo que falta | E101: Asignar Arnaldo Moreira | H101: No | I101: 48
A102: 2018-08-05 | B102: 795 | C102: 307 | D102: Mejorar el Wi-fi ya que es muy inconsistente | E102: Asignar Arnaldo Moreira | H102: No | I102: 48
A103: 2018-08-19 | B103: 822 | C103: 703 | D103: Mejorar wifi en la habitación | E103: Asignar Arnaldo Moreira | H103: No | I103: 48
A104: 2018-08-20 | B104: 835 | C104: 802 | D104: Huésped se queja del Internet y de la lentitud del mismo. | E104: Asignar Arnaldo Moreira | H104: No | I104: 48
A106: 2018-08-02 | B106: 767 | C106: 503 | D106: Huéspedes molestos porque desde las 7 am entregaron lavandería y llegaron a las 7:00pm a preguntar a recepción y aún no estaba lista. | E106: Asignar Roberto Escoto | H106: No | I106: 47
A108: 2018-07-19 | B108: 732 | C108: 207-208 | D108: Telefonos no funcionan y huéspedes no pudieron recibir el wake up call | E108: Asignar Randall Salazar | H108: No | I108: 46
A110: 2018-07-18 | B110: 731 | C110: 208 | D110: Mal olor en habitación | E110: Asignar Mario Lezama | H110: No | I110: 45
A111: 2018-07-21 | B111: 734 | C111: 902 | D111: Huésped reporta un fuerte olor en la habitación que los mantiene inconformes | E111: Asignar Mario Lezama | H111: No | I111: 45
A112: 2018-07-23 | B112: 739 | C112: 403-211 | D112: El siguiente correo es para notificar acerca de una misma situación en la cual se vieron afectadas 2 habitaciones, las mismas serian 403 – 211 , alrededor de las 6 pm se recibe el informe de ambas habitaciones en el cual los huéspedes informan que desde sus baños provienen olores muy fuertes y desagradables y ambos lo describen como un olor a cloaca y humedad y que les perturba su estadía en el hotel, inmediatamente se coordina con las compañeras de áreas públicas para verificar el estado de la situación, ellas nos informan que dichos olores efectivamente provienen del desagüe del baño de las duchas, ellas hacen la limpieza respectiva y de igual forma dejan fragancias en las habitaciones para disminuir dichos olores, se esperan alrededor de 30 min y mi persona juntamente con la compañera nos dirigimos para corroborar que todo se encuentre en orden, la hab 211 no posee ningún inconveniente, sin embargo la hab 403 aun contaba con un poco de olor. A los huéspedes se les ofrece el traslado de habitaciones pero ellos desean permanecer en sus habitaciones respectivas e indican que si el problema persiste aceptarán dichos cambios. Quiero hacer la connotación de que dichas situaciones al parecer es producto de las constantes lluvias y por este motivo los desagües se rebalsan emitiendo dichos olores. Favor darle el seguimiento respectivo a la situación ocurrida, cualquier consulta estoy para servirles. | E112: Asignar Mario Lezama | H112: No | I112: 45
A114: 2018-06-27 | B114: 655 | C114: 602 | D114: El restaurante nacional debería de tener más decoración costarricense, más musica típica para el desayuno e instrumental para la noche | E114: Asignar Mainor Castro | H114: No | I114: 44
A115: 2018-06-13 | B115: 665 | D115: El sushi es pésimo, la calidad de los ingredientes es terrible (cero frescos), las combinaciones de sabor fatal, el arroz no tiene la textura adecuada y tampoco buena presentación. No entiendo como un hotel tan bello puede ofrecer un sushi tan terrible :( | E115: Asignar Mainor Castro | H115: No | I115: 44
A116: 2018-07-07 | B116: 692 | C116: 110 | D116: Por favor modernizar instalaciones del gimnasio. Como pueden ver, todo fue calificado como excelente pero las maquinas del gimnasio no estan acordes con la calidad del hotel. | E116: Asignar Mainor Castro | H116: No | I116: 44
A117: 2018-07-09 | B117: 703 | C117: 401 | D117: Promover actividades para adolescentes donde se reúnan, compartan y se conozcan. | E117: Asignar Mainor Castro | H117: No | I117: 44
A118: 2018-07-12 | B118: 709 | C118: 302 | D118: Renovar la recepción que es anticuada, fea y no va acorde con el hotel. | E118: Asignar Mainor Castro | H118: No | I118: 44
A119: 2018-07-12 | B119: 710 | C119: 302 | D119: Colocar rotulación llamativa o colorida que indique por ejemplo cual es el Souvenir, cual es el Tour Operador, cual es Servicio al cliente, cual es la recepción, etc. | E119: Asignar Mainor Castro | H119: No | I119: 44
A120: 2018-07-13 | B120: 717 | C120: 904 | D120: Huéspedes muy molestos por transfer contratado con nosotros que no llegó a recogerlos a la hora y el día acordado, por lo que los huéspedes pagaron una transfer privado hasta el hotel. | E120: Asignar Mainor Castro | H120: No | I120: 44
A121: 2018-07-22 | B121: 736 | C121: Grupo Patty Searcy | D121: Señoras se quejan de la oscuridad y peligro que existe cuando los huéspedes caminan de noche por el hotel, una de las señoras del grupo sufrió una caída doblandose uno de sus tobillos y cayendo estrepitosamente en unos de los caños, el problema que ellas me indican es el desnivel que existe entre el pavimento y el caño. La caída se dió por las habitaciones 501-502 donde se confirma que la visibilidad es casi nula y no es posible apreciar el desnivel que causó caída. | E121: Asignar Mainor Castro | H121: No | I121: 44
A122: 2018-07-22 | B122: 738 | C122: 209-210 | D122: fuerte reclamo de su parte por el hecho de que se les dieron habitaciones diferentes a las que se les prometió cuando reservaron. Cuando se les realizó el check-in los huéspedes daban por hecho que se les iban a otorgar las habitaciones 311 y 312 debido a que en frente de estas habitaciones hay jardines y zonas verdes que básicamente a lo que nos dicen fue por esa la razón principal de su visita. A la hora de abordar la queja, a la señora se le explica que las habitaciones 209-210 tienen exactamente las mismas características ( Puertas Conectadas, 1 cama King y 2 camas Queen), sin embargo ella muy decepcionada y molesta nos insiste en un explicación del porque se le está entregando algo diferente si eso no fue lo acordado. Por más que se le intentó explicar la similitud de las habitaciones ella solicitó hablar con los encargados de las reservas, pero esto no fue posible debido a que no se encontraban. Les expliqué que no podríamos cumplir su solicitud ni hoy ni mañana porque no podíamos sacar a los huéspedes de las habitaciones 311-312 y que estos salían hasta el día 24/07/2018. La opción más viable fue compensarles con la cena carta paquete cortesía. Quisiera resaltar que fue necesario hablar con ellos en dos ocasiones frente a frente y una por teléfono para poder llegar a un acuerdo y que aceptaran la compensación. Me di a la tarea de ofrecerles las disculpas porque no se pudo cumplir lo que solicitaron e indiqué que nos hacíamos responsables de la situación y que esperábamos pudieran pasar una muy buena estadía . | E122: Asignar Mainor Castro | H122: No | I122: 44
A123: 2018-07-04 | B123: 756 | D123: . Además ojala y pudieran brindar juegos para la habitación o algo para que se entretengan los niños. | E123: Asignar Mainor Castro | H123: No | I123: 44
A124: 2018-07-04 | B124: 757 | D124: EN el desayuno vimos varias moscas sobre los alimentos, incluso habían 2 ahogadas en el yogurt por lo que evitamos esos alimentos | E124: Asignar Mainor Castro | H124: No | I124: 44
A125: 2018-08-01 | B125: 780 | C125: 109 | D125: Porciones ridiculamente pequeñas y el sushi estaba mediocre, mas arroz que pescado. | E125: Asignar Mainor Castro | H125: No | I125: 44
A126: 2018-08-01 | B126: 781 | D126: El hotel parece estar expandiendose y sino estas en algún tour es sumamente molesto el ruido de la construcción mientras estas en la habitación | E126: Asignar Mainor Castro | H126: No | I126: 44
A127: 2018-08-05 | B127: 786 | C127: 110 | D127: Teléfono no sirve | E127: Asignar Mainor Castro | H127: No | I127: 44
A128: 2018-08-05 | B128: 787 | C128: 106 | D128: Teléfono no sirve | E128: Asignar Mainor Castro | H128: No | I128: 44
A129: 2018-08-05 | B129: 788 | C129: 706 | D129: Teléfono no sirve | E129: Asignar Mainor Castro | H129: No | I129: 44
A130: 2018-08-05 | B130: 789 | C130: 101 | D130: Teléfono no sirve | E130: Asignar Mainor Castro | H130: No | I130: 44
A131: 2018-08-05 | B131: 790 | C131: 102 | D131: Teléfono no sirve | E131: Asignar Mainor Castro | H131: No | I131: 44
A132: 2018-08-05 | B132: 791 | C132: 202 | D132: Teléfono no sirve | E132: Asignar Mainor Castro | H132: No | I132: 44
A133: 2018-08-05 | B133: 792 | C133: 108 | D133: Teléfono no sirve | E133: Asignar Mainor Castro | H133: No | I133: 44
A134: 2018-08-19 | B134: 823 | D134: Sería bueno colocar una grada entre la piscina de agua termal de bar las iguana y que lleve al jacuzzi | E134: Asignar Mainor Castro | H134: No | I134: 44
A135: 2018-08-20 | B135: 828 | C135: 105 | D135: Un mejor rotulo en la carretera que muestre bien la dirección del Hotel | E135: Asignar Mainor Castro | H135: No | I135: 44
A136: 2018-08-15 | B136: 829 | C136: 102 | D136: Teléfono no sirve | E136: Asignar Mainor Castro | H136: No | I136: 44
A137: 2018-08-16 | B137: 830 | C137: 110 | D137: Teléfono no sirve | E137: Asignar Mainor Castro | H137: No | I137: 44
A138: 2018-08-16 | B138: 831 | C138: 205-206 | D138: Teléfonos no funcionan | E138: Asignar Mainor Castro | H138: No | I138: 44
A139: 2018-08-16 | B139: 832 | C139: 102 | D139: Teléfono no funciona | E139: Asignar Mainor Castro | H139: No | I139: 44
A140: 2018-08-16 | B140: 834 | C140: 306 | D140: No se podía transferir llamadas de recepción a la hab, huésped tenía una emergencia y estaba molesto por mal funcionamiento e ineficiencia de los teléfonos del hotel. | E140: Asignar Mainor Castro | H140: No | I140: 44
A141: 2018-08-21 | B141: 842 | C141: 506 | D141: El área de recepción es más para restaurantes que para ser utilizada como lobby. NO hay suficiente campo para que las familias se sienten a esperar y cuando llueve no hay donde ponerse. | E141: Asignar Mainor Castro | H141: No | I141: 44
A143: 2018-07-19 | B143: 733 | C143: 705 | D143: Huésped no pudo dormir durante dos horas a partir de las 3 am, debido a que se había ido la electricidad y el generador producía mucho ruido. | E143: Asignar Jairo Garcia | H143: No | I143: 43
A144: 2018-07-27 | B144: 746 | C144: 801 | D144: también que existe un gran espacio entre el marco y la puerta misma que permite ingresar mosquitos y demás insectos | E144: Asignar Jairo Garcia | H144: No | I144: 43
A145: 2018-07-27 | B145: 753 | C145: 112 | D145: Limpieza en términos de insectos debe mejorar con algún spray en el closet o baño para eliminar insectos. | E145: Asignar Jairo Garcia | H145: No | I145: 43
A146: 2018-07-29 | B146: 761 | C146: 604 | D146: No había agua caliente y el control deo aire no funcionó. | E146: Asignar Jairo Garcia | H146: No | I146: 43
A147: 2018-08-03 | B147: 778 | C147: 201-202 | D147: Ruidos extraños en el techo ( pájaros o ratas) que nos mantuvo despiertos en la noche. | E147: Asignar Jairo Garcia | H147: No | I147: 43
A148: 2018-08-15 | B148: 821 | C148: 414-415 | D148: Huéspedes se quejan porque la temperatura del agua en las habitaciones no es caliente lo suficiente, además indican que el jacuzzi al momento de llenarse no aguanta la presión del agua y al parecer el tapon se safa y se comienza a drenar el agua. | E148: Asignar Jairo Garcia | H148: No | I148: 43
A150: 2018-07-05 | B150: 689 | C150: 602 | D150: El espejo del baño debe ser mas grande ya que no me gusta sentarme en el sanitario para mirarme en el espejo. | E150: Asignar Iván Ramírez | H150: No | I150: 42
A151: 2018-07-07 | B151: 691 | C151: 505 | D151: Espejo frente al inodoro es raro y además las sabanas no son cómodas. | E151: Asignar Iván Ramírez | H151: No | I151: 42
A152: 2018-07-09 | B152: 695 | C152: 306 | D152: Huésped se queja de la hoja de evaluación que se deja en las habitaciones para que los huéspedes la llenen antes de irse, el mismo indica que tiene errores gramaticales tanto en Inglés como en Alemán y que eso es mal visto ya que el hotel debería de ser profesional en ese aspecto. | E152: Asignar Iván Ramírez | H152: No | I152: 42
A154: 2018-08-15 | B154: 820 | C154: 405 | D154: Huésped se queja que en la lista de canales se muestra el canal italiano sin embargo a la hora de buscarlo no está, pide que actualicen la lista de canales ya que están brindando información falsa y engañosa. | E154: Asignar Greivin Arredondo | H154: No | I154: 41
A155: 2018-08-18 | B155: 824 | C155: 506 | D155: Muchas moscas en el desayuno | E155: Asignar Greivin Arredondo | H155: No | I155: 41
A157: 2018-06-07 | B157: 612 | C157: 610 | D157: Las porciones de comida no están acorde con el precio | E157: Asignar Diego Cambronero | H157: No | I157: 40
A158: 2018-06-11 | B158: 621 | D158: Más comida tradicional de Costa Rica en los menú, ya que cuando estuvimos hospedados solo estaba abierto el restaurante italiano y japones. | E158: Asignar Diego Cambronero | H158: No | I158: 40
A159: 2018-06-17 | B159: 637 | C159: 403 | D159: Huésped se queja de que a la hora de reservar en el hotel acordó una cena romántica especial cual le vendieron y prometieron y no se cumplió, el señor estaba bastante molesto porque pagó más de 100 dólares por la cena y el menú que le brindaron era el mismo menú que se le ofrece a todos los clientes, el señor argumenta que no hay nada especial en lo que se le ofreció y lo que le molesta es que le hayan mentido, el mismo prefirió que se le reintegrara el dinero y que iba a pagar lo que consumiera como otro huésped más común y corriente. | E159: Asignar Diego Cambronero | H159: No | I159: 40
A160: 2018-06-27 | B160: 656 | C160: 301 | D160: Menú para niños | E160: Asignar Diego Cambronero | H160: No | I160: 40
A161: 2018-06-28 | B161: 661 | C161: 105 | D161: Precios sumamente caros en las comidas, deberían poner un transporte a la fortuna donde se pueda ir y comer y que ofrezcan precios razonables | E161: Asignar Diego Cambronero | H161: No | I161: 40
A162: 2018-06-16 | B162: 666 | D162: Cenas y bar de la piscina con precios muy elevados. | E162: Asignar Diego Cambronero | H162: No | I162: 40
A163: 2018-06-19 | B163: 667 | D163: El costo de las comidas es muy caro y es mejor ir a alguna soda en el pueblo. | E163: Asignar Diego Cambronero | H163: No | I163: 40
A164: 2018-07-01 | B164: 668 | D164: Muy decepcionados con la cena, precios muy caros y calidad de la comida no es equivalente a los que cobran en comparación con otros hoteles de la zona. | E164: Asignar Diego Cambronero | H164: No | I164: 40
A165: 2018-07-02 | B165: 670 | D165: Cena muy limitada y con precio elevado. | E165: Asignar Diego Cambronero | H165: No | I165: 40
A166: 2018-06-29 | B166: 672 | C166: 411 | D166: Mejor selección en calidad de las comidas. | E166: Asignar Diego Cambronero | H166: No | I166: 40
A167: 2018-07-03 | B167: 679 | D167: Precios de la cena muy elevados | E167: Asignar Diego Cambronero | H167: No | I167: 40
A168: 2018-07-13 | B168: 716 | C168: 406 | D168: NO hay variedad en menú para niños. | E168: Asignar Diego Cambronero | H168: No | I168: 40
A169: 2018-07-27 | B169: 748 | C169: 801 | D169: Poner precios mas bajos en los restaurantes ya que son muy caros. | E169: Asignar Diego Cambronero | H169: No | I169: 40
A170: 2018-07-01 | B170: 754 | D170: Como otros comentarios de otros huéspedes también terminamos decepcionados de la cena, los precios son demasiado elevados y la calidad de la comida en relación a otros hoteles quedó debiendo | E170: Asignar Diego Cambronero | H170: No | I170: 40
A171: 2018-07-02 | B171: 755 | D171: la selección de los alimentos en el desayuno es pobre, mi esposo quería salchicha o tocino y no fue posible. Además las cenas son muy caras y las porciones muy pequeñas. | E171: Asignar Diego Cambronero | H171: No | I171: 40
A172: 2018-07-17 | B172: 759 | D172: El restaurante principal de la cena en sí es bastante caro y nada especial. No había nada de malo en ello, pero nos habíamos acostumbrado a grandes porciones de Costa Rica, y nuestra cena aquí era mucho más pequeña y no estuvo a la altura de la comida que tuvimos en otro lugar en nuestro viaje. | E172: Asignar Diego Cambronero | H172: No | I172: 40
A173: 2018-07-26 | B173: 760 | D173: La comida del restaurante italiano fue deficiente | E173: Asignar Diego Cambronero | H173: No | I173: 40
A174: 2018-07-30 | B174: 762 | C174: 303 | D174: Precios muy elevados en las comidas. | E174: Asignar Diego Cambronero | H174: No | I174: 40
A175: 2018-08-02 | B175: 770 | C175: 204 | D175: Huéspedes se quejan de los precios, reclaman mejores precios. | E175: Asignar Diego Cambronero | H175: No | I175: 40
A176: 2018-08-02 | B176: 771 | C176: 801 | D176: Huéspedes se quejan que las porciones del restaurante italiano son pequeñas y muy caras. | E176: Asignar Diego Cambronero | H176: No | I176: 40
A177: 2018-08-04 | B177: 773 | C177: 401 | D177: La comida en el Italiano muy cara. | E177: Asignar Diego Cambronero | H177: No | I177: 40
A178: 2018-08-04 | B178: 774 | C178: 512 | D178: Más opciones libres de glutten son muy necesarias | E178: Asignar Diego Cambronero | H178: No | I178: 40
A179: 2018-08-04 | B179: 775 | C179: 511 | D179: Variedad limitada en opciones de glutten, problemas con inocuidad. | E179: Asignar Diego Cambronero | H179: No | I179: 40
A180: 2018-08-02 | B180: 779 | C180: 609-610 | D180: Bastante caro el Italiano. | E180: Asignar Diego Cambronero | H180: No | I180: 40
A181: 2018-08-02 | B181: 782 | D181: Precios del restaurante y de los bares muy elevados | E181: Asignar Diego Cambronero | H181: No | I181: 40
A182: 2018-08-04 | B182: 784 | D182: Se queja de la comida de los restaurantes los cuales fueron una estafa, muy baja calidad en las comidas. La pizza fue la peor que ha comido, muy mala. Además precios sumamente caros por nada especial a cambio. | E182: Asignar Diego Cambronero | H182: No | I182: 40
A183: 2018-08-03 | B183: 796 | C183: 210 | D183: Precios elevados. | E183: Asignar Diego Cambronero | H183: No | I183: 40
A184: 2018-08-03 | B184: 797 | C184: 210 | D184: Sería muy bueno tener menus en la habitación. | E184: Asignar Diego Cambronero | H184: No | I184: 40
A185: 2018-08-07 | B185: 800 | C185: 508 | D185: Cambien los menus en ambos restaurantes | E185: Asignar Diego Cambronero | H185: No | I185: 40
A186: 2018-08-19 | B186: 826 | C186: 301 | D186: Servicio muy lento | E186: Asignar Diego Cambronero | H186: No | I186: 40
A187: 2018-08-20 | B187: 827 | C187: 504 | D187: Se puede mejorar el desayuno | E187: Asignar Diego Cambronero | H187: No | I187: 40
A188: 2018-08-13 | B188: 836 | C188: 101 | D188: Los restaurantes son muy caros y la comida mas o menos. | E188: Asignar Diego Cambronero | H188: No | I188: 40
A189: 2018-08-17 | B189: 837 | D189: La comida italiana esta sobrevalorada y sin buen sabor, además las porciones son muy pequeñas. | E189: Asignar Diego Cambronero | H189: No | I189: 40
A190: 2018-08-17 | B190: 839 | D190: Las bebidas y comida en la piscina son muy caras. | E190: Asignar Diego Cambronero | H190: No | I190: 40
A191: 2018-08-21 | B191: 843 | C191: 604 | D191: Deberian tener mejores opciones vegetarianas y harinas integrales | E191: Asignar Diego Cambronero | H191: No | I191: 40
A193: 2018-06-11 | B193: 622 | C193: 202 | D193: El shampoo podría ser mejor | E193: Asignar Dariel Miranda | H193: No | I193: 39
A194: 2018-06-30 | B194: 671 | C194: 203 | D194: La refrigeradora hace mucho ruido | E194: Asignar Dariel Miranda | H194: No | I194: 39
A195: 2018-08-17 | B195: 840 | D195: Los precios de lavandería son una broma. Preferí llevar mi ropa a lavar a la Fortuna. | E195: Asignar Dariel Miranda | H195: No | I195: 39
A196: 2018-08-21 | B196: 841 | C196: 506 | D196: EL hotel está pensado solo para adultos. NO hay areas infantiles ni salas de juego donde ellos puedan despejarse y divertirse. | E196: Asignar Dariel Miranda | H196: No | I196: 39
A198: 2018-06-09 | B198: 615 | C198: 509 | D198: El wifi no funciona bien | E198: Asignar Arnaldo Moreira | H198: No | I198: 38
A199: 2018-06-09 | B199: 617 | C199: 510 | D199: El wifi o es muy lento o no funciona en la habitación | E199: Asignar Arnaldo Moreira | H199: No | I199: 38
A200: 2018-06-14 | B200: 626 | C200: 303 | D200: Huésped se queja que su teléfono no conecta a internet de ninguna manera. | E200: Asignar Arnaldo Moreira | H200: No | I200: 38
A201: 2018-06-17 | B201: 636 | C201: 503 | D201: Huésped se queja que el internet le funciona en la hab 503 pero en la de la par no le sirve del todo lo cual le parece bastante extraño. | E201: Asignar Arnaldo Moreira | H201: No | I201: 38
A202: 2018-06-20 | B202: 644 | C202: 502 | D202: Huésped muy decepcionado del servicio de Internet que le ofrecemos, el mismo no puede utilizar un celular que usa para negocios ya que a pesar de que le sale conectado no es posible hacer uso del internet. | E202: Asignar Arnaldo Moreira | H202: No | I202: 38
A203: 2018-07-05 | B203: 687 | C203: 902 | D203: Mejorar el internet | E203: Asignar Arnaldo Moreira | H203: No | I203: 38
A204: 2018-07-11 | B204: 707 | C204: 309 | D204: Huéspedes se quejan de las computadoras del lobby las cuales no les funciona la unidad de CD-Room y no fue posible leer un disco de fotos que necesitaban compartir entre ellos. | E204: Asignar Arnaldo Moreira | H204: No | I204: 38
A205: 2018-07-28 | B205: 749 | C205: 307 | D205: Internet no funcionó bien en la habitación. | E205: Asignar Arnaldo Moreira | H205: No | I205: 38
A206: 2018-07-28 | B206: 750 | C206: 308 | D206: La conexión a Internet debería ser mejor y más estable. Conexión buena es lo que falta | E206: Asignar Arnaldo Moreira | H206: No | I206: 38
A207: 2018-08-05 | B207: 795 | C207: 307 | D207: Mejorar el Wi-fi ya que es muy inconsistente | E207: Asignar Arnaldo Moreira | H207: No | I207: 38
A208: 2018-08-19 | B208: 822 | C208: 703 | D208: Mejorar wifi en la habitación | E208: Asignar Arnaldo Moreira | H208: No | I208: 38
A209: 2018-08-20 | B209: 835 | C209: 802 | D209: Huésped se queja del Internet y de la lentitud del mismo. | E209: Asignar Arnaldo Moreira | H209: No | I209: 38
A211: 2018-06-09 | B211: 615 | C211: 509 | D211: El wifi no funciona bien | E211: Asignar Arnaldo Moreira | H211: No | I211: 37
A212: 2018-06-09 | B212: 617 | C212: 510 | D212: El wifi o es muy lento o no funciona en la habitación | E212: Asignar Arnaldo Moreira | H212: No | I212: 37
A213: 2018-06-14 | B213: 626 | C213: 303 | D213: Huésped se queja que su teléfono no conecta a internet de ninguna manera. | E213: Asignar Arnaldo Moreira | H213: No | I213: 37
... 125 more rows

Sheet Base Datos
A1: Designación | B1: Valoración | C1: Seguimiento Comité | D1: Sugerencia / Queja | E1: Payaso
A2: Asignar Arnaldo Moreira | B2: Roja | C2: Si | D2: Queja | E2: A/C
A3: Asignar Dariel Miranda | B3: Amarilla | C3: No | D3: Sugerencia | E3: Acera para transitar
A4: Asignar Dayana Miranda | B4: Verde | D4: N/A | E4: Actividad nocturna
A5: Asignar Diego Cambronero | B5: Desestimada | E5: Agua caliente
A6: Asignar Estibaliz Aguilar | E6: Agua llovida italiano
A7: Asignar Gilberth Mejías | E7: Agua potable
A8: Asignar Greivin Arredondo | E8: Alarmas
A9: Asignar Iván Ramírez | E9: Alfombra en escaleras
A10: Asignar Jairo Garcia | E10: Amenidades
A11: Asignar Mainor Castro | E11: Área para niños
A12: Asignar Roberto Escoto | E12: Aseo en habitación
A13: Asignar Randall Salazar | E13: Baño resbalozo
A14: Asignar Mario Lezama | E14: Basurero baño
A15: Asignar Miguel Múnera | E15: Basurero jardines
A16: Asignar Yeimy Miranda | E16: Batas de baño
E17: Brazaletes
E18: Cable tica
E19: Calida Desayuno
E20: Calidad comida
E21: Calidad precio
E22: Calidad Sushi
E23: Camas altas
E24: Central telefonica
E25: Clases de yoga
E26: Cockteles bares
E27: Colchon duro
E28: Comidas snacks
E29: Computadoras de recepción
E30: Construcción
E31: Datafonos
E32: Desestimado
E33: Encuentas de satisfacción
E34: Entretenimiento
E35: Espejo Grande
E36: Etiquetas en apagadores
E37: Falta de comunicación
E38: Fujas de agua
E39: Gimnasio
E40: Goteras
E41: Grupos estudiantes
E42: Habitaciones
E43: Higiene en restaurante
E44: Hojas de evaluación
E45: Iluminación hab closet
E46: Información duchas
E47: Jacuzzi
E48: Lampara de lectura
E49: Lavanderia
E50: Limpieza en habitación
E51: Lobby
E52: Lockers
E53: Mal olor habitación
E54: Malos olores
E55: Maquina de hielo
E56: Menú Celiacos
E57: Menú niños
E58: Menú room service
E59: Menú típico
E60: Menú vegetariano
E61: Minibar habitaciones
E62: Musica restaurantes
E63: N/A
E64: Objetos en la comida
E65: Piscinas
E66: Piscinas
E67: Piso resbaloso
E68: Plagas en restaurante
E69: Plagas Habitaciones
E70: Plato de frutas
E71: Precios Souvenir
E72: Proceso de reservas
E73: Publicidad Web
E74: Puerta de baño
E75: Puerta de habitación
E76: Reciclaje
E77: Refrigerio nocturno
E78: Restaurante
E79: Robo en habitaciones
E80: Room service
E81: Rotulación Carretera
E82: Rotulación cena
E83: Rotulación Jacuzzi
E84: Rotulación ventilador
E85: Ruido generadores
E86: Ruido habitación
E87: Ruido sistema solar
E88: Sala de juegos
E89: Señalización
E90: Servicio al cliente
E91: Servicio cliente bar humedo
E92: Servicio cliente botones
E93: Servicio cliente cocina
E94: Servicio cliente mucamas
E95: Servicio cliente recepción
E96: Servicio cliente restaurante
E97: Servicio cliente spa
E98: Servicio cliente sushi
E99: Silla en habitación
E100: Sombrillas
E101: Spa
E102: Tardanza en entrega de habitación
E103: Teléfonos
E104: Transfer
E105: Variedad desayuno
E106: Vistas de huespedes
E107: Wifi
E108: Publicidad doc Informativo
E109: Precios vino
E110: Variedad platos
E111: Precios Lavanderia
E112: Sillas Discapacitados

Sheet Hoja1
E2: =SUBTOTAL(9,Tabla1[información]) -> 4012
B3: Fecha | C3: # Queja | D3: Payaso | E3: Resulto | I3: Payaso | J3: Cantidad
B4: =IF(Quejas_para_filtro[[#This Row],['# Queja]]=0,"-",VLOOKUP(Quejas_para_filtro[[#This Row],['# Queja]],Regitro_de_Quejas[],2,FALSE)) -> 2018-04-18 | C4: ='Registro de quejas (2)'!A3 -> 424 | D4: =IF(Quejas_para_filtro[[#This Row],['# Queja]]>0,VLOOKUP(Quejas_para_filtro[[#This Row],['# Queja]],Regitro_de_Quejas[],23,FALSE),0) -> Plagas Habitaciones | E4: ='Registro de quejas (2)'!U3 -> Si | I4: Payaso | J4: Cantidad
B5: =IF(Quejas_para_filtro[[#This Row],['# Queja]]=0,"-",VLOOKUP(Quejas_para_filtro[[#This Row],['# Queja]],Regitro_de_Quejas[],2,FALSE)) -> 2018-04-18 | C5: ='Registro de quejas (2)'!A4 -> 425 | D5: =IF(Quejas_para_filtro[[#This Row],['# Queja]]>0,VLOOKUP(Quejas_para_filtro[[#This Row],['# Queja]],Regitro_de_Quejas[],23,FALSE),0) -> Espejo Grande | E5: ='Registro de quejas (2)'!U4 -> Si | I5: ='Base Datos'!E2 -> A/C | J5: =COUNTIF(Regitro_de_Quejas[],I5) -> 9
B6: =IF(Quejas_para_filtro[[#This Row],['# Queja]]=0,"-",VLOOKUP(Quejas_para_filtro[[#This Row],['# Queja]],Regitro_de_Quejas[],2,FALSE)) -> 2018-04-18 | C6: ='Registro de quejas (2)'!A5 -> 426 | D6: =IF(Quejas_para_filtro[[#This Row],['# Queja]]>0,VLOOKUP(Quejas_para_filtro[[#This Row],['# Queja]],Regitro_de_Quejas[],23,FALSE),0) -> Servicio cliente bar humedo | E6: ='Registro de quejas (2)'!U5 -> Si | I6: ='Base Datos'!E3 -> Acera para transitar | J6: =COUNTIF(Quejas_para_filtro[],I6) -> 2
B7: =IF(Quejas_para_filtro[[#This Row],['# Queja]]=0,"-",VLOOKUP(Quejas_para_filtro[[#This Row],['# Queja]],Regitro_de_Quejas[],2,FALSE)) -> 2018-04-17 | C7: ='Registro de quejas (2)'!A6 -> 427 | D7: =IF(Quejas_para_filtro[[#This Row],['# Queja]]>0,VLOOKUP(Quejas_para_filtro[[#This Row],['# Queja]],Regitro_de_Quejas[],23,FALSE),0) -> Menú Celiacos | E7: ='Registro de quejas (2)'!U6 -> Si | I7: ='Base Datos'!E4 -> Actividad nocturna | J7: =COUNTIF(Quejas_para_filtro[],I7) -> 0
B8: =IF(Quejas_para_filtro[[#This Row],['# Queja]]=0,"-",VLOOKUP(Quejas_para_filtro[[#This Row],['# Queja]],Regitro_de_Quejas[],2,FALSE)) -> 2018-04-18 | C8: ='Registro de quejas (2)'!A7 -> 428 | D8: =IF(Quejas_para_filtro[[#This Row],['# Queja]]>0,VLOOKUP(Quejas_para_filtro[[#This Row],['# Queja]],Regitro_de_Quejas[],23,FALSE),0) -> Plagas Habitaciones | E8: ='Registro de quejas (2)'!U7 -> Si | I8: ='Base Datos'!E5 -> Agua caliente | J8: =COUNTIF(Quejas_para_filtro[],I8) -> 11
B9: =IF(Quejas_para_filtro[[#This Row],['# Queja]]=0,"-",VLOOKUP(Quejas_para_filtro[[#This Row],['# Queja]],Regitro_de_Quejas[],2,FALSE)) -> 2018-04-19 | C9: ='Registro de quejas (2)'!A8 -> 429 | D9: =IF(Quejas_para_filtro[[#This Row],['# Queja]]>0,VLOOKUP(Quejas_para_filtro[[#This Row],['# Queja]],Regitro_de_Quejas[],23,FALSE),0) -> Mal olor habitación | E9: ='Registro de quejas (2)'!U8 -> Si | I9: ='Base Datos'!E6 -> Agua llovida italiano | J9: =COUNTIF(Quejas_para_filtro[],I9) -> 1
B10: =IF(Quejas_para_filtro[[#This Row],['# Queja]]=0,"-",VLOOKUP(Quejas_para_filtro[[#This Row],['# Queja]],Regitro_de_Quejas[],2,FALSE)) -> 2018-04-19 | C10: ='Registro de quejas (2)'!A9 -> 430 | D10: =IF(Quejas_para_filtro[[#This Row],['# Queja]]>0,VLOOKUP(Quejas_para_filtro[[#This Row],['# Queja]],Regitro_de_Quejas[],23,FALSE),0) -> Silla en habitación | E10: ='Registro de quejas (2)'!U9 -> Si | I10: ='Base Datos'!E7 -> Agua potable | J10: =COUNTIF(Quejas_para_filtro[],I10) -> 1
B11: =IF(Quejas_para_filtro[[#This Row],['# Queja]]=0,"-",VLOOKUP(Quejas_para_filtro[[#This Row],['# Queja]],Regitro_de_Quejas[],2,FALSE)) -> 2018-04-20 | C11: ='Registro de quejas (2)'!A10 -> 431 | D11: =IF(Quejas_para_filtro[[#This Row],['# Queja]]>0,VLOOKUP(Quejas_para_filtro[[#This Row],['# Queja]],Regitro_de_Quejas[],23,FALSE),0) -> Servicio cliente botones | E11: ='Registro de quejas (2)'!U10 -> Si | I11: ='Base Datos'!E8 -> Alarmas | J11: =COUNTIF(Quejas_para_filtro[],I11) -> 5
B12: =IF(Quejas_para_filtro[[#This Row],['# Queja]]=0,"-",VLOOKUP(Quejas_para_filtro[[#This Row],['# Queja]],Regitro_de_Quejas[],2,FALSE)) -> 2018-04-20 | C12: ='Registro de quejas (2)'!A11 -> 432 | D12: =IF(Quejas_para_filtro[[#This Row],['# Queja]]>0,VLOOKUP(Quejas_para_filtro[[#This Row],['# Queja]],Regitro_de_Quejas[],23,FALSE),0) -> Plagas Habitaciones | E12: ='Registro de quejas (2)'!U11 -> Si | I12: ='Base Datos'!E9 -> Alfombra en escaleras | J12: =COUNTIF(Quejas_para_filtro[],I12) -> 1
B13: =IF(Quejas_para_filtro[[#This Row],['# Queja]]=0,"-",VLOOKUP(Quejas_para_filtro[[#This Row],['# Queja]],Regitro_de_Quejas[],2,FALSE)) -> 2018-04-20 | C13: ='Registro de quejas (2)'!A12 -> 433 | D13: =IF(Quejas_para_filtro[[#This Row],['# Queja]]>0,VLOOKUP(Quejas_para_filtro[[#This Row],['# Queja]],Regitro_de_Quejas[],23,FALSE),0) -> Plagas Habitaciones | E13: ='Registro de quejas (2)'!U12 -> Si | I13: ='Base Datos'!E10 -> Amenidades | J13: =COUNTIF(Quejas_para_filtro[],I13) -> 1
B14: =IF(Quejas_para_filtro[[#This Row],['# Queja]]=0,"-",VLOOKUP(Quejas_para_filtro[[#This Row],['# Queja]],Regitro_de_Quejas[],2,FALSE)) -> 2018-04-20 | C14: ='Registro de quejas (2)'!A13 -> 434 | D14: =IF(Quejas_para_filtro[[#This Row],['# Queja]]>0,VLOOKUP(Quejas_para_filtro[[#This Row],['# Queja]],Regitro_de_Quejas[],23,FALSE),0) -> Sombrillas | E14: ='Registro de quejas (2)'!U13 -> Si | I14: ='Base Datos'!E11 -> Área para niños | J14: =COUNTIF(Quejas_para_filtro[],I14) -> 3
B15: =IF(Quejas_para_filtro[[#This Row],['# Queja]]=0,"-",VLOOKUP(Quejas_para_filtro[[#This Row],['# Queja]],Regitro_de_Quejas[],2,FALSE)) -> 2018-04-21 | C15: ='Registro de quejas (2)'!A14 -> 435 | D15: =IF(Quejas_para_filtro[[#This Row],['# Queja]]>0,VLOOKUP(Quejas_para_filtro[[#This Row],['# Queja]],Regitro_de_Quejas[],23,FALSE),0) -> Puerta de baño | E15: ='Registro de quejas (2)'!U14 -> Si | I15: ='Base Datos'!E12 -> Aseo en habitación | J15: =COUNTIF(Quejas_para_filtro[],I15) -> 1
B16: =IF(Quejas_para_filtro[[#This Row],['# Queja]]=0,"-",VLOOKUP(Quejas_para_filtro[[#This Row],['# Queja]],Regitro_de_Quejas[],2,FALSE)) -> 2018-04-21 | C16: ='Registro de quejas (2)'!A15 -> 436 | D16: =IF(Quejas_para_filtro[[#This Row],['# Queja]]>0,VLOOKUP(Quejas_para_filtro[[#This Row],['# Queja]],Regitro_de_Quejas[],23,FALSE),0) -> Mal olor habitación | E16: ='Registro de quejas (2)'!U15 -> Si | I16: ='Base Datos'!E13 -> Baño resbalozo | J16: =COUNTIF(Quejas_para_filtro[],I16) -> 1
B17: =IF(Quejas_para_filtro[[#This Row],['# Queja]]=0,"-",VLOOKUP(Quejas_para_filtro[[#This Row],['# Queja]],Regitro_de_Quejas[],2,FALSE)) -> 2018-04-21 | C17: ='Registro de quejas (2)'!A16 -> 437 | D17: =IF(Quejas_para_filtro[[#This Row],['# Queja]]>0,VLOOKUP(Quejas_para_filtro[[#This Row],['# Queja]],Regitro_de_Quejas[],23,FALSE),0) -> Silla en habitación | E17: ='Registro de quejas (2)'!U16 -> Si | I17: ='Base Datos'!E14 -> Basurero baño | J17: =COUNTIF(Quejas_para_filtro[],I17) -> 1
B18: =IF(Quejas_para_filtro[[#This Row],['# Queja]]=0,"-",VLOOKUP(Quejas_para_filtro[[#This Row],['# Queja]],Regitro_de_Quejas[],2,FALSE)) -> 2018-04-21 | C18: ='Registro de quejas (2)'!A17 -> 438 | D18: =IF(Quejas_para_filtro[[#This Row],['# Queja]]>0,VLOOKUP(Quejas_para_filtro[[#This Row],['# Queja]],Regitro_de_Quejas[],23,FALSE),0) -> Lampara de lectura | E18: ='Registro de quejas (2)'!U17 -> Si | I18: ='Base Datos'!E15 -> Basurero jardines | J18: =COUNTIF(Quejas_para_filtro[],I18) -> 2
B19: =IF(Quejas_para_filtro[[#This Row],['# Queja]]=0,"-",VLOOKUP(Quejas_para_filtro[[#This Row],['# Queja]],Regitro_de_Quejas[],2,FALSE)) -> 2018-04-21 | C19: ='Registro de quejas (2)'!A18 -> 439 | D19: =IF(Quejas_para_filtro[[#This Row],['# Queja]]>0,VLOOKUP(Quejas_para_filtro[[#This Row],['# Queja]],Regitro_de_Quejas[],23,FALSE),0) -> Información duchas | E19: ='Registro de quejas (2)'!U18 -> Si | I19: ='Base Datos'!E16 -> Batas de baño | J19: =COUNTIF(Quejas_para_filtro[],I19) -> 1
B20: =IF(Quejas_para_filtro[[#This Row],['# Queja]]=0,"-",VLOOKUP(Quejas_para_filtro[[#This Row],['# Queja]],Regitro_de_Quejas[],2,FALSE)) -> 2018-04-21 | C20: ='Registro de quejas (2)'!A19 -> 440 | D20: =IF(Quejas_para_filtro[[#This Row],['# Queja]]>0,VLOOKUP(Quejas_para_filtro[[#This Row],['# Queja]],Regitro_de_Quejas[],23,FALSE),0) -> 0 | E20: ='Registro de quejas (2)'!U19 -> Si | I20: ='Base Datos'!E17 -> Brazaletes | J20: =COUNTIF(Quejas_para_filtro[],I20) -> 3
B21: =IF(Quejas_para_filtro[[#This Row],['# Queja]]=0,"-",VLOOKUP(Quejas_para_filtro[[#This Row],['# Queja]],Regitro_de_Quejas[],2,FALSE)) -> 2018-04-21 | C21: ='Registro de quejas (2)'!A20 -> 441 | D21: =IF(Quejas_para_filtro[[#This Row],['# Queja]]>0,VLOOKUP(Quejas_para_filtro[[#This Row],['# Queja]],Regitro_de_Quejas[],23,FALSE),0) -> Rotulación ventilador | E21: ='Registro de quejas (2)'!U20 -> Si | I21: ='Base Datos'!E18 -> Cable tica | J21: =COUNTIF(Quejas_para_filtro[],I21) -> 2
B22: =IF(Quejas_para_filtro[[#This Row],['# Queja]]=0,"-",VLOOKUP(Quejas_para_filtro[[#This Row],['# Queja]],Regitro_de_Quejas[],2,FALSE)) -> 2018-04-22 | C22: ='Registro de quejas (2)'!A21 -> 442 | D22: =IF(Quejas_para_filtro[[#This Row],['# Queja]]>0,VLOOKUP(Quejas_para_filtro[[#This Row],['# Queja]],Regitro_de_Quejas[],23,FALSE),0) -> Servicio cliente botones | E22: ='Registro de quejas (2)'!U21 -> Si | I22: ='Base Datos'!E19 -> Calida Desayuno | J22: =COUNTIF(Quejas_para_filtro[],I22) -> 11
B23: =IF(Quejas_para_filtro[[#This Row],['# Queja]]=0,"-",VLOOKUP(Quejas_para_filtro[[#This Row],['# Queja]],Regitro_de_Quejas[],2,FALSE)) -> 2018-04-21 | C23: ='Registro de quejas (2)'!A22 -> 443 | D23: =IF(Quejas_para_filtro[[#This Row],['# Queja]]>0,VLOOKUP(Quejas_para_filtro[[#This Row],['# Queja]],Regitro_de_Quejas[],23,FALSE),0) -> 0 | E23: ='Registro de quejas (2)'!U22 -> Si | I23: ='Base Datos'!E20 -> Calidad comida | J23: =COUNTIF(Quejas_para_filtro[],I23) -> 69
B24: =IF(Quejas_para_filtro[[#This Row],['# Queja]]=0,"-",VLOOKUP(Quejas_para_filtro[[#This Row],['# Queja]],Regitro_de_Quejas[],2,FALSE)) -> 2018-04-21 | C24: ='Registro de quejas (2)'!A23 -> 444 | D24: =IF(Quejas_para_filtro[[#This Row],['# Queja]]>0,VLOOKUP(Quejas_para_filtro[[#This Row],['# Queja]],Regitro_de_Quejas[],23,FALSE),0) -> Menú vegetariano | E24: ='Registro de quejas (2)'!U23 -> Si | I24: ='Base Datos'!E21 -> Calidad precio | J24: =COUNTIF(Quejas_para_filtro[],I24) -> 6
B25: =IF(Quejas_para_filtro[[#This Row],['# Queja]]=0,"-",VLOOKUP(Quejas_para_filtro[[#This Row],['# Queja]],Regitro_de_Quejas[],2,FALSE)) -> 2018-04-23 | C25: ='Registro de quejas (2)'!A24 -> 445 | D25: =IF(Quejas_para_filtro[[#This Row],['# Queja]]>0,VLOOKUP(Quejas_para_filtro[[#This Row],['# Queja]],Regitro_de_Quejas[],23,FALSE),0) -> Batas de baño | E25: ='Registro de quejas (2)'!U24 -> Si | I25: ='Base Datos'!E22 -> Calidad Sushi | J25: =COUNTIF(Quejas_para_filtro[],I25) -> 5
B26: =IF(Quejas_para_filtro[[#This Row],['# Queja]]=0,"-",VLOOKUP(Quejas_para_filtro[[#This Row],['# Queja]],Regitro_de_Quejas[],2,FALSE)) -> 2018-04-23 | C26: ='Registro de quejas (2)'!A25 -> 446 | D26: =IF(Quejas_para_filtro[[#This Row],['# Queja]]>0,VLOOKUP(Quejas_para_filtro[[#This Row],['# Queja]],Regitro_de_Quejas[],23,FALSE),0) -> Calida Desayuno | E26: ='Registro de quejas (2)'!U25 -> Si | I26: ='Base Datos'!E23 -> Camas altas | J26: =COUNTIF(Quejas_para_filtro[],I26) -> 2
B27: =IF(Quejas_para_filtro[[#This Row],['# Queja]]=0,"-",VLOOKUP(Quejas_para_filtro[[#This Row],['# Queja]],Regitro_de_Quejas[],2,FALSE)) -> 2018-04-22 | C27: ='Registro de quejas (2)'!A26 -> 447 | D27: =IF(Quejas_para_filtro[[#This Row],['# Queja]]>0,VLOOKUP(Quejas_para_filtro[[#This Row],['# Queja]],Regitro_de_Quejas[],23,FALSE),0) -> Limpieza en habitación | E27: ='Registro de quejas (2)'!U26 -> Si | I27: ='Base Datos'!E24 -> Central telefonica | J27: =COUNTIF(Quejas_para_filtro[],I27) -> 12
B28: =IF(Quejas_para_filtro[[#This Row],['# Queja]]=0,"-",VLOOKUP(Quejas_para_filtro[[#This Row],['# Queja]],Regitro_de_Quejas[],2,FALSE)) -> 2018-04-24 | C28: ='Registro de quejas (2)'!A27 -> 448 | D28: =IF(Quejas_para_filtro[[#This Row],['# Queja]]>0,VLOOKUP(Quejas_para_filtro[[#This Row],['# Queja]],Regitro_de_Quejas[],23,FALSE),0) -> Servicio cliente botones | E28: ='Registro de quejas (2)'!U27 -> Si | I28: ='Base Datos'!E25 -> Clases de yoga | J28: =COUNTIF(Quejas_para_filtro[],I28) -> 1
B29: =IF(Quejas_para_filtro[[#This Row],['# Queja]]=0,"-",VLOOKUP(Quejas_para_filtro[[#This Row],['# Queja]],Regitro_de_Quejas[],2,FALSE)) -> 2018-04-24 | C29: ='Registro de quejas (2)'!A28 -> 449 | D29: =IF(Quejas_para_filtro[[#This Row],['# Queja]]>0,VLOOKUP(Quejas_para_filtro[[#This Row],['# Queja]],Regitro_de_Quejas[],23,FALSE),0) -> Grupos estudiantes | E29: ='Registro de quejas (2)'!U28 -> Si | I29: ='Base Datos'!E26 -> Cockteles bares | J29: =COUNTIF(Quejas_para_filtro[],I29) -> 4
B30: =IF(Quejas_para_filtro[[#This Row],['# Queja]]=0,"-",VLOOKUP(Quejas_para_filtro[[#This Row],['# Queja]],Regitro_de_Quejas[],2,FALSE)) -> 2018-04-24 | C30: ='Registro de quejas (2)'!A29 -> 450 | D30: =IF(Quejas_para_filtro[[#This Row],['# Queja]]>0,VLOOKUP(Quejas_para_filtro[[#This Row],['# Queja]],Regitro_de_Quejas[],23,FALSE),0) -> Limpieza en habitación | E30: ='Registro de quejas (2)'!U29 -> Si | I30: ='Base Datos'!E27 -> Colchon duro | J30: =COUNTIF(Quejas_para_filtro[],I30) -> 2
B31: =IF(Quejas_para_filtro[[#This Row],['# Queja]]=0,"-",VLOOKUP(Quejas_para_filtro[[#This Row],['# Queja]],Regitro_de_Quejas[],2,FALSE)) -> 2018-04-24 | C31: ='Registro de quejas (2)'!A30 -> 451 | D31: =IF(Quejas_para_filtro[[#This Row],['# Queja]]>0,VLOOKUP(Quejas_para_filtro[[#This Row],['# Queja]],Regitro_de_Quejas[],23,FALSE),0) -> Sombrillas | E31: ='Registro de quejas (2)'!U30 -> Si | I31: ='Base Datos'!E28 -> Comidas snacks | J31: =COUNTIF(Quejas_para_filtro[],I31) -> 1
B32: =IF(Quejas_para_filtro[[#This Row],['# Queja]]=0,"-",VLOOKUP(Quejas_para_filtro[[#This Row],['# Queja]],Regitro_de_Quejas[],2,FALSE)) -> 2018-04-24 | C32: ='Registro de quejas (2)'!A31 -> 452 | D32: =IF(Quejas_para_filtro[[#This Row],['# Queja]]>0,VLOOKUP(Quejas_para_filtro[[#This Row],['# Queja]],Regitro_de_Quejas[],23,FALSE),0) -> Silla en habitación | E32: ='Registro de quejas (2)'!U31 -> Si | I32: ='Base Datos'!E29 -> Computadoras de recepción | J32: =COUNTIF(Quejas_para_filtro[],I32) -> 1
B33: =IF(Quejas_para_filtro[[#This Row],['# Queja]]=0,"-",VLOOKUP(Quejas_para_filtro[[#This Row],['# Queja]],Regitro_de_Quejas[],2,FALSE)) -> 2018-04-25 | C33: ='Registro de quejas (2)'!A32 -> 453 | D33: =IF(Quejas_para_filtro[[#This Row],['# Queja]]>0,VLOOKUP(Quejas_para_filtro[[#This Row],['# Queja]],Regitro_de_Quejas[],23,FALSE),0) -> Señalización | E33: ='Registro de quejas (2)'!U32 -> Si | I33: ='Base Datos'!E30 -> Construcción | J33: =COUNTIF(Quejas_para_filtro[],I33) -> 2
B34: =IF(Quejas_para_filtro[[#This Row],['# Queja]]=0,"-",VLOOKUP(Quejas_para_filtro[[#This Row],['# Queja]],Regitro_de_Quejas[],2,FALSE)) -> 2018-04-25 | C34: ='Registro de quejas (2)'!A33 -> 454 | D34: =IF(Quejas_para_filtro[[#This Row],['# Queja]]>0,VLOOKUP(Quejas_para_filtro[[#This Row],['# Queja]],Regitro_de_Quejas[],23,FALSE),0) -> 0 | E34: ='Registro de quejas (2)'!U33 -> Si | I34: ='Base Datos'!E31 -> Datafonos | J34: =COUNTIF(Quejas_para_filtro[],I34) -> 1
B35: =IF(Quejas_para_filtro[[#This Row],['# Queja]]=0,"-",VLOOKUP(Quejas_para_filtro[[#This Row],['# Queja]],Regitro_de_Quejas[],2,FALSE)) -> 2018-04-25 | C35: ='Registro de quejas (2)'!A34 -> 455 | D35: =IF(Quejas_para_filtro[[#This Row],['# Queja]]>0,VLOOKUP(Quejas_para_filtro[[#This Row],['# Queja]],Regitro_de_Quejas[],23,FALSE),0) -> Plagas Habitaciones | E35: ='Registro de quejas (2)'!U34 -> Si | I35: ='Base Datos'!E32 -> Desestimado | J35: =COUNTIF(Quejas_para_filtro[],I35) -> 29
B36: =IF(Quejas_para_filtro[[#This Row],['# Queja]]=0,"-",VLOOKUP(Quejas_para_filtro[[#This Row],['# Queja]],Regitro_de_Quejas[],2,FALSE)) -> 2018-04-26 | C36: ='Registro de quejas (2)'!A35 -> 456 | D36: =IF(Quejas_para_filtro[[#This Row],['# Queja]]>0,VLOOKUP(Quejas_para_filtro[[#This Row],['# Queja]],Regitro_de_Quejas[],23,FALSE),0) -> Calida Desayuno | E36: ='Registro de quejas (2)'!U35 -> Si | I36: ='Base Datos'!E33 -> Encuentas de satisfacción | J36: =COUNTIF(Quejas_para_filtro[],I36) -> 1
B37: =IF(Quejas_para_filtro[[#This Row],['# Queja]]=0,"-",VLOOKUP(Quejas_para_filtro[[#This Row],['# Queja]],Regitro_de_Quejas[],2,FALSE)) -> 2018-04-27 | C37: ='Registro de quejas (2)'!A36 -> 457 | D37: =IF(Quejas_para_filtro[[#This Row],['# Queja]]>0,VLOOKUP(Quejas_para_filtro[[#This Row],['# Queja]],Regitro_de_Quejas[],23,FALSE),0) -> Ruido generadores | E37: ='Registro de quejas (2)'!U36 -> Si | I37: ='Base Datos'!E34 -> Entretenimiento | J37: =COUNTIF(Quejas_para_filtro[],I37) -> 4
